SUPPLIER NAME,ACCOUNT DESCRIPTION,NET AMOUNT,PAYMENT DATE
AB Kettleby Community Primary School Academy,6101-Support Services,645,01-03-2021
AB Wallace Engraving Ltd,4102-General Equipment - Purchase & Repairs,1182.45,01-03-2021
Aggregate Industries UK Ltd,4109-Materials,1559.28,01-03-2021
Aggregate Industries UK Ltd,4109-Materials,852.38,01-03-2021
AIM Awards,4912-Educational Bodies Exam Fees,1010,01-03-2021
All Saints CE First School,6101-Support Services,645,01-03-2021
All Saints CE First School,6101-Support Services,650,01-03-2021
All Saints CE First School,6101-Support Services,645,01-03-2021
All Saints CE First School,6101-Support Services,650,01-03-2021
AllStar Business Solutions Ltd,3104-Petrol / Oil / Types / Spares,2787.96,01-03-2021
Anstey Martin High Academy,6101-Support Services,645,01-03-2021
Anstey Martin High Academy,6101-Support Services,645,01-03-2021
Arval UK Ltd,3302-Vehicle Operational Lease,15428.75,01-03-2021
Arval UK Ltd,3302-Vehicle Operational Lease,782.44,01-03-2021
Asfordby Captains Close Primary School Academy T/A Discovery Schools Academies Trust,6101-Support Services,645,01-03-2021
Beacon Academy,2201-Energy Oil & Solid Fuel,8023.59,01-03-2021
Birkett House School Academy,6101-Support Services,645,01-03-2021
Birkett House School Academy,6101-Support Services,645,01-03-2021
Blackwood School (Walsall Council General Account),6101-Support Services,500,01-03-2021
Bliss & Beauty Ltd,4908-Grants,1575,01-03-2021
Blue Mountain Homes Ltd,5411-Private Contractors - General,32749.28,01-03-2021
Blue Mountain Homes Ltd,5411-Private Contractors - General,17552.73,01-03-2021
Blue Mountain Homes Ltd,5411-Private Contractors - General,19858.73,01-03-2021
Blue Mountain Homes Ltd,5411-Private Contractors - General,37076,01-03-2021
Braunstone Frith Primary School (Life Multi Academy Trust),6101-Support Services,645,01-03-2021
Bridge (East Midlands),5314-Voluntary Associations Other,75000,01-03-2021
Brocks Hill Primary School Academy,6101-Support Services,645,01-03-2021
Broom Leys Academy,6101-Support Services,645,01-03-2021
Caldecote Community Primary School,6101-Support Services,645,01-03-2021
Caldecote Community Primary School,6101-Support Services,645,01-03-2021
Carlton Academy,6101-Support Services,645,01-03-2021
Castle Donington College Academy,6101-Support Services,645,01-03-2021
Castle Rock High Academy,6101-Support Services,645,01-03-2021
Cedars Academy Lionheart Academies Trust,6101-Support Services,645,01-03-2021
Centrebus Holdings Ltd T/A Hinckley Bus,5428-Minimum Cost Contracts,71350.38,01-03-2021
Centrebus Ltd,5428-Minimum Cost Contracts,19207.38,01-03-2021
Christ Church & St Peters CE Primary School Academy,6101-Support Services,645,01-03-2021
Church Hill CE Junior School,6101-Support Services,645,01-03-2021
Community Academies Trust,6101-Support Services,645,01-03-2021
Countesthorpe Leysland Community College (Life Multi Academy Trust),6101-Support Services,645,01-03-2021
Countesthorpe Leysland Community College (Life Multi Academy Trust),6101-Support Services,645,01-03-2021
Countesthorpe Leysland Community College (Life Multi Academy Trust),6101-Support Services,645,01-03-2021
Countesthorpe Leysland Community College (Life Multi Academy Trust),6101-Support Services,645,01-03-2021
David Ross Education Trust Re Charnwood College,6101-Support Services,645,01-03-2021
David Ross Education Trust Re Charnwood College,6101-Support Services,645,01-03-2021
David Ross Education Trust Re Charnwood College,6101-Support Services,645,01-03-2021
De Lisle College (St Thomas Aquinas Catholic Multi Academy Trust),6101-Support Services,645,01-03-2021
De Lisle College (St Thomas Aquinas Catholic Multi Academy Trust),6101-Support Services,645,01-03-2021
De Lisle College (St Thomas Aquinas Catholic Multi Academy Trust),6101-Support Services,645,01-03-2021
Denbigh High School,6101-Support Services,551,01-03-2021
Derbyshire County Council,6101-Support Services,650,01-03-2021
Derbyshire County Council,6101-Support Services,645,01-03-2021
Direct Cabs,3303-Taxi Hire,950,01-03-2021
Direct Cabs,3303-Taxi Hire,1260,01-03-2021
Direct Cabs,3303-Taxi Hire,600.6,01-03-2021
Direct Cabs,3303-Taxi Hire,1128.5,01-03-2021
Direct Cabs,3303-Taxi Hire,625.5,01-03-2021
Diverse Academies Trust T/A East Leake Academy,6101-Support Services,645,01-03-2021
DJT Surfacing Ltd,4901-Other Expenditure,2735.28,01-03-2021
Dorothy Goodman School Academy,6101-Support Services,645,01-03-2021
Dorothy Goodman School Academy,6101-Support Services,645,01-03-2021
Dorothy Goodman School Academy,6101-Support Services,645,01-03-2021
Dorothy Goodman School Academy,6101-Support Services,645,01-03-2021
Effect Digital Ltd,"4503-Advertising, Publicity & Marketing",1000,01-03-2021
REDACTED PERSONAL DATA,4905-Legal Expenses,2050,01-03-2021
Embrace Multi Academy Trust T/A Brockington College Academy (BRO),6101-Support Services,645,01-03-2021
Embrace Multi Academy Trust T/A Brockington College Academy (BRO),6101-Support Services,645,01-03-2021
Embrace Multi Academy Trust T/A Brockington College Academy (BRO),6101-Support Services,645,01-03-2021
Embrace Multi Academy Trust T/A Brockington College Academy (BRO),6101-Support Services,645,01-03-2021
Embrace Multi Academy Trust T/A Brockington College Academy (BRO),6101-Support Services,645,01-03-2021
Embrace Multi Academy Trust T/A Brockington College Academy (BRO),6101-Support Services,645,01-03-2021
Embrace Multi Academy Trust T/A Brockington College Academy (BRO),6101-Support Services,645,01-03-2021
Embrace Multi Academy Trust T/A Brockington College Academy (BRO),6101-Support Services,645,01-03-2021
Embrace Multi Academy Trust T/A Brockington College Academy (BRO),6101-Support Services,645,01-03-2021
Enderby Danemill Primary School T/A Discovery Schools Academies Trust Ltd,6101-Support Services,645,01-03-2021
Eon Energy Solutions Ltd Highway Lighting,4901-Other Expenditure,940,01-03-2021
Esland North Ltd,5411-Private Contractors - General,10807.14,01-03-2021
Falcons Primary School,6101-Support Services,645,01-03-2021
Ford & Slater of Leicester,3102-Vehicle & Plant Repairs & Maintenance,583.78,01-03-2021
Ford & Slater of Leicester,3102-Vehicle & Plant Repairs & Maintenance,1017.88,01-03-2021
Fullhurst Community College,6101-Support Services,645,01-03-2021
Geemarc Telecom SA,4102-General Equipment - Purchase & Repairs,781.5,01-03-2021
Glenmere Primary School Academy,6101-Support Services,645,01-03-2021
Glenmere Primary School Academy,6101-Support Services,645,01-03-2021
H&B Specialist Supplies Ltd,4109-Materials,1098.14,01-03-2021
H&B Specialist Supplies Ltd,4109-Materials,2208,01-03-2021
H&B Specialist Supplies Ltd,4109-Materials,620.94,01-03-2021
Hastings High School Academy,6101-Support Services,645,01-03-2021
Hastings High School Academy,6101-Support Services,645,01-03-2021
Hastings High School Academy,6101-Support Services,645,01-03-2021
Hastings High School Academy,6101-Support Services,645,01-03-2021
Hearing Products  International Ltd,4102-General Equipment - Purchase & Repairs,2670,01-03-2021
Hinckley Parks Primary School (Owls Academy Trust),6101-Support Services,645,01-03-2021
Hinckley Parks Primary School (Owls Academy Trust),6101-Support Services,650,01-03-2021
HMB (LEIC) Ltd,3303-Taxi Hire,2231.08,01-03-2021
ICL UK (Sales) Ltd T/A Crystal Purchasing Ltd,9631-Inventories - General,7872.34,01-03-2021
Idverde Ltd,5411-Private Contractors - General,29925.82,01-03-2021
Ivanhoe College Specialist Technology Academy,6101-Support Services,500,01-03-2021
Ivanhoe College Specialist Technology Academy,6101-Support Services,645,01-03-2021
KCH Barristers Ltd,4905-Legal Expenses,600,01-03-2021
Ketton CE Primary School,6101-Support Services,650,01-03-2021
Ketton CE Primary School,6101-Support Services,645,01-03-2021
Kibworth High School Academy,6101-Support Services,645,01-03-2021
Kibworth High School Academy,6101-Support Services,650,01-03-2021
Kibworth High School Academy,6101-Support Services,645,01-03-2021
Kibworth High School Academy,6101-Support Services,645,01-03-2021
LCC Carer Direct Payments A/C,9668-Cash - Floats,891.57,01-03-2021
LCC Customer Direct Payments A/C,9668-Cash - Floats,1085.49,01-03-2021
LCC Customer Direct Payments A/C,9668-Cash - Floats,1000,01-03-2021
LCC Customer Rep Direct Payments A/C,9668-Cash - Floats,2534.28,01-03-2021
LCC Customer Rep Direct Payments A/C,9668-Cash - Floats,3174.85,01-03-2021
LCC Customer Rep Direct Payments A/C,9668-Cash - Floats,4796.26,01-03-2021
LCC Customer Rep Direct Payments A/C,9668-Cash - Floats,4320,01-03-2021
Learn Academies Trust T/A Red Hill Field Primary School,6101-Support Services,645,01-03-2021
Leicester Moat Community College,6101-Support Services,645,01-03-2021
LEICESTERSHIRE COUNTY CARE LTD&&SSARO2541,5502-Residential,22800,01-03-2021
Lextox,4905-Legal Expenses,1220,01-03-2021
Lincolnshire County Council,6101-Support Services,645,01-03-2021
Lincolnshire County Council,6101-Support Services,645,01-03-2021
Lincolnshire Wolds Community Trust - St Lawrence School,6101-Support Services,645,01-03-2021
Lincolnshire Wolds Community Trust - St Lawrence School,6101-Support Services,645,01-03-2021
Little Hill Primary School Academy,6101-Support Services,645,01-03-2021
Lutterworth College Academy,6101-Support Services,645,01-03-2021
Lutterworth High School Academy,6101-Support Services,555,01-03-2021
Lutterworth High School Academy,6101-Support Services,645,01-03-2021
Lutterworth High School Academy,6101-Support Services,645,01-03-2021
LWL Babington Academy (Learning Without Limits),6101-Support Services,645,01-03-2021
LWL Babington Academy (Learning Without Limits),6101-Support Services,645,01-03-2021
Mander Cruickshank Solicitors LLP,4905-Legal Expenses,1852.3,01-03-2021
Melton Swallowdale CP School Academy,6101-Support Services,645,01-03-2021
Melton Swallowdale CP School Academy,6101-Support Services,645,01-03-2021
Melton Swallowdale CP School Academy,6101-Support Services,645,01-03-2021
Melton Swallowdale CP School Academy,6101-Support Services,645,01-03-2021
Merton Primary Academy,6101-Support Services,645,01-03-2021
Met Geo Environmental Ltd,5411-Private Contractors - General,3702.5,01-03-2021
Midland Academies Trust,6101-Support Services,500,01-03-2021
Midland Academies Trust,6101-Support Services,645,01-03-2021
Midland Academies Trust,6101-Support Services,645,01-03-2021
Midland Foods Ltd,4504-Provisions Purchases,2188.89,01-03-2021
REDACTED PERSONAL DATA,4532-Other Services,1125,01-03-2021
North Warwickshire & South Leicestershire College,6101-Support Services,645,01-03-2021
Nottinghamshire County Council,6101-Support Services,645,01-03-2021
Nova Education Trust T/A Westdale Junior School,6101-Support Services,645,01-03-2021
Orchard Mead Academy T/A The Mead Education Trust,6101-Support Services,645,01-03-2021
Outwood Academy Valley,6101-Support Services,645,01-03-2021
Parkland Primary School T/A Discovery Schools Academies Trust,6101-Support Services,645,01-03-2021
Place Young Peoples Company Ltd,6101-Support Services,645,01-03-2021
Rawlins Community College Academy,6101-Support Services,645,01-03-2021
Rawlins Community College Academy,6101-Support Services,645,01-03-2021
Rawlins Community College Academy,6101-Support Services,650,01-03-2021
Rawlins Community College Academy,6101-Support Services,645,01-03-2021
Rawlins Community College Academy,6101-Support Services,645,01-03-2021
Rawlins Community College Academy,6101-Support Services,650,01-03-2021
Rawlins Community College Academy,6101-Support Services,645,01-03-2021
Retford Oaks Academy,6101-Support Services,645,01-03-2021
Riverside Commuity Primary School Academy,6101-Support Services,645,01-03-2021
Sharnford CE Primary School (Academy),6101-Support Services,645,01-03-2021
REDACTED PERSONAL DATA,4507-Consultants & Specialists,846,01-03-2021
South Charnwood High School Academy,6101-Support Services,645,01-03-2021
South Charnwood High School Academy,6101-Support Services,645,01-03-2021
St Peter & St Paul CE Academy,6101-Support Services,645,01-03-2021
St Peter & St Paul CE Academy,6101-Support Services,650,01-03-2021
St Thomas Aquinas Catholic Multi Academy Trust T/A Saint Martins Catholic Voluntary Academy,6101-Support Services,645,01-03-2021
St Thomas Aquinas Catholic Multi Academy Trust T/A Saint Martins Catholic Voluntary Academy,6101-Support Services,645,01-03-2021
St Thomas Aquinas Catholic Multi Academy Trust T/A Saint Martins Catholic Voluntary Academy,6101-Support Services,645,01-03-2021
Stafford Leys Academy Trust,6101-Support Services,645,01-03-2021
Stafford Leys Academy Trust,6101-Support Services,645,01-03-2021
Stephenson Studio School Trust,6101-Support Services,645,01-03-2021
Stonehurst Lodge Outdoor Learning Centre,6101-Support Services,645,01-03-2021
Stow Agricultural Ltd T/A Wildcare,4102-General Equipment - Purchase & Repairs,1234.46,01-03-2021
Streetly Academy,6101-Support Services,645,01-03-2021
Suez Recycling & Recovery UK Ltd,5411-Private Contractors - General,26751.4,01-03-2021
REDACTED PERSONAL DATA,9321-Expenditure,500,01-03-2021
Tanwood Construction Ltd,2106-Reactive Maint Buildings,780,01-03-2021
Thurnby St Lukes CE Primary School     1,6101-Support Services,645,01-03-2021
Thurnby St Lukes CE Primary School     1,6101-Support Services,645,01-03-2021
Total Gas & Power Ltd,2204-Energy Gas,25670.59,01-03-2021
Total Gas & Power Ltd,2203-Energy Electricity,315319.28,01-03-2021
Total Produce,4504-Provisions Purchases,5124.42,01-03-2021
Townlands CE Primary Academy,6101-Support Services,645,01-03-2021
Traffix Ltd,4901-Other Expenditure,905.78,01-03-2021
United Education Services Ltd T/A Oakwood Community School,6101-Support Services,645,01-03-2021
United Education Services Ltd T/A Oakwood Community School,6101-Support Services,650,01-03-2021
Urbis Schreder Ltd,9631-Inventories - General,28773.3,01-03-2021
Vines Multi Academy Trust T/A All Saints C of E Primary School,6101-Support Services,645,01-03-2021
Vines Multi Academy Trust T/A All Saints C of E Primary School,6101-Support Services,645,01-03-2021
Volvo Group UK Limited,3102-Vehicle & Plant Repairs & Maintenance,1490.01,01-03-2021
Volvo Group UK Limited,3102-Vehicle & Plant Repairs & Maintenance,6942.94,01-03-2021
Welland Park Community College Academy,6101-Support Services,645,01-03-2021
Whitewoods Primary Academy Trust T/A Woodsetts Primary School,6101-Support Services,645,01-03-2021
Wigston Academy Trust,6101-Support Services,645,01-03-2021
Wigston Academy Trust,6101-Support Services,645,01-03-2021
Wigston Academy Trust,6101-Support Services,645,01-03-2021
Wigston Academy Trust,6101-Support Services,645,01-03-2021
Wigston Menphys Centre Allowances A/C,6101-Support Services,650,01-03-2021
Wigston Menphys Centre Allowances A/C,6101-Support Services,612,01-03-2021
Witham St Hughs Academy,6101-Support Services,645,01-03-2021
Wollaston School,6101-Support Services,645,01-03-2021
Wolverhampton City Council,6101-Support Services,645,01-03-2021
Wolverhampton City Council,6101-Support Services,650,01-03-2021
Woodbrook Vale School Academy,6101-Support Services,645,01-03-2021
Woodside Lodge Outdoor Learning Centre Ltd,6101-Support Services,645,01-03-2021
Worcestershire County Council,6101-Support Services,594,01-03-2021
Wreake Valley Academy,6101-Support Services,645,01-03-2021
Wreake Valley Academy,6101-Support Services,645,01-03-2021
Wreake Valley Academy,6101-Support Services,500,01-03-2021
WSP UK Ltd,4507-Consultants & Specialists,2400.75,01-03-2021
Yakub Taxis Ltd,3303-Taxi Hire,1960.2,01-03-2021
4PureHeart Limited,5411-Private Contractors - General,15500,02-03-2021
Adoption UK,4509-Client Personal Needs,1470,02-03-2021
Aggregate Industries UK Ltd,4109-Materials,741.12,02-03-2021
Aggregate Industries UK Ltd,4109-Materials,782.2,02-03-2021
Aggregate Industries UK Ltd,4109-Materials,783,02-03-2021
Aggregate Industries UK Ltd,9631-Inventories - General,602.97,02-03-2021
REDACTED PERSONAL DATA Sullivan & Associates,5443-Agency & Contracted Services,715,02-03-2021
Allroads Asphalt Solutions Ltd,5411-Private Contractors - General,10488.22,02-03-2021
Allroads Asphalt Solutions Ltd,5411-Private Contractors - General,28934.72,02-03-2021
Altiga Ltd,2105-Reactive Maintenance M&E,558.86,02-03-2021
Anew Young People Services Ltd,5411-Private Contractors - General,2288.66,02-03-2021
Anew Young People Services Ltd,5451-LCT/LAC (Not Fostered),2018.66,02-03-2021
Anew Young People Services Ltd,5411-Private Contractors - General,2288.66,02-03-2021
Anew Young People Services Ltd,5451-LCT/LAC (Not Fostered),2018.66,02-03-2021
Anew Young People Services Ltd,5411-Private Contractors - General,2177.68,02-03-2021
Anew Young People Services Ltd,5411-Private Contractors - General,1956.34,02-03-2021
Anew Young People Services Ltd,5411-Private Contractors - General,2177.68,02-03-2021
Anew Young People Services Ltd,5411-Private Contractors - General,2288.66,02-03-2021
Anew Young People Services Ltd,5411-Private Contractors - General,2018.66,02-03-2021
Animal Care Services Ltd,5508-Other Support,719.56,02-03-2021
Animal Care Services Ltd,5508-Other Support,935.4,02-03-2021
Animal Care Services Ltd,5508-Other Support,775,02-03-2021
Animal Care Services Ltd,5508-Other Support,775,02-03-2021
Animal Care Services Ltd,5508-Other Support,775,02-03-2021
Animal Care Services Ltd,5508-Other Support,542.5,02-03-2021
Animal Care Services Ltd,5508-Other Support,775,02-03-2021
Animal Care Services Ltd,5508-Other Support,538.28,02-03-2021
Animal Care Services Ltd,5508-Other Support,1847.85,02-03-2021
REDACTED PERSONAL DATA Links Psychology Ltd,4509-Client Personal Needs,1250,02-03-2021
REDACTED PERSONAL DATA Links Psychology Ltd,4509-Client Personal Needs,1250,02-03-2021
Art Department,"4501-Exhibitions, Displays, Events & Performances",2580,02-03-2021
REDACTED PERSONAL DATA,4905-Legal Expenses,550,02-03-2021
Bigword Interpretting Services Ltd,4507-Consultants & Specialists,699.42,02-03-2021
Bigword Interpretting Services Ltd,4507-Consultants & Specialists,1667.6,02-03-2021
Capita Business Services Ltd T/A Knowledgepool Group Ltd,4603-IT Software Licenses/Subscription,5400,02-03-2021
Carter Brown The Expert Service Ltd,5443-Agency & Contracted Services,735,02-03-2021
Carter Brown The Expert Service Ltd,5443-Agency & Contracted Services,2450,02-03-2021
Carter Brown The Expert Service Ltd,5443-Agency & Contracted Services,2450,02-03-2021
Carter Jonas LLP,941D-L&B - Building Costs,5000,02-03-2021
Catmose College,6101-Support Services,650,02-03-2021
Catmose College,6101-Support Services,650,02-03-2021
Catmose College,6101-Support Services,650,02-03-2021
Catmose College,6101-Support Services,650,02-03-2021
Centrebus Ltd,5428-Minimum Cost Contracts,22351.01,02-03-2021
Centrebus Ltd,5428-Minimum Cost Contracts,8021.5,02-03-2021
Centrebus Ltd,4102-General Equipment - Purchase & Repairs,9361.79,02-03-2021
Centrebus Ltd,5428-Minimum Cost Contracts,2444.83,02-03-2021
Centrebus Ltd,5428-Minimum Cost Contracts,10003.42,02-03-2021
Centrebus Ltd,5428-Minimum Cost Contracts,15610.33,02-03-2021
Centrebus Ltd,5428-Minimum Cost Contracts,3017.56,02-03-2021
Centrebus Ltd,5428-Minimum Cost Contracts,15101.1,02-03-2021
Centrebus Ltd,5428-Minimum Cost Contracts,1782.72,02-03-2021
 REDACTED PERSONAL DATA,5445-Adoption Support,1440,02-03-2021
Chris Johnson Ltd,3301-Vehicle & Plant Hire,1221.5,02-03-2021
Clovelly House School,5323-External SEN Providers Independent Sch,2720,02-03-2021
Coalville Cabs Ltd,5428-Minimum Cost Contracts,1232,02-03-2021
Cornerstone NE Adoption & Fostering Service,5449-Adoption of Children,750,02-03-2021
David Stanley Sales Ltd,2102-R&M Buildings Service Contracts,868,02-03-2021
DJT Surfacing Ltd,4901-Other Expenditure,507.7,02-03-2021
DJT Surfacing Ltd,4901-Other Expenditure,531.39,02-03-2021
DJT Surfacing Ltd,4901-Other Expenditure,1089.61,02-03-2021
DJT Surfacing Ltd,4901-Other Expenditure,953.8,02-03-2021
DJT Surfacing Ltd,4901-Other Expenditure,682.09,02-03-2021
DJT Surfacing Ltd,4901-Other Expenditure,1204.3,02-03-2021
DJT Surfacing Ltd,4901-Other Expenditure,47388,02-03-2021
DNA Legal,4905-Legal Expenses,1014,02-03-2021
Dyslexia Box,4601-IT Equipment Hardware,2794,02-03-2021
Edge Training & Consultancy Ltd,1703-Training Expenses,875,02-03-2021
Enva England Ltd,5411-Private Contractors - General,15198.49,02-03-2021
FCC Recycling (UK) Ltd,5411-Private Contractors - General,964.49,02-03-2021
First Class Tailored Solutions Ltd,5411-Private Contractors - General,21190,02-03-2021
GAE Smith (Holdings) Ltd T/A Casepak,5411-Private Contractors - General,81637.57,02-03-2021
GAE Smith (Holdings) Ltd T/A Casepak,5411-Private Contractors - General,51613.1,02-03-2021
GAE Smith (Holdings) Ltd T/A Casepak,5411-Private Contractors - General,42666.4,02-03-2021
GAE Smith (Holdings) Ltd T/A Casepak,5411-Private Contractors - General,27580.36,02-03-2021
GAE Smith (Holdings) Ltd T/A Casepak,5411-Private Contractors - General,1033.72,02-03-2021
GAE Smith (Holdings) Ltd T/A Casepak,5411-Private Contractors - General,20826.69,02-03-2021
GAE Smith (Holdings) Ltd T/A Casepak,5411-Private Contractors - General,38489.92,02-03-2021
George Walker (Tree Care) Ltd,4109-Materials,3570,02-03-2021
George Walker (Tree Care) Ltd,5443-Agency & Contracted Services,7736.53,02-03-2021
Harborough District Council,4405-Stationery,610.34,02-03-2021
REDACTED PERSONAL DATA,5411-Private Contractors - General,4400,02-03-2021
Jack Moody Recycling Ltd,5419-Private Contractors Green Waste,1201.43,02-03-2021
Jacobs Uk Ltd,4507-Consultants & Specialists,10978.54,02-03-2021
James Baxter Haulage Ltd,5411-Private Contractors - General,1961.55,02-03-2021
James Baxter Haulage Ltd,5419-Private Contractors Green Waste,1242.12,02-03-2021
James Baxter Haulage Ltd,5411-Private Contractors - General,14478.56,02-03-2021
James Baxter Haulage Ltd,5411-Private Contractors - General,2365.9,02-03-2021
James Baxter Haulage Ltd,5411-Private Contractors - General,15596.25,02-03-2021
Jeakins Weir Ltd,941D-L&B - Building Costs,36753.95,02-03-2021
John Oconner Ground Maintenance Ltd,2501-Grounds Maintenance,1176.45,02-03-2021
Jordan Xavier Ltd,5411-Private Contractors - General,2812.15,02-03-2021
Jordan Xavier Ltd,5451-LCT/LAC (Not Fostered),4384.29,02-03-2021
Jordan Xavier Ltd,5451-LCT/LAC (Not Fostered),4384.29,02-03-2021
Jordan Xavier Ltd,5451-LCT/LAC (Not Fostered),4384.29,02-03-2021
Jordan Xavier Ltd,5411-Private Contractors - General,4384.29,02-03-2021
Jordan Xavier Ltd,5451-LCT/LAC (Not Fostered),2010.57,02-03-2021
Jordan Xavier Ltd,5451-LCT/LAC (Not Fostered),5712.86,02-03-2021
Jordan Xavier Ltd,5411-Private Contractors - General,2010.57,02-03-2021
Jordan Xavier Ltd,5451-LCT/LAC (Not Fostered),816.43,02-03-2021
Jordan Xavier Ltd,5451-LCT/LAC (Not Fostered),2812.15,02-03-2021
Jordan Xavier Ltd,5451-LCT/LAC (Not Fostered),2369.29,02-03-2021
Jordan Xavier Ltd,5451-LCT/LAC (Not Fostered),3410,02-03-2021
Jordan Xavier Ltd,5451-LCT/LAC (Not Fostered),2812.15,02-03-2021
Jordan Xavier Ltd,5451-LCT/LAC (Not Fostered),2369.29,02-03-2021
LCC Carer Direct Payments A/C,9668-Cash - Floats,648,02-03-2021
LCC Central Imprest Account,4901-Other Expenditure,17147.71,02-03-2021
LCC CHILDREN'S AND FAMILY SERVICE,9668-Cash - Floats,2641.85,02-03-2021
LCC CHILDREN'S AND FAMILY SERVICE,9668-Cash - Floats,1763.4,02-03-2021
LCC CHILDREN'S AND FAMILY SERVICE,9668-Cash - Floats,3922.71,02-03-2021
LCC Customer Rep Direct Payments A/C,9668-Cash - Floats,16880.32,02-03-2021
LCC Leicestershire South Area Imprest,4901-Other Expenditure,1053.39,02-03-2021
LCC Melton Divisional Office Imprest A/C,4901-Other Expenditure,610.5,02-03-2021
LCC Melton Divisional Office Imprest A/C,4901-Other Expenditure,890.5,02-03-2021
LCC North Charnwood Area Office Imprest A/C,4901-Other Expenditure,2194.77,02-03-2021
LCC North Charnwood Area Office Imprest A/C,4901-Other Expenditure,2325.97,02-03-2021
LCC North West Leics Area Office Imprest A/C,4901-Other Expenditure,1090,02-03-2021
Loughborough University Enterprises Ltd,4401-Printing,1756,02-03-2021
MG Recycling Ltd,5411-Private Contractors - General,2099.2,02-03-2021
Mid UK Recycling Ltd,5419-Private Contractors Green Waste,570.12,02-03-2021
Mid UK Recycling Ltd,5421-Private Contractors Plasterboard,2296.6,02-03-2021
Midland Classic Ltd,5428-Minimum Cost Contracts,3282.8,02-03-2021
Midland Quarry Products Ltd,4109-Materials,764.7,02-03-2021
Midland Quarry Products Ltd,4109-Materials,596.52,02-03-2021
Minton Treharne & Davies Ltd,4507-Consultants & Specialists,514,02-03-2021
MJ Dexter Plant Hire,4901-Other Expenditure,975,02-03-2021
Mosaic Shaping Disability Services     1,5411-Private Contractors - General,5977.22,02-03-2021
ND Brown Ltd,3301-Vehicle & Plant Hire,1375,02-03-2021
Nelson Trust,5443-Agency & Contracted Services,3609.33,02-03-2021
Nelson Trust,5443-Agency & Contracted Services,582.15,02-03-2021
New Star Environmental Ltd,2403-Refuse Removal & Hygiene Disposal,12356.82,02-03-2021
New Star Environmental Ltd,2403-Refuse Removal & Hygiene Disposal,11040.72,02-03-2021
Old Mill Primary School (Academy),4519-Insurance (non Premises),1442.41,02-03-2021
REDACTED PERSONAL DATA  Alders Building Services,2104-Other Premises expenses,6000,02-03-2021
Patrol Parking,4909-Subscriptions,2398.5,02-03-2021
Paul S Winson Coaches Ltd,5428-Minimum Cost Contracts,10401.22,02-03-2021
Pickerings Plant Ltd,3301-Vehicle & Plant Hire,530.04,02-03-2021
Premier Taxis Leicester Ltd,3303-Taxi Hire,1794,02-03-2021
Providence Projects Rehab Group Ltd,5443-Agency & Contracted Services,2652.71,02-03-2021
Providence Projects Rehab Group Ltd,5443-Agency & Contracted Services,1026.86,02-03-2021
Providence Projects Rehab Group Ltd,5443-Agency & Contracted Services,2652.71,02-03-2021
Puddys Vehicle Solutions Ltd,4507-Consultants & Specialists,3975,02-03-2021
REDACTED PERSONAL DATA ,4507-Consultants & Specialists,857.7,02-03-2021
Reach Publishing Services Ltd,4909-Subscriptions,3192.5,02-03-2021
Reach Publishing Services Ltd,"4503-Advertising, Publicity & Marketing",615.78,02-03-2021
Reach Publishing Services Ltd,"4503-Advertising, Publicity & Marketing",727.74,02-03-2021
Reach Publishing Services Ltd,"4503-Advertising, Publicity & Marketing",1800,02-03-2021
Reach Publishing Services Ltd,"4503-Advertising, Publicity & Marketing",503.82,02-03-2021
Reach Publishing Services Ltd,"4503-Advertising, Publicity & Marketing",559.8,02-03-2021
Reed Specialist Recruitment Ltd,5443-Agency & Contracted Services,7799.4,02-03-2021
RG&P Ltd,941G-L&B - Design Fees - External,11293.2,02-03-2021
RG&P Ltd,941G-L&B - Design Fees - External,14479.2,02-03-2021
Roberts Coaches Ltd,5428-Minimum Cost Contracts,7140,02-03-2021
Roberts Coaches Ltd,5428-Minimum Cost Contracts,11766.85,02-03-2021
S&W Mobility Services Ltd,4102-General Equipment - Purchase & Repairs,2955.6,02-03-2021
S&W Mobility Services Ltd,4102-General Equipment - Purchase & Repairs,709,02-03-2021
S&W Mobility Services Ltd,4102-General Equipment - Purchase & Repairs,1243.4,02-03-2021
Safe Haven Accommodation Ltd,5451-LCT/LAC (Not Fostered),24570,02-03-2021
Safe Haven Accommodation Ltd,5451-LCT/LAC (Not Fostered),13330,02-03-2021
Safe Haven Accommodation Ltd,5451-LCT/LAC (Not Fostered),13330,02-03-2021
Safe Haven Accommodation Ltd,5451-LCT/LAC (Not Fostered),7882.86,02-03-2021
Safe Haven Accommodation Ltd,5451-LCT/LAC (Not Fostered),12150,02-03-2021
Safe Haven Accommodation Ltd,5451-LCT/LAC (Not Fostered),7882.86,02-03-2021
Safe Haven Accommodation Ltd,5451-LCT/LAC (Not Fostered),7882.86,02-03-2021
Safe Haven Accommodation Ltd,5451-LCT/LAC (Not Fostered),7882.86,02-03-2021
REDACTED PERSONAL DATA,9321-Expenditure,1750,02-03-2021
Seven Resourcing Ltd,1201-Agency Costs,1368.79,02-03-2021
Seven Resourcing Ltd,1201-Agency Costs,1354.84,02-03-2021
Shape Design Contracts Ltd T/A Shape Posture Seating,4101-Furniture,876.8,02-03-2021
Site Welding Services,2101-R&M Buildings,1132,02-03-2021
Solo Service Group,2402-Contract Cleaning,255009.75,02-03-2021
Solo Service Group,2402-Contract Cleaning,1855.1,02-03-2021
SRL Traffic Systems Ltd,944A-Infr - Infrastructure Exp,2081.46,02-03-2021
REDACTED PERSONAL DATA,4507-Consultants & Specialists,4512,02-03-2021
Stor a File Ltd,4532-Other Services,4210.16,02-03-2021
Suez Recycling & Recovery UK Ltd,5422-Specialist Disposal Costs Wood,7662.56,02-03-2021
Suez Recycling & Recovery UK Ltd,5422-Specialist Disposal Costs Wood,14296.63,02-03-2021
T&G Services Leicestershire Ltd,5411-Private Contractors - General,1816.86,02-03-2021
T&G Services Leicestershire Ltd,5411-Private Contractors - General,2357.08,02-03-2021
T&G Services Leicestershire Ltd,5411-Private Contractors - General,1260.45,02-03-2021
T&G Services Leicestershire Ltd,5411-Private Contractors - General,836.22,02-03-2021
T&G Services Leicestershire Ltd,5411-Private Contractors - General,1537.76,02-03-2021
T&G Services Leicestershire Ltd,5411-Private Contractors - General,508.8,02-03-2021
Telent Technology Services Ltd,7304-Revenue Financing of Capital,8029.42,02-03-2021
Tradebe Healthcare National Ltd,5411-Private Contractors - General,7386.56,02-03-2021
Traffix Ltd,4901-Other Expenditure,736,02-03-2021
Traffix Ltd,4901-Other Expenditure,1595.23,02-03-2021
Turning Point Services Ltd,5443-Agency & Contracted Services,2700,02-03-2021
Turning Point Services Ltd,5443-Agency & Contracted Services,2700,02-03-2021
Turning Point Services Ltd,5443-Agency & Contracted Services,2700,02-03-2021
University Hospitals of Leicester NHS Trust,4529-Post Mortem Exams,14681.12,02-03-2021
Waterman Aspen Ltd,5443-Agency & Contracted Services,7584,02-03-2021
Waterman Aspen Ltd,5443-Agency & Contracted Services,5930.24,02-03-2021
Waterman Aspen Ltd,5443-Agency & Contracted Services,1111.92,02-03-2021
Waterman Aspen Ltd,5443-Agency & Contracted Services,6242.98,02-03-2021
Waterman Aspen Ltd,5443-Agency & Contracted Services,3519.29,02-03-2021
Waterman Aspen Ltd,5443-Agency & Contracted Services,5744.65,02-03-2021
Waterman Aspen Ltd,5443-Agency & Contracted Services,2740,02-03-2021
Waterman Aspen Ltd,5443-Agency & Contracted Services,7248,02-03-2021
Waterman Aspen Ltd,5443-Agency & Contracted Services,5932.8,02-03-2021
Waterman Aspen Ltd,5443-Agency & Contracted Services,3749.45,02-03-2021
Waterman Aspen Ltd,5443-Agency & Contracted Services,6046.25,02-03-2021
Waterman Aspen Ltd,5443-Agency & Contracted Services,3349.33,02-03-2021
Waterman Aspen Ltd,5443-Agency & Contracted Services,5930.24,02-03-2021
Waterman Aspen Ltd,5443-Agency & Contracted Services,3990.24,02-03-2021
Western Power Distribution,944A-Infr - Infrastructure Exp,26705.46,02-03-2021
WHM Work Connections,5323-External SEN Providers Independent Sch,2880,02-03-2021
WHM Work Connections,5323-External SEN Providers Independent Sch,2280,02-03-2021
WHM Work Connections,5323-External SEN Providers Independent Sch,2880,02-03-2021
WHM Work Connections,5323-External SEN Providers Independent Sch,2880,02-03-2021
WHM Work Connections,5323-External SEN Providers Independent Sch,2880,02-03-2021
WHM Work Connections,5323-External SEN Providers Independent Sch,1680,02-03-2021
WHM Work Connections,5323-External SEN Providers Independent Sch,2880,02-03-2021
William G Search Limited,4102-General Equipment - Purchase & Repairs,703,02-03-2021
William G Search Limited,4102-General Equipment - Purchase & Repairs,1145,02-03-2021
William G Search Limited,4102-General Equipment - Purchase & Repairs,1744,02-03-2021
William G Search Limited,4102-General Equipment - Purchase & Repairs,756,02-03-2021
REDACTED PERSONAL DATA,3112-Home to Sch Trans Contract Buses Prim,612.5,03-03-2021
REDACTED PERSONAL DATA,3113-Home to Sch Trans Contract Buses Sec,1036.43,03-03-2021
REDACTED PERSONAL DATA,3303-Taxi Hire,567,03-03-2021
REDACTED PERSONAL DATA,3201-Pooled Transport Recharge Inhouse,720,03-03-2021
REDACTED PERSONAL DATA,3112-Home to Sch Trans Contract Buses Prim,1564.06,03-03-2021
Aggregate Industries UK Ltd,4109-Materials,1087.26,03-03-2021
Aggregate Industries UK Ltd,4109-Materials,1064.27,03-03-2021
Airports 4 U,3303-Taxi Hire,1861.5,03-03-2021
REDACTED PERSONAL DATA,3201-Pooled Transport Recharge Inhouse,500,03-03-2021
Altiga Ltd,2105-Reactive Maintenance M&E,1286.58,03-03-2021
REDACTED PERSONAL DATA Links Psychology Ltd,4509-Client Personal Needs,725.63,03-03-2021
REDACTED PERSONAL DATA Links Psychology Ltd,4509-Client Personal Needs,1011.25,03-03-2021
REDACTED PERSONAL DATA Links Psychology Ltd,4509-Client Personal Needs,725.62,03-03-2021
Arval UK Ltd,3302-Vehicle Operational Lease,3626.7,03-03-2021
Askews & Holts Library Services Ltd,4111-Books & Audio Visual,1872.16,03-03-2021
REDACTED PERSONAL DATA SMH Travel,3303-Taxi Hire,1632,03-03-2021
REDACTED PERSONAL DATA SMH Travel,3303-Taxi Hire,542.5,03-03-2021
REDACTED PERSONAL DATA,3112-Home to Sch Trans Contract Buses Prim,925,03-03-2021
Bond Planning Consultancy,4532-Other Services,560,03-03-2021
Borough of Charnwood Council,"4501-Exhibitions, Displays, Events & Performances",1130,03-03-2021
Borough of Charnwood Council,5211-Other Local Authorities,2298.96,03-03-2021
Borough of Charnwood Council,4507-Consultants & Specialists,16968,03-03-2021
British Telecom Plc,4606-IT Telecommunications Line Rental,21353.72,03-03-2021
REDACTED PERSONAL DATA,8403-Non Res/Managed Income - Client Income,533.76,03-03-2021
Commissariat Ltd,4532-Other Services,1687.5,03-03-2021
Cooper Freer Ltd,2102-R&M Buildings Service Contracts,850,03-03-2021
Coventry & Solihull Waste Disposal Co Ltd,9721-Creditors Control,161815.21,03-03-2021
REDACTED PERSONAL DATA ,3303-Taxi Hire,1479,03-03-2021
REDACTED PERSONAL DATA  Lavender Group Homes,5411-Private Contractors - General,20695.33,03-03-2021
Day Rental T/A Car Hire Day of Swansea Ltd,3301-Vehicle & Plant Hire,558.6,03-03-2021
Day Rental T/A Car Hire Day of Swansea Ltd,3301-Vehicle & Plant Hire,558.6,03-03-2021
Day Rental T/A Car Hire Day of Swansea Ltd,3301-Vehicle & Plant Hire,518.7,03-03-2021
De Montfort University,1703-Training Expenses,4375,03-03-2021
Diabetes Self Help Group,5691-Payments to Trainees,1000,03-03-2021
Diversity Social Care Ltd,5429-Community/Domiciliary,1932,03-03-2021
Diversity Social Care Ltd,5429-Community/Domiciliary,2592,03-03-2021
DJT Surfacing Ltd,4901-Other Expenditure,1026.79,03-03-2021
DJT Surfacing Ltd,4901-Other Expenditure,840.84,03-03-2021
DJT Surfacing Ltd,4901-Other Expenditure,863.98,03-03-2021
DJT Surfacing Ltd,4901-Other Expenditure,749.65,03-03-2021
DJT Surfacing Ltd,4901-Other Expenditure,1784.22,03-03-2021
DJT Surfacing Ltd,4901-Other Expenditure,920.12,03-03-2021
DJT Surfacing Ltd,4901-Other Expenditure,919.42,03-03-2021
DJT Surfacing Ltd,4901-Other Expenditure,919.2,03-03-2021
DJT Surfacing Ltd,4901-Other Expenditure,749.65,03-03-2021
Do it Media UK Ltd,"4503-Advertising, Publicity & Marketing",3024.37,03-03-2021
Do it Media UK Ltd,"4503-Advertising, Publicity & Marketing",1610,03-03-2021
Dodds Solicitors LLP,4507-Consultants & Specialists,1088.94,03-03-2021
Dodds Solicitors LLP,"4503-Advertising, Publicity & Marketing",538.78,03-03-2021
Drive4it,3113-Home to Sch Trans Contract Buses Sec,577.5,03-03-2021
Ebuyer UK Ltd,4606-IT Telecommunications Line Rental,1443,03-03-2021
Embrace Multi Academy Trust T/A Sherrier Church of England Primary School (SHE),4901-Other Expenditure,1010,03-03-2021
Eon Energy Solutions Ltd Highway Lighting,4901-Other Expenditure,7324,03-03-2021
Eon Energy Solutions Ltd Highway Lighting,4109-Materials,3564,03-03-2021
EQV (UK) Ltd,1703-Training Expenses,845,03-03-2021
EQV (UK) Ltd,1703-Training Expenses,845,03-03-2021
EQV (UK) Ltd,1703-Training Expenses,1650,03-03-2021
EQV (UK) Ltd,1703-Training Expenses,3300,03-03-2021
Focus Consultants 2010 LLP,941D-L&B - Building Costs,1750,03-03-2021
Frontline Staffing Ltd,1201-Agency Costs,1731.23,03-03-2021
Frontline Staffing Ltd,1201-Agency Costs,1546.23,03-03-2021
Frontline Staffing Ltd,1201-Agency Costs,1620.23,03-03-2021
Granicus-Firmstep Limited,4603-IT Software Licenses/Subscription,4601.14,03-03-2021
REDACTED PERSONAL DATA,3303-Taxi Hire,525,03-03-2021
REDACTED PERSONAL DATA,3112-Home to Sch Trans Contract Buses Prim,603.75,03-03-2021
REDACTED PERSONAL DATA,3113-Home to Sch Trans Contract Buses Sec,1268.37,03-03-2021
GVN Cabs Ltd,3303-Taxi Hire,1888.07,03-03-2021
GVN Cabs Ltd,3303-Taxi Hire,1850,03-03-2021
GVN Cabs Ltd,3303-Taxi Hire,2110.14,03-03-2021
GVN Cabs Ltd,3303-Taxi Hire,3493.87,03-03-2021
GVN Cabs Ltd,3303-Taxi Hire,2435.34,03-03-2021
GVN Cabs Ltd,3203-Pooled Transport Recharge Contractors,2169.46,03-03-2021
GVN Cabs Ltd,3303-Taxi Hire,502.9,03-03-2021
GVN Cabs Ltd,3303-Taxi Hire,2397,03-03-2021
GVN Cabs Ltd,3201-Pooled Transport Recharge Inhouse,1194.53,03-03-2021
Haynes,5411-Private Contractors - General,1240,03-03-2021
Hinckley & Bosworth Borough Council,4507-Consultants & Specialists,44355,03-03-2021
Holywell Primary School,4908-Grants,2000,03-03-2021
REDACTED PERSONAL DATA,5627-Transfer Payments Education Costs,1000,03-03-2021
REDACTED PERSONAL DATA,3303-Taxi Hire,938.12,03-03-2021
REDACTED PERSONAL DATA,3303-Taxi Hire,2275.5,03-03-2021
REDACTED PERSONAL DATA,3303-Taxi Hire,569.25,03-03-2021
Jamma Umoja (Residential Services) Ltd,5411-Private Contractors - General,3916,03-03-2021
JR Allen & Sons Ltd,2107-Electrical Testing,890,03-03-2021
REDACTED PERSONAL DATA,8402-Residential -Client Income,1756.56,03-03-2021
REDACTED PERSONAL DATA,3303-Taxi Hire,2030.65,03-03-2021
REDACTED PERSONAL DATA,3201-Pooled Transport Recharge Inhouse,1760,03-03-2021
REDACTED PERSONAL DATA,3303-Taxi Hire,2639,03-03-2021
REDACTED PERSONAL DATA,3303-Taxi Hire,3166.25,03-03-2021
REDACTED PERSONAL DATA ,5627-Transfer Payments Education Costs,1000,03-03-2021
Leicester Health & Safety Training Ltd,1703-Training Expenses,631,03-03-2021
Leversedge Telecom Services Ltd,4901-Other Expenditure,1540,03-03-2021
REDACTED PERSONAL DATA,3303-Taxi Hire,2644.75,03-03-2021
M&M Cabs Ltd,3303-Taxi Hire,848.75,03-03-2021
M&M Cabs Ltd,3303-Taxi Hire,1673.75,03-03-2021
M&M Cabs Ltd,3303-Taxi Hire,725,03-03-2021
M&M Cabs Ltd,3303-Taxi Hire,2071,03-03-2021
M&M Cabs Ltd,3303-Taxi Hire,1514.75,03-03-2021
M&M Cabs Ltd,3303-Taxi Hire,2021.25,03-03-2021
M&M Cabs Ltd,3303-Taxi Hire,2737.5,03-03-2021
M&M Cabs Ltd,3303-Taxi Hire,2463.75,03-03-2021
M&M Cabs Ltd,3201-Pooled Transport Recharge Inhouse,1281,03-03-2021
M&M Cabs Ltd,3201-Pooled Transport Recharge Inhouse,3111,03-03-2021
M&M Cabs Ltd,3303-Taxi Hire,2242.5,03-03-2021
M&M Cabs Ltd,3303-Taxi Hire,2437.5,03-03-2021
M&M Cabs Ltd,3303-Taxi Hire,1879.75,03-03-2021
M&M Cabs Ltd,3303-Taxi Hire,1064,03-03-2021
M&M Cabs Ltd,3303-Taxi Hire,2317.75,03-03-2021
M&M Cabs Ltd,3303-Taxi Hire,2323.75,03-03-2021
M&M Cabs Ltd,3303-Taxi Hire,2170.95,03-03-2021
M&M Cabs Ltd,3303-Taxi Hire,3102.5,03-03-2021
M&M Cabs Ltd,3303-Taxi Hire,2226.5,03-03-2021
M&M Cabs Ltd,3303-Taxi Hire,2263,03-03-2021
M&M Cabs Ltd,3303-Taxi Hire,936.25,03-03-2021
M&M Cabs Ltd,3303-Taxi Hire,1228.38,03-03-2021
M&M Cabs Ltd,3203-Pooled Transport Recharge Contractors,1357,03-03-2021
M&M Cabs Ltd,3303-Taxi Hire,793.5,03-03-2021
M&M Cabs Ltd,3303-Taxi Hire,1530,03-03-2021
M&M Cabs Ltd,3303-Taxi Hire,2587.5,03-03-2021
MacIntyre Academies Trust,5323-External SEN Providers Independent Sch,12331.52,03-03-2021
Maintel Europe Ltd,4606-IT Telecommunications Line Rental,839.92,03-03-2021
Maintel Europe Ltd,4606-IT Telecommunications Line Rental,6895.99,03-03-2021
Maintel Europe Ltd,4606-IT Telecommunications Line Rental,839.92,03-03-2021
MEL Research Ltd,"4503-Advertising, Publicity & Marketing",4500,03-03-2021
Midland Quarry Products Ltd,4109-Materials,651.14,03-03-2021
Midland Quarry Products Ltd,4109-Materials,721.57,03-03-2021
REDACTED PERSONAL DATA,5627-Transfer Payments Education Costs,1000,03-03-2021
Morgan Sindall Construction & Infrastructure Ltd,944A-Infr - Infrastructure Exp,610648.21,03-03-2021
REDACTED PERSONAL DATA,4507-Consultants & Specialists,5000,03-03-2021
Nesbit Brothers Ltd,3113-Home to Sch Trans Contract Buses Sec,18781,03-03-2021
New Progress Housing Association,5506-Supported Living,4751.15,03-03-2021
Nicholls Colton Group Ltd,4901-Other Expenditure,16292.65,03-03-2021
Oliveti Construction Ltd,2106-Reactive Maint Buildings,1500,03-03-2021
Open Study College,4901-Other Expenditure,707.5,03-03-2021
Planters (Leicester) Ltd,3301-Vehicle & Plant Hire,1110,03-03-2021
Planters (Leicester) Ltd,3301-Vehicle & Plant Hire,1110,03-03-2021
Planters (Leicester) Ltd,4901-Other Expenditure,1036,03-03-2021
Premier Taxis Leicester Ltd,3303-Taxi Hire,1905,03-03-2021
Premier Taxis Leicester Ltd,3303-Taxi Hire,745.5,03-03-2021
Premier Taxis Leicester Ltd,3303-Taxi Hire,2405,03-03-2021
Premier Taxis Leicester Ltd,3201-Pooled Transport Recharge Inhouse,773,03-03-2021
Premier Taxis Leicester Ltd,3201-Pooled Transport Recharge Inhouse,2190,03-03-2021
Premier Taxis Leicester Ltd,3201-Pooled Transport Recharge Inhouse,1727,03-03-2021
Premier Taxis Leicester Ltd,3201-Pooled Transport Recharge Inhouse,2838,03-03-2021
Premier Taxis Leicester Ltd,3303-Taxi Hire,841.5,03-03-2021
Premier Taxis Leicester Ltd,3303-Taxi Hire,1587.75,03-03-2021
Premier Taxis Leicester Ltd,3303-Taxi Hire,744,03-03-2021
Premier Taxis Leicester Ltd,3303-Taxi Hire,2359.5,03-03-2021
Premier Taxis Leicester Ltd,3112-Home to Sch Trans Contract Buses Prim,525,03-03-2021
Premier Taxis Leicester Ltd,3113-Home to Sch Trans Contract Buses Sec,603.5,03-03-2021
Premier Taxis Leicester Ltd,3113-Home to Sch Trans Contract Buses Sec,689.75,03-03-2021
Premier Taxis Leicester Ltd,3303-Taxi Hire,821.5,03-03-2021
Premier Taxis Leicester Ltd,3303-Taxi Hire,1406.1,03-03-2021
Premier Taxis Leicester Ltd,3303-Taxi Hire,635.5,03-03-2021
Premier Taxis Leicester Ltd,3303-Taxi Hire,2964.5,03-03-2021
Premier Taxis Leicester Ltd,3303-Taxi Hire,1052.45,03-03-2021
Premier Taxis Leicester Ltd,3303-Taxi Hire,976.5,03-03-2021
Premier Taxis Leicester Ltd,3303-Taxi Hire,1697.25,03-03-2021
Premier Taxis Leicester Ltd,3201-Pooled Transport Recharge Inhouse,1170,03-03-2021
Premier Taxis Leicester Ltd,3303-Taxi Hire,2555,03-03-2021
Premier Taxis Leicester Ltd,3203-Pooled Transport Recharge Contractors,2990,03-03-2021
Premier Taxis Leicester Ltd,3303-Taxi Hire,1775,03-03-2021
Premier Taxis Leicester Ltd,3303-Taxi Hire,1750.75,03-03-2021
Premier Taxis Leicester Ltd,3303-Taxi Hire,1075,03-03-2021
Premier Taxis Leicester Ltd,3303-Taxi Hire,1621.5,03-03-2021
Premier Taxis Leicester Ltd,3303-Taxi Hire,1971,03-03-2021
Premier Taxis Leicester Ltd,3303-Taxi Hire,1642.5,03-03-2021
Premier Taxis Leicester Ltd,3303-Taxi Hire,507.5,03-03-2021
Premier Taxis Leicester Ltd,3303-Taxi Hire,744,03-03-2021
Premier Taxis Leicester Ltd,3303-Taxi Hire,1470.69,03-03-2021
Premier Taxis Leicester Ltd,3303-Taxi Hire,1715.5,03-03-2021
Premier Taxis Leicester Ltd,3303-Taxi Hire,2263,03-03-2021
Premier Taxis Leicester Ltd,3303-Taxi Hire,945.5,03-03-2021
Premier Taxis Leicester Ltd,3303-Taxi Hire,713,03-03-2021
Premier Taxis Leicester Ltd,3303-Taxi Hire,1638.75,03-03-2021
Premier Taxis Leicester Ltd,3303-Taxi Hire,1224.5,03-03-2021
Premier Taxis Leicester Ltd,3303-Taxi Hire,1350.5,03-03-2021
Premier Taxis Leicester Ltd,3303-Taxi Hire,1971,03-03-2021
Premier Taxis Leicester Ltd,3303-Taxi Hire,2044,03-03-2021
Premier Taxis Leicester Ltd,3303-Taxi Hire,741.75,03-03-2021
Premier Taxis Leicester Ltd,3303-Taxi Hire,2086,03-03-2021
Premier Taxis Leicester Ltd,3303-Taxi Hire,1415.5,03-03-2021
Premier Taxis Leicester Ltd,3303-Taxi Hire,2384,03-03-2021
Premier Taxis Leicester Ltd,3303-Taxi Hire,1601.75,03-03-2021
Premier Taxis Leicester Ltd,3303-Taxi Hire,1899.75,03-03-2021
Premier Taxis Leicester Ltd,3303-Taxi Hire,2980,03-03-2021
Premier Taxis Leicester Ltd,3303-Taxi Hire,1850,03-03-2021
Premier Taxis Leicester Ltd,3303-Taxi Hire,1376,03-03-2021
Premier Taxis Leicester Ltd,3303-Taxi Hire,1890,03-03-2021
Premier Taxis Leicester Ltd,3303-Taxi Hire,673.75,03-03-2021
Premier Taxis Leicester Ltd,3303-Taxi Hire,1653,03-03-2021
Premier Taxis Leicester Ltd,3303-Taxi Hire,1932,03-03-2021
Premier Taxis Leicester Ltd,3303-Taxi Hire,2431.75,03-03-2021
Premier Taxis Leicester Ltd,3303-Taxi Hire,2218.4,03-03-2021
Premier Taxis Leicester Ltd,3201-Pooled Transport Recharge Inhouse,1121,03-03-2021
Premier Taxis Leicester Ltd,3303-Taxi Hire,713,03-03-2021
Premier Taxis Leicester Ltd,3303-Taxi Hire,884,03-03-2021
Premier Taxis Leicester Ltd,3303-Taxi Hire,652,03-03-2021
Premier Taxis Leicester Ltd,3303-Taxi Hire,1569.5,03-03-2021
Premier Taxis Leicester Ltd,3113-Home to Sch Trans Contract Buses Sec,2260,03-03-2021
Premier Taxis Leicester Ltd,3303-Taxi Hire,2310,03-03-2021
Premier Taxis Leicester Ltd,3303-Taxi Hire,1530,03-03-2021
Premier Taxis Leicester Ltd,3303-Taxi Hire,1645,03-03-2021
Premier Taxis Leicester Ltd,3201-Pooled Transport Recharge Inhouse,874,03-03-2021
Premier Taxis Leicester Ltd,3303-Taxi Hire,956,03-03-2021
Premier Taxis Leicester Ltd,3303-Taxi Hire,804,03-03-2021
Premier Taxis Leicester Ltd,3303-Taxi Hire,1281.25,03-03-2021
Premier Taxis Leicester Ltd,3303-Taxi Hire,2001,03-03-2021
Premier Taxis Leicester Ltd,3303-Taxi Hire,1342,03-03-2021
Premier Taxis Leicester Ltd,3303-Taxi Hire,1820,03-03-2021
Premier Taxis Leicester Ltd,3303-Taxi Hire,1680,03-03-2021
Premier Taxis Leicester Ltd,3303-Taxi Hire,1248,03-03-2021
Premier Taxis Leicester Ltd,3303-Taxi Hire,1081.5,03-03-2021
Premier Taxis Leicester Ltd,3303-Taxi Hire,2176,03-03-2021
Premier Taxis Leicester Ltd,3303-Taxi Hire,1660.6,03-03-2021
Premier Taxis Leicester Ltd,3201-Pooled Transport Recharge Inhouse,874,03-03-2021
Premier Taxis Leicester Ltd,3303-Taxi Hire,731.25,03-03-2021
Premier Taxis Leicester Ltd,3303-Taxi Hire,2194.25,03-03-2021
Premier Taxis Leicester Ltd,3303-Taxi Hire,1192,03-03-2021
Premier Taxis Leicester Ltd,3303-Taxi Hire,1219,03-03-2021
Premier Taxis Leicester Ltd,3303-Taxi Hire,1767,03-03-2021
Premier Taxis Leicester Ltd,3303-Taxi Hire,1520,03-03-2021
Premier Taxis Leicester Ltd,3303-Taxi Hire,1516.2,03-03-2021
Premier Taxis Leicester Ltd,3303-Taxi Hire,1209,03-03-2021
Premier Taxis Leicester Ltd,3303-Taxi Hire,1452.75,03-03-2021
Premier Taxis Leicester Ltd,3303-Taxi Hire,876,03-03-2021
Premier Taxis Leicester Ltd,3303-Taxi Hire,1520,03-03-2021
Premier Taxis Leicester Ltd,3201-Pooled Transport Recharge Inhouse,1168,03-03-2021
Premier Taxis Leicester Ltd,3303-Taxi Hire,1606,03-03-2021
Premier Taxis Leicester Ltd,3303-Taxi Hire,992.26,03-03-2021
Premier Taxis Leicester Ltd,3201-Pooled Transport Recharge Inhouse,954.8,03-03-2021
Premier Taxis Leicester Ltd,3201-Pooled Transport Recharge Inhouse,1532,03-03-2021
Premier Taxis Leicester Ltd,3303-Taxi Hire,682,03-03-2021
Premier Taxis Leicester Ltd,3303-Taxi Hire,1426,03-03-2021
Premier Taxis Leicester Ltd,3303-Taxi Hire,752.5,03-03-2021
Premier Taxis Leicester Ltd,3303-Taxi Hire,2409,03-03-2021
Premier Taxis Leicester Ltd,3303-Taxi Hire,1579.6,03-03-2021
Premier Taxis Leicester Ltd,3303-Taxi Hire,2135,03-03-2021
Premier Taxis Leicester Ltd,3303-Taxi Hire,1775.5,03-03-2021
Premier Taxis Leicester Ltd,3303-Taxi Hire,2275,03-03-2021
Premier Taxis Leicester Ltd,3303-Taxi Hire,914.5,03-03-2021
Premier Taxis Leicester Ltd,3303-Taxi Hire,2177.1,03-03-2021
Premier Taxis Leicester Ltd,3303-Taxi Hire,1642.5,03-03-2021
Premier Taxis Leicester Ltd,3303-Taxi Hire,701.25,03-03-2021
Premier Taxis Leicester Ltd,3303-Taxi Hire,1386,03-03-2021
Premier Taxis Leicester Ltd,3303-Taxi Hire,1365,03-03-2021
Premier Taxis Leicester Ltd,3303-Taxi Hire,1256.4,03-03-2021
Premier Taxis Leicester Ltd,3303-Taxi Hire,1788.5,03-03-2021
Premier Taxis Leicester Ltd,3303-Taxi Hire,2472.75,03-03-2021
Premier Taxis Leicester Ltd,3303-Taxi Hire,681.5,03-03-2021
Premier Taxis Leicester Ltd,3303-Taxi Hire,1723.8,03-03-2021
Premier Taxis Leicester Ltd,3303-Taxi Hire,744,03-03-2021
Premier Taxis Leicester Ltd,3303-Taxi Hire,1541,03-03-2021
Premier Taxis Leicester Ltd,3303-Taxi Hire,1421,03-03-2021
Premier Taxis Leicester Ltd,3303-Taxi Hire,506.25,03-03-2021
Premier Taxis Leicester Ltd,3303-Taxi Hire,899.06,03-03-2021
Premier Taxis Leicester Ltd,3303-Taxi Hire,604.5,03-03-2021
Premier Taxis Leicester Ltd,3303-Taxi Hire,783,03-03-2021
Premier Taxis Leicester Ltd,3303-Taxi Hire,672,03-03-2021
Premier Taxis Leicester Ltd,3303-Taxi Hire,2011.5,03-03-2021
Premier Taxis Leicester Ltd,3303-Taxi Hire,1974.25,03-03-2021
Premier Taxis Leicester Ltd,3303-Taxi Hire,1470,03-03-2021
Premier Taxis Leicester Ltd,3303-Taxi Hire,1496.5,03-03-2021
Premier Taxis Leicester Ltd,3303-Taxi Hire,1752,03-03-2021
Premier Taxis Leicester Ltd,3303-Taxi Hire,682,03-03-2021
Premier Taxis Leicester Ltd,3303-Taxi Hire,682,03-03-2021
REDACTED PERSONAL DATA  Key Cabs,3303-Taxi Hire,1849,03-03-2021
Reach Publishing Services Ltd,"4503-Advertising, Publicity & Marketing",503.82,03-03-2021
Reach Publishing Services Ltd,"4503-Advertising, Publicity & Marketing",951.66,03-03-2021
Rhys Spence Ltd ,4507-Consultants & Specialists,5000,03-03-2021
Sapphire Energy Recovery Ltd,5411-Private Contractors - General,79897.11,03-03-2021
Semi Independent House Ltd,5411-Private Contractors - General,13392,03-03-2021
Sigma Pharmaceuticals PLC,5443-Agency & Contracted Services,3368.5,03-03-2021
St Johns Chambers,4905-Legal Expenses,600,03-03-2021
T&G Services Leicestershire Ltd,5411-Private Contractors - General,1465.23,03-03-2021
T&G Services Leicestershire Ltd,5411-Private Contractors - General,1592.58,03-03-2021
Telensa Ltd,9631-Inventories - General,2475,03-03-2021
REDACTED PERSONAL DATA,5661-ASC Clients Cash (Direct) Payments,10182.85,03-03-2021
Thomas Bow Ltd,4901-Other Expenditure,7340.53,03-03-2021
Thornton Hope Consultancy Ltd,4507-Consultants & Specialists,1920.92,03-03-2021
Thornton Hope Consultancy Ltd,4507-Consultants & Specialists,16871,03-03-2021
Thornton Hope Consultancy Ltd,4507-Consultants & Specialists,14789,03-03-2021
Tom Flowers Cricket Coaching,5691-Payments to Trainees,950,03-03-2021
Total Care Matters Ltd,5411-Private Contractors - General,16063.57,03-03-2021
Total Care Matters Ltd,5411-Private Contractors - General,16053.57,03-03-2021
REDACTED PERSONAL DATA  Resolve Mediation & Development,1703-Training Expenses,13950,03-03-2021
Triniti Armstrong Griffiths,5627-Transfer Payments Education Costs,1000,03-03-2021
Waterfront Sports & Education Academy,4507-Consultants & Specialists,1000,03-03-2021
Whitehall Landscapes and Groundcare Contractors Ltd,5411-Private Contractors - General,30718.38,03-03-2021
WHM Work Connections,5323-External SEN Providers Independent Sch,3120,03-03-2021
Wilsons Coaches,3112-Home to Sch Trans Contract Buses Prim,3200,03-03-2021
Woodhall Spa Cottage Museum,5314-Voluntary Associations Other,1126,03-03-2021
Yorkshire Purchasing Oganisation,4901-Other Expenditure,5807.64,03-03-2021
Yorkshire Purchasing Oganisation,4901-Other Expenditure,2216.76,03-03-2021
36 Group Ltd,4507-Consultants & Specialists,800,04-03-2021
AB Kettleby Community Primary School Academy,6101-Support Services,500,04-03-2021
Adullam Homes Housing Association Ltd     1,5451-LCT/LAC (Not Fostered),4505.2,04-03-2021
Adullam Homes Housing Association Ltd     1,5451-LCT/LAC (Not Fostered),4505.2,04-03-2021
Adullam Homes Housing Association Ltd     1,5451-LCT/LAC (Not Fostered),4505.2,04-03-2021
Adullam Homes Housing Association Ltd     1,5451-LCT/LAC (Not Fostered),4505.2,04-03-2021
Adullam Homes Housing Association Ltd     1,5451-LCT/LAC (Not Fostered),4505.2,04-03-2021
Adullam Homes Housing Association Ltd     1,5451-LCT/LAC (Not Fostered),2294.95,04-03-2021
Adullam Homes Housing Association Ltd     1,5451-LCT/LAC (Not Fostered),4505.2,04-03-2021
Adullam Homes Housing Association Ltd     1,5451-LCT/LAC (Not Fostered),4505.2,04-03-2021
Adullam Homes Housing Association Ltd     1,5451-LCT/LAC (Not Fostered),4505.2,04-03-2021
Adullam Homes Housing Association Ltd     1,5451-LCT/LAC (Not Fostered),4505.2,04-03-2021
Adullam Homes Housing Association Ltd     1,5451-LCT/LAC (Not Fostered),4505.2,04-03-2021
Adullam Homes Housing Association Ltd     1,5451-LCT/LAC (Not Fostered),4505.2,04-03-2021
AG Barr Plc,4504-Provisions Purchases,742.82,04-03-2021
Aggregate Industries UK Ltd,4109-Materials,729.14,04-03-2021
Aggregate Industries UK Ltd,4109-Materials,716.39,04-03-2021
Aggregate Industries UK Ltd,4109-Materials,656.93,04-03-2021
Alcumus Sypol Ltd,4901-Other Expenditure,10000,04-03-2021
REDACTED PERSONAL DATA,5642-Foster Parents Fostering Allowances,540,04-03-2021
REDACTED PERSONAL DATA,5445-Adoption Support,1800,04-03-2021
REDACTED PERSONAL DATA,4507-Consultants & Specialists,1100,04-03-2021
Appropriate Adult Service Ltd,5443-Agency & Contracted Services,1414.88,04-03-2021
Arcelle Consulting,941D-L&B - Building Costs,750,04-03-2021
Asfordby Captains Close Primary School Academy T/A Discovery Schools Academies Trust,6101-Support Services,650,04-03-2021
Ashby School (LIFE Multi Academy Trust),6101-Support Services,650,04-03-2021
Ashwell Maintenance Ltd,2105-Reactive Maintenance M&E,729.93,04-03-2021
Ashwell Maintenance Ltd,2105-Reactive Maintenance M&E,822.3,04-03-2021
Ashwell Maintenance Ltd,2105-Reactive Maintenance M&E,774.72,04-03-2021
AYLESTONE GRANGE LTD&&SSARO3251,5502-Residential,12212.71,04-03-2021
AYLESTONE GRANGE LTD&&SSARO3251,5502-Residential,1619.2,04-03-2021
AYLESTONE GRANGE LTD&&SSARO3251,5502-Residential,1619.2,04-03-2021
Bains Travel,3303-Taxi Hire,875,04-03-2021
Bains Travel,3303-Taxi Hire,3285,04-03-2021
Bains Travel,3303-Taxi Hire,4015,04-03-2021
Bains Travel,3303-Taxi Hire,3230.25,04-03-2021
Bains Travel,3303-Taxi Hire,1322.1,04-03-2021
Bains Travel,3303-Taxi Hire,2929.13,04-03-2021
Bains Travel,3303-Taxi Hire,984.25,04-03-2021
Bains Travel,3303-Taxi Hire,1636.2,04-03-2021
Bains Travel,3303-Taxi Hire,968.75,04-03-2021
Battling Brook Primary School Academy,6101-Support Services,575,04-03-2021
Battling Brook Primary School Academy,6101-Support Services,650,04-03-2021
Battling Brook Primary School Academy,6101-Support Services,650,04-03-2021
Belvoir High School & Melton Vale Post 16 Centre,6101-Support Services,504,04-03-2021
Belvoir High School & Melton Vale Post 16 Centre,6101-Support Services,650,04-03-2021
Bigword Interpretting Services Ltd,4507-Consultants & Specialists,4332.96,04-03-2021
Birkett House School Academy,6101-Support Services,650,04-03-2021
Birkett House School Academy,6101-Support Services,650,04-03-2021
Birkett House School Academy,6101-Support Services,650,04-03-2021
Blackwood School (Walsall Council General Account),6101-Support Services,500,04-03-2021
Blitz Drainage Services (S F Wallace),2106-Reactive Maint Buildings,500,04-03-2021
Bosworth Academy ( Life Multi-Academy Trust),6101-Support Services,650,04-03-2021
Bosworth Academy ( Life Multi-Academy Trust),6101-Support Services,650,04-03-2021
Bosworth Academy ( Life Multi-Academy Trust),6101-Support Services,650,04-03-2021
Bosworth Academy ( Life Multi-Academy Trust),6101-Support Services,650,04-03-2021
Bottesford Parish Council,2321-Rent & Room Hire,16000,04-03-2021
Brocks Hill Primary School Academy,6101-Support Services,640,04-03-2021
Broom Leys Academy,6101-Support Services,650,04-03-2021
Caldecote Community Primary School,6101-Support Services,650,04-03-2021
Cambian Childcare Ltd,5411-Private Contractors - General,19440.12,04-03-2021
Cambian Childcare Ltd,5411-Private Contractors - General,22599.92,04-03-2021
Cambian Childcare Ltd,5411-Private Contractors - General,21799.96,04-03-2021
Cambian Childcare Ltd,5411-Private Contractors - General,21799.96,04-03-2021
Cambian Childcare Ltd,5411-Private Contractors - General,12799.92,04-03-2021
Cambian Childcare Ltd,5411-Private Contractors - General,12799.92,04-03-2021
Cambian Childcare Ltd,5411-Private Contractors - General,21799.96,04-03-2021
Carlton Academy,6101-Support Services,650,04-03-2021
Castle Rock High Academy,6101-Support Services,650,04-03-2021
Castle Rock High Academy,6101-Support Services,650,04-03-2021
Centrebus Ltd,5428-Minimum Cost Contracts,1625.75,04-03-2021
Chartwell Trust Care,5451-LCT/LAC (Not Fostered),23708.16,04-03-2021
Chartwell Trust Care,5451-LCT/LAC (Not Fostered),2540.16,04-03-2021
Christ Church & St Peters CE Primary School Academy,6101-Support Services,650,04-03-2021
Church Hill CE Junior School,6101-Support Services,650,04-03-2021
Church Hill CE Junior School,6101-Support Services,650,04-03-2021
Circle Taxis Ltd,3303-Taxi Hire,1993.75,04-03-2021
Circle Taxis Ltd,3303-Taxi Hire,527,04-03-2021
Circle Taxis Ltd,3303-Taxi Hire,697,04-03-2021
Circle Taxis Ltd,3303-Taxi Hire,1415.5,04-03-2021
Circle Taxis Ltd,3303-Taxi Hire,1606.5,04-03-2021
Circle Taxis Ltd,3303-Taxi Hire,621,04-03-2021
Circle Taxis Ltd,3303-Taxi Hire,651,04-03-2021
Circle Taxis Ltd,3303-Taxi Hire,1788.5,04-03-2021
Circle Taxis Ltd,3303-Taxi Hire,883.5,04-03-2021
Circle Taxis Ltd,3303-Taxi Hire,635.5,04-03-2021
Circle Taxis Ltd,9722-Reserved Creditors - Non Public Sector,1099,04-03-2021
Circle Taxis Ltd,3303-Taxi Hire,1953,04-03-2021
Circle Taxis Ltd,3303-Taxi Hire,1424,04-03-2021
Clear Communication,4507-Consultants & Specialists,1350,04-03-2021
Colas Ltd,3301-Vehicle & Plant Hire,1138.68,04-03-2021
Colas Ltd,4901-Other Expenditure,20037.18,04-03-2021
Colas Ltd,5411-Private Contractors - General,41979,04-03-2021
Community Academies Trust,6101-Support Services,560,04-03-2021
Complete Background Screening Ltd,4603-IT Software Licenses/Subscription,991.5,04-03-2021
Cove Care Residential Ltd,5411-Private Contractors - General,21700,04-03-2021
Cove Care Residential Ltd,5411-Private Contractors - General,19600,04-03-2021
Coventry & Warwickshire Partnership NHS Trust,5211-Other Local Authorities,543.07,04-03-2021
David Ross Education Trust Re Charnwood College,6101-Support Services,650,04-03-2021
Denbigh High School,6101-Support Services,568,04-03-2021
Derbyshire County Council,6101-Support Services,564,04-03-2021
Derbyshire County Council,1703-Training Expenses,2201.6,04-03-2021
Diverse Academies Trust T/A East Leake Academy,6101-Support Services,650,04-03-2021
DJT Surfacing Ltd,5411-Private Contractors - General,624.32,04-03-2021
DJT Surfacing Ltd,5411-Private Contractors - General,1295.35,04-03-2021
DJT Surfacing Ltd,5411-Private Contractors - General,1502.39,04-03-2021
DJT Surfacing Ltd,4901-Other Expenditure,1359.89,04-03-2021
DJT Surfacing Ltd,5411-Private Contractors - General,770.55,04-03-2021
DJT Surfacing Ltd,5411-Private Contractors - General,992.48,04-03-2021
DJT Surfacing Ltd,5411-Private Contractors - General,1259.38,04-03-2021
DJT Surfacing Ltd,5411-Private Contractors - General,1657.19,04-03-2021
Dorothy Goodman School Academy,6101-Support Services,650,04-03-2021
Dorothy Goodman School Academy,6101-Support Services,525,04-03-2021
DWELL LTD T/A LONG LEA &&SSARO3392,5502-Residential,1700,04-03-2021
Edge Training & Consultancy Ltd,1703-Training Expenses,3500,04-03-2021
Embrace Multi Academy Trust T/A Brockington College Academy (BRO),6101-Support Services,650,04-03-2021
Embrace Multi Academy Trust T/A Brockington College Academy (BRO),6101-Support Services,650,04-03-2021
Embrace Multi Academy Trust T/A Brockington College Academy (BRO),6101-Support Services,650,04-03-2021
Embrace Multi Academy Trust T/A Brockington College Academy (BRO),6101-Support Services,650,04-03-2021
Embrace Multi Academy Trust T/A Brockington College Academy (BRO),6101-Support Services,650,04-03-2021
Enderby Danemill Primary School T/A Discovery Schools Academies Trust Ltd,6101-Support Services,650,04-03-2021
Enviromontel Ltd,941G-L&B - Design Fees - External,4350,04-03-2021
Enviromontel Ltd,941G-L&B - Design Fees - External,1230,04-03-2021
Esland North Ltd,5411-Private Contractors - General,17800,04-03-2021
Esland North Ltd,5411-Private Contractors - General,17800,04-03-2021
ESPO,9642-Reserved Debtors - Non Public Sector,1035.4,04-03-2021
ESPO,4301-Protective Clothing & Uniforms,13000,04-03-2021
Falcons Primary School,6101-Support Services,650,04-03-2021
REDACTED PERSONAL DATA,4508-Medical Fees & Treatment,555,04-03-2021
Favour Recruitment Ltd T/A Favour Health Ltd,5451-LCT/LAC (Not Fostered),7228,04-03-2021
Favour Recruitment Ltd T/A Favour Health Ltd,5451-LCT/LAC (Not Fostered),6548,04-03-2021
Favour Recruitment Ltd T/A Favour Health Ltd,5451-LCT/LAC (Not Fostered),6632,04-03-2021
Favour Recruitment Ltd T/A Favour Health Ltd,5451-LCT/LAC (Not Fostered),3860,04-03-2021
FM Conway Ltd,4901-Other Expenditure,35709.84,04-03-2021
Frontline Staffing Ltd,1201-Agency Costs,1546.23,04-03-2021
Frontline Staffing Ltd,1201-Agency Costs,1546.23,04-03-2021
Frontline Staffing Ltd,1201-Agency Costs,1620.23,04-03-2021
REDACTED PERSONAL DATA,4102-General Equipment - Purchase & Repairs,1235.52,04-03-2021
REDACTED PERSONAL DATA Geoffs Taxi Cabs,3303-Taxi Hire,1482,04-03-2021
Glenmere Primary School Academy,6101-Support Services,650,04-03-2021
Glenmere Primary School Academy,6101-Support Services,650,04-03-2021
REDACTED PERSONAL DATA,3303-Taxi Hire,503.75,04-03-2021
H&B Specialist Supplies Ltd,4109-Materials,1393.5,04-03-2021
H&B Specialist Supplies Ltd,4901-Other Expenditure,1928.23,04-03-2021
REDACTED PERSONAL DATA,3303-Taxi Hire,1724.62,04-03-2021
REDACTED PERSONAL DATA,3303-Taxi Hire,1596.87,04-03-2021
Hastings High School Academy,6101-Support Services,650,04-03-2021
Haven Care Group Ltd,5411-Private Contractors - General,29820,04-03-2021
Henton & Chattell Ltd,4109-Materials,710,04-03-2021
Honeydew Healthcare Ltd,5429-Community/Domiciliary,7413.1,04-03-2021
Honeydew Healthcare Ltd,5429-Community/Domiciliary,6460,04-03-2021
Hope Hamilton C of E (aided) Primary School T/A The Vines Academy Trust,6101-Support Services,650,04-03-2021
Horizon Care & Education Group Ltd,5411-Private Contractors - General,14747.88,04-03-2021
Horizon Care & Education Group Ltd,5411-Private Contractors - General,11200,04-03-2021
Horizon Care & Education Group Ltd,5411-Private Contractors - General,13275.92,04-03-2021
Horizon Care & Education Group Ltd,5411-Private Contractors - General,11200,04-03-2021
Horizon Care & Education Group Ltd,5411-Private Contractors - General,11200,04-03-2021
Horizon Care & Education Group Ltd,5411-Private Contractors - General,13275.92,04-03-2021
Horizon Care & Education Group Ltd,5411-Private Contractors - General,11200,04-03-2021
Horizon Care & Education Group Ltd,5411-Private Contractors - General,11200,04-03-2021
Horizon Care & Education Group Ltd,5411-Private Contractors - General,8063.77,04-03-2021
REDACTED PERSONAL DATA,3303-Taxi Hire,1665,04-03-2021
Indeed UK Operations Ltd,1701-Recruitment,811.5,04-03-2021
Integrated Transport Planning Ltd,4507-Consultants & Specialists,5015,04-03-2021
Jetline Taxis Ltd,3303-Taxi Hire,1444.8,04-03-2021
Jetline Taxis Ltd,3303-Taxi Hire,1641.5,04-03-2021
Jetline Taxis Ltd,3303-Taxi Hire,930,04-03-2021
Jetline Taxis Ltd,3303-Taxi Hire,525,04-03-2021
Jetline Taxis Ltd,3303-Taxi Hire,1303.5,04-03-2021
John Ferneley College,6101-Support Services,650,04-03-2021
REDACTED PERSONAL DATA,5642-Foster Parents Fostering Allowances,1930.71,04-03-2021
Jordan Xavier Ltd,5451-LCT/LAC (Not Fostered),3870,04-03-2021
Jordan Xavier Ltd,5451-LCT/LAC (Not Fostered),2369.29,04-03-2021
Jordan Xavier Ltd,5411-Private Contractors - General,5712.86,04-03-2021
Jordan Xavier Ltd,5451-LCT/LAC (Not Fostered),714.29,04-03-2021
Karen Shannon Associates Ltd,4507-Consultants & Specialists,780,04-03-2021
Kate Cairns Associates Ltd,4102-General Equipment - Purchase & Repairs,908,04-03-2021
REDACTED PERSONAL DATA,5649-Foster Parents Transport,501.75,04-03-2021
KCH Barristers Ltd,4905-Legal Expenses,550,04-03-2021
KCH Barristers Ltd,4905-Legal Expenses,600,04-03-2021
Key2 Futures Ltd,5411-Private Contractors - General,3011.34,04-03-2021
Key2 Futures Ltd,5451-LCT/LAC (Not Fostered),3659.66,04-03-2021
Key2 Futures Ltd,5451-LCT/LAC (Not Fostered),3011.34,04-03-2021
Key2 Futures Ltd,5411-Private Contractors - General,2552.85,04-03-2021
Key2 Futures Ltd,5451-LCT/LAC (Not Fostered),3011.34,04-03-2021
Key2 Futures Ltd,5411-Private Contractors - General,3011.34,04-03-2021
Key2 Futures Ltd,5411-Private Contractors - General,2552.85,04-03-2021
REDACTED PERSONAL DATA ,4908-Grants,1998.75,04-03-2021
LCC CHILDREN'S AND FAMILY SERVICE,9668-Cash - Floats,13053.32,04-03-2021
Learn Academies Trust T/A Red Hill Field Primary School,6101-Support Services,650,04-03-2021
Leicester Moat Community College,6101-Support Services,650,04-03-2021
Lincolnshire Wolds Community Trust - St Lawrence School,6101-Support Services,650,04-03-2021
Lincolnshire Wolds Community Trust - St Lawrence School,6101-Support Services,650,04-03-2021
Local Government Association,4901-Other Expenditure,7075,04-03-2021
Loughborough CE Primary School Academy,6101-Support Services,650,04-03-2021
Loughborough CE Primary School Academy,6101-Support Services,650,04-03-2021
REDACTED PERSONAL DATA,3303-Taxi Hire,1683,04-03-2021
REDACTED PERSONAL DATA,3303-Taxi Hire,866.25,04-03-2021
REDACTED PERSONAL DATA (T&H Solutions),3113-Home to Sch Trans Contract Buses Sec,857.5,04-03-2021
Matrix Telematics Ltd,4102-General Equipment - Purchase & Repairs,4030,04-03-2021
Meadow Community Primary School,6101-Support Services,650,04-03-2021
Measham C of E Primary School Academy Trust,6101-Support Services,535,04-03-2021
Measham C of E Primary School Academy Trust,6101-Support Services,650,04-03-2021
Melton Swallowdale CP School Academy,6101-Support Services,650,04-03-2021
Midland Academies Trust,6101-Support Services,650,04-03-2021
Midland Quarry Products Ltd,4109-Materials,605.15,04-03-2021
Midland Quarry Products Ltd,4109-Materials,620.66,04-03-2021
Midland Quarry Products Ltd,4109-Materials,664.08,04-03-2021
Midlands Partnership NHS Foundation Trust,5211-Other Local Authorities,965,04-03-2021
Midlands Partnership NHS Foundation Trust,5221-Public Bodies Health,175302.92,04-03-2021
Midlands Partnership NHS Foundation Trust,5221-Public Bodies Health,14529,04-03-2021
Midlands Partnership NHS Foundation Trust,5221-Public Bodies Health,175302.92,04-03-2021
Mowbray Education Trust Ltd (Sherard Primary School),6101-Support Services,573,04-03-2021
REDACTED PERSONAL DATA,3201-Pooled Transport Recharge Inhouse,1355.52,04-03-2021
REDACTED PERSONAL DATA,3201-Pooled Transport Recharge Inhouse,897,04-03-2021
REDACTED PERSONAL DATA,3303-Taxi Hire,1002.87,04-03-2021
REDACTED PERSONAL DATA,3303-Taxi Hire,1218.95,04-03-2021
REDACTED PERSONAL DATA,3303-Taxi Hire,627.2,04-03-2021
REDACTED PERSONAL DATA,3303-Taxi Hire,801,04-03-2021
Nest,4908-Grants,2067.8,04-03-2021
Newbridge High School Academy Trust,6101-Support Services,650,04-03-2021
Nikita Autocraft,3102-Vehicle & Plant Repairs & Maintenance,926,04-03-2021
NonStop Consulting Ltd,1201-Agency Costs,1583.97,04-03-2021
NonStop Consulting Ltd,1201-Agency Costs,1498.5,04-03-2021
NonStop Consulting Ltd,1201-Agency Costs,1702,04-03-2021
NonStop Consulting Ltd,1201-Agency Costs,1665,04-03-2021
NonStop Consulting Ltd,1201-Agency Costs,1615.79,04-03-2021
Nottinghamshire County Council,6101-Support Services,650,04-03-2021
Nova Education Trust T/A Westdale Junior School,6101-Support Services,650,04-03-2021
Nova Educational Trust T/A Garibaldi College,6101-Support Services,650,04-03-2021
Orchard Mead Academy T/A The Mead Education Trust,6101-Support Services,650,04-03-2021
REDACTED PERSONAL DATA ,3303-Taxi Hire,763.4,04-03-2021
REDACTED PERSONAL DATA ,3303-Taxi Hire,760.5,04-03-2021
Parkland Primary School T/A Discovery Schools Academies Trust,6101-Support Services,650,04-03-2021
Paul S Winson Coaches Ltd,3113-Home to Sch Trans Contract Buses Sec,7949,04-03-2021
Processflows Uk Ltd,4603-IT Software Licenses/Subscription,4349.52,04-03-2021
Prudential Assurance Company Ltd,9729-Suspense (Current Liability),48218.03,04-03-2021
Purple Heart Healthcare Agency,5429-Community/Domiciliary,1161,04-03-2021
Purple Heart Healthcare Agency,5429-Community/Domiciliary,860,04-03-2021
Purple Heart Healthcare Agency,5429-Community/Domiciliary,1440,04-03-2021
R&H Technical Services Ltd,2101-R&M Buildings,598,04-03-2021
Rawlins Community College Academy,6101-Support Services,650,04-03-2021
Redmoor High School Academy Trust,6101-Support Services,650,04-03-2021
Reed Specialist Recruitment Ltd,5443-Agency & Contracted Services,4720,04-03-2021
Reed Specialist Recruitment Ltd,4507-Consultants & Specialists,1250,04-03-2021
Retford Oaks Academy,6101-Support Services,650,04-03-2021
Riverside Commuity Primary School Academy,6101-Support Services,650,04-03-2021
RJK Taxi Service,3201-Pooled Transport Recharge Inhouse,4282.25,04-03-2021
Robert Bakewell Community School Academy,6101-Support Services,650,04-03-2021
Roundhill Academy,6101-Support Services,580,04-03-2021
RPS Consulting Services Ltd,941D-L&B - Building Costs,3750,04-03-2021
Rutland County Council DC,4901-Other Expenditure,13200,04-03-2021
REDACTED PERSONAL DATA,3303-Taxi Hire,734.83,04-03-2021
REDACTED PERSONAL DATA,3303-Taxi Hire,2500,04-03-2021
Sayes Court Primary School,6101-Support Services,650,04-03-2021
Soar Valley College,6101-Support Services,650,04-03-2021
SoloProtect Ltd,4102-General Equipment - Purchase & Repairs,1071,04-03-2021
Southside Cars,3303-Taxi Hire,2457,04-03-2021
Southside Cars,3201-Pooled Transport Recharge Inhouse,2018.56,04-03-2021
St Julies High School,6101-Support Services,650,04-03-2021
St Julies High School,6101-Support Services,650,04-03-2021
St Michaels CE Academy & Childrens Centre,6101-Support Services,650,04-03-2021
St Michaels CE Academy & Childrens Centre,6101-Support Services,650,04-03-2021
St Peters C.E. Primary Academy,6101-Support Services,520,04-03-2021
St Thomas Aquinas Catholic Multi Academy Trust,6101-Support Services,650,04-03-2021
St Thomas Aquinas Catholic Multi Academy Trust,6101-Support Services,650,04-03-2021
St Thomas Aquinas Catholic Multi Academy Trust,6101-Support Services,650,04-03-2021
Stafford Leys Academy Trust,6101-Support Services,650,04-03-2021
Stage Taxis Ltd,3303-Taxi Hire,1694.5,04-03-2021
Stage Taxis Ltd,3303-Taxi Hire,1303.37,04-03-2021
Stage Taxis Ltd,3303-Taxi Hire,1489.62,04-03-2021
Stage Taxis Ltd,3303-Taxi Hire,654.12,04-03-2021
Stage Taxis Ltd,3201-Pooled Transport Recharge Inhouse,1802.92,04-03-2021
Stanton Under Bardon Community Primary School,6101-Support Services,650,04-03-2021
Stephenson Studio School Trust,6101-Support Services,650,04-03-2021
Stonehurst Lodge Outdoor Learning Centre,6101-Support Services,650,04-03-2021
Stormseal Roofing ( Nationwide ) Ltd,2101-R&M Buildings,820,04-03-2021
Streetly Academy,6101-Support Services,650,04-03-2021
Success Academy Trust T/A Richmond Primary School,6101-Support Services,650,04-03-2021
SUNBREEZE HEALTH CARE LTD T/A ASHLEE RESIIENTIAL CARE HOME&&SSARO3234,5502-Residential,1041.56,04-03-2021
Sunrise Wellbeing,4532-Other Services,2025,04-03-2021
REDACTED PERSONAL DATA,4507-Consultants & Specialists,1190,04-03-2021
REDACTED PERSONAL DATA,5443-Agency & Contracted Services,600,04-03-2021
Thomas Aveling School,6101-Support Services,650,04-03-2021
Thurnby St Lukes CE Primary School     1,6101-Support Services,650,04-03-2021
TLC Youth Care Ltd,5411-Private Contractors - General,3250,04-03-2021
Townlands CE Primary Academy,6101-Support Services,576,04-03-2021
Traffix Ltd,3301-Vehicle & Plant Hire,678.33,04-03-2021
Transforming Lives Company,5451-LCT/LAC (Not Fostered),4849.28,04-03-2021
Ullesthorpe CE Primary School (Academy),6101-Support Services,650,04-03-2021
Ulverscroft Large Print Books Ltd,4111-Books & Audio Visual,1590.6,04-03-2021
United Childrens Services Ltd,5411-Private Contractors - General,14000,04-03-2021
United Childrens Services Ltd,5411-Private Contractors - General,14000,04-03-2021
Universal Container Services Ltd,941D-L&B - Building Costs,6231,04-03-2021
University of Leicester,4507-Consultants & Specialists,563.4,04-03-2021
VE Psychological Solutions Ltd T/A The Purple House Clinic,5445-Adoption Support,540,04-03-2021
Veolia Environmental Services (UK) LTD,5411-Private Contractors - General,31763.24,04-03-2021
Vines Multi Academy Trust T/A All Saints C of E Primary School,6101-Support Services,650,04-03-2021
Western Power Distribution,4901-Other Expenditure,6121.25,04-03-2021
Wigston Academy Trust,6101-Support Services,650,04-03-2021
Wigston Academy Trust,6101-Support Services,500,04-03-2021
Wollaston School,6101-Support Services,650,04-03-2021
Woodlands Ltd,5411-Private Contractors - General,17799.88,04-03-2021
Woodside Lodge Outdoor Learning Centre Ltd,6101-Support Services,650,04-03-2021
Wreake Valley Academy,6101-Support Services,588,04-03-2021
5ab Care Ltd,5411-Private Contractors - General,19979.96,05-03-2021
A1 Comfy Car LTD,3112-Home to Sch Trans Contract Buses Prim,698.25,05-03-2021
A1 Leicester Cars,3303-Taxi Hire,1436.4,05-03-2021
A1 Leicester Cars,3303-Taxi Hire,586.88,05-03-2021
A1 Leicester Cars,3303-Taxi Hire,627.37,05-03-2021
A1 Leicester Cars,3303-Taxi Hire,611.47,05-03-2021
AA Taxis,3303-Taxi Hire,1440,05-03-2021
AA Taxis,3303-Taxi Hire,983.25,05-03-2021
Acorn Care & Education Ltd (Sales),5411-Private Contractors - General,17249.29,05-03-2021
Acorn Care & Education Ltd (Sales),5411-Private Contractors - General,7500,05-03-2021
Acorn Care & Education Ltd (Sales),5411-Private Contractors - General,17249.29,05-03-2021
Acorn Care & Education Ltd (Sales),5411-Private Contractors - General,17736.43,05-03-2021
Acorn Care & Education Ltd (Sales),5411-Private Contractors - General,17595,05-03-2021
Aggregate Industries UK Ltd,4109-Materials,867.78,05-03-2021
Aggregate Industries UK Ltd,4109-Materials,1380.15,05-03-2021
REDACTED PERSONAL DATA,4508-Medical Fees & Treatment,1295,05-03-2021
REDACTED PERSONAL DATA,3303-Taxi Hire,768.8,05-03-2021
REDACTED PERSONAL DATA,3303-Taxi Hire,2536.47,05-03-2021
Ashwell Maintenance Ltd,2105-Reactive Maintenance M&E,4186,05-03-2021
Ashwell Maintenance Ltd,2102-R&M Buildings Service Contracts,600,05-03-2021
Ashwell Maintenance Ltd,2105-Reactive Maintenance M&E,545.35,05-03-2021
Ashwell Maintenance Ltd,2102-R&M Buildings Service Contracts,565,05-03-2021
Ausden Clark Ltd,3113-Home to Sch Trans Contract Buses Sec,3325,05-03-2021
Ausden Clark Ltd,3112-Home to Sch Trans Contract Buses Prim,3230,05-03-2021
Ausden Clark Ltd,3112-Home to Sch Trans Contract Buses Prim,3800,05-03-2021
Ausden Clark Ltd,3113-Home to Sch Trans Contract Buses Sec,3800,05-03-2021
Ausden Clark Ltd,3112-Home to Sch Trans Contract Buses Prim,3447.17,05-03-2021
Ausden Clark Ltd,3113-Home to Sch Trans Contract Buses Sec,3420,05-03-2021
Ausden Clark Ltd,3113-Home to Sch Trans Contract Buses Sec,3077.43,05-03-2021
Ausden Clark Ltd,3113-Home to Sch Trans Contract Buses Sec,2882.68,05-03-2021
Ausden Clark Ltd,3113-Home to Sch Trans Contract Buses Sec,2877.36,05-03-2021
Ausden Clark Ltd,3113-Home to Sch Trans Contract Buses Sec,3420,05-03-2021
Ausden Clark Ltd,3113-Home to Sch Trans Contract Buses Sec,3420,05-03-2021
Ausden Clark Ltd,3113-Home to Sch Trans Contract Buses Sec,3002,05-03-2021
Ausden Clark Ltd,3113-Home to Sch Trans Contract Buses Sec,3515,05-03-2021
Ausden Clark Ltd,3113-Home to Sch Trans Contract Buses Sec,3420,05-03-2021
Ausden Clark Ltd,3112-Home to Sch Trans Contract Buses Prim,4750,05-03-2021
Automatic Access Ltd,2105-Reactive Maintenance M&E,787,05-03-2021
REDACTED PERSONAL DATA Topflight City Cars,3112-Home to Sch Trans Contract Buses Prim,694.48,05-03-2021
Bagnalls Coaches,3113-Home to Sch Trans Contract Buses Sec,6870.5,05-03-2021
Barnardos,4901-Other Expenditure,6339,05-03-2021
Biffa Waste Services Ltd,5411-Private Contractors - General,14660.4,05-03-2021
Biffa Waste Services Ltd,5411-Private Contractors - General,8097.03,05-03-2021
Biffa Waste Services Ltd,5411-Private Contractors - General,4543.77,05-03-2021
Biffa Waste Services Ltd,5411-Private Contractors - General,15479.42,05-03-2021
Biffa Waste Services Ltd,5411-Private Contractors - General,937.84,05-03-2021
Biffa Waste Services Ltd,5425-Specialist Disposal Costs Paint,4990.18,05-03-2021
Biffa Waste Services Ltd,5411-Private Contractors - General,42874.94,05-03-2021
Billson Consulting LTD,1703-Training Expenses,2500,05-03-2021
Blaby Mill Stables Ltd,4908-Grants,1688.75,05-03-2021
Bolinda UK Ltd,4111-Books & Audio Visual,1016.74,05-03-2021
Bosworth Academy ( Life Multi-Academy Trust),3113-Home to Sch Trans Contract Buses Sec,1896,05-03-2021
Boughton Engineering Ltd,3102-Vehicle & Plant Repairs & Maintenance,694.5,05-03-2021
Bredon School (2002) Ltd,5323-External SEN Providers Independent Sch,12145,05-03-2021
Browns Of Enderby Ltd,941F-L&B - Design Fees - Internal (E&T),800,05-03-2021
Burbage Parish Council,944A-Infr - Infrastructure Exp,5396.74,05-03-2021
Cambian Childcare Ltd,5411-Private Contractors - General,22599.92,05-03-2021
Care2Assess Ltd,5443-Agency & Contracted Services,6240,05-03-2021
CCS Media Ltd,4603-IT Software Licenses/Subscription,2984.25,05-03-2021
Central Construction Services Ltd,4109-Materials,566.4,05-03-2021
Central Construction Services Ltd,4109-Materials,571.2,05-03-2021
Central Construction Services Ltd,4109-Materials,2849.4,05-03-2021
Central Construction Services Ltd,4109-Materials,574.8,05-03-2021
Central Construction Services Ltd,4109-Materials,565.2,05-03-2021
Central Surgery,5447-General Practioners,1000,05-03-2021
Centrebus Ltd,5428-Minimum Cost Contracts,106374.13,05-03-2021
Certas Energy UK Ltd T/A Pace Fuelcare Ltd,"9633-Inventories - LHD Fuel Red, Gas Oil",2637,05-03-2021
Certas Energy UK Ltd T/A Pace Fuelcare Ltd,"9634-Inventories - LHD Fuel White, Diesel",9303.5,05-03-2021
Charnwood Borough Council,1712-Occupational Health,1396.36,05-03-2021
Charnwood Borough Council,2321-Rent & Room Hire,12286.52,05-03-2021
Charnwood Borough Council,2321-Rent & Room Hire,2627.33,05-03-2021
Charnwood Borough Council,2321-Rent & Room Hire,12286.52,05-03-2021
Charnwood Borough Council,2321-Rent & Room Hire,2627.33,05-03-2021
Connevans Ltd,1712-Occupational Health,1555.52,05-03-2021
Connex Education Partnership Ltd,5323-External SEN Providers Independent Sch,775,05-03-2021
Context To Cognition,4507-Consultants & Specialists,1920,05-03-2021
Crown Cars (Leic) Ltd,3201-Pooled Transport Recharge Inhouse,654.05,05-03-2021
Crown Cars (Leic) Ltd,3303-Taxi Hire,712.22,05-03-2021
Crown Cars (Leic) Ltd,3303-Taxi Hire,1607.66,05-03-2021
Crown Cars (Leic) Ltd,3303-Taxi Hire,861.6,05-03-2021
REDACTED PERSONAL DATA ,5503-Shared Lives residential,600,05-03-2021
Direct Cabs,3113-Home to Sch Trans Contract Buses Sec,750,05-03-2021
DJT Surfacing Ltd,4901-Other Expenditure,624.76,05-03-2021
DJT Surfacing Ltd,4901-Other Expenditure,1569.58,05-03-2021
DJT Surfacing Ltd,4901-Other Expenditure,540.6,05-03-2021
DJT Surfacing Ltd,4901-Other Expenditure,2333.93,05-03-2021
Dodds Solicitors LLP,4905-Legal Expenses,1698.9,05-03-2021
Dodds Solicitors LLP,"4503-Advertising, Publicity & Marketing",4501.73,05-03-2021
Driven By Riide Ltd T/A  ADT Taxis,3113-Home to Sch Trans Contract Buses Sec,735,05-03-2021
Driven By Riide Ltd T/A  ADT Taxis,3303-Taxi Hire,823.38,05-03-2021
Driven By Riide Ltd T/A  ADT Taxis,3303-Taxi Hire,2534.5,05-03-2021
Driven By Riide Ltd T/A  ADT Taxis,3303-Taxi Hire,1494.5,05-03-2021
Driven By Riide Ltd T/A  ADT Taxis,3303-Taxi Hire,1854.66,05-03-2021
Driven By Riide Ltd T/A  ADT Taxis,3303-Taxi Hire,742.5,05-03-2021
Driven By Riide Ltd T/A  ADT Taxis,3303-Taxi Hire,751.71,05-03-2021
Driven By Riide Ltd T/A  ADT Taxis,3303-Taxi Hire,697.5,05-03-2021
Driven By Riide Ltd T/A  ADT Taxis,3303-Taxi Hire,800.7,05-03-2021
Driven By Riide Ltd T/A  ADT Taxis,3303-Taxi Hire,1585.8,05-03-2021
Driven By Riide Ltd T/A  ADT Taxis,3303-Taxi Hire,651,05-03-2021
Driven By Riide Ltd T/A  ADT Taxis,3201-Pooled Transport Recharge Inhouse,542.34,05-03-2021
Driven By Riide Ltd T/A  ADT Taxis,3303-Taxi Hire,832,05-03-2021
Driven By Riide Ltd T/A  ADT Taxis,3303-Taxi Hire,1824.64,05-03-2021
REDACTED PERSONAL DATA,5503-Shared Lives residential,600,05-03-2021
EH Smith (Builders Merchants) Ltd,4901-Other Expenditure,910,05-03-2021
Elliotts Coaches Ltd,3112-Home to Sch Trans Contract Buses Prim,2613.26,05-03-2021
Eon Energy Solutions Ltd Highway Lighting,5411-Private Contractors - General,760,05-03-2021
Eon Energy Solutions Ltd Highway Lighting,5411-Private Contractors - General,760,05-03-2021
Eon Energy Solutions Ltd Highway Lighting,5411-Private Contractors - General,561,05-03-2021
ESPO,2401-Cleaning Materials,986,05-03-2021
FCC Recycling (UK) Ltd,5411-Private Contractors - General,52866.14,05-03-2021
FCC Recycling (UK) Ltd,5411-Private Contractors - General,76672.3,05-03-2021
FCC Recycling (UK) Ltd,5411-Private Contractors - General,54957.47,05-03-2021
Focus Consultants 2010 LLP,2111-Glazing Survey & Fire Risk Ass,1500,05-03-2021
Ford & Slater of Leicester,3102-Vehicle & Plant Repairs & Maintenance,1015,05-03-2021
G&MJ Crouch & Son Ltd T/A Crouch Recovery,3102-Vehicle & Plant Repairs & Maintenance,750,05-03-2021
GAE Smith (Holdings) Ltd T/A Casepak,5411-Private Contractors - General,882.64,05-03-2021
REDACTED PERSONAL DATA,3113-Home to Sch Trans Contract Buses Sec,3774.54,05-03-2021
GE Service Group Ltd,2501-Grounds Maintenance,679.5,05-03-2021
Generation Youth,5323-External SEN Providers Independent Sch,3105,05-03-2021
REDACTED PERSONAL DATA,3203-Pooled Transport Recharge Contractors,685,05-03-2021
REDACTED PERSONAL DATA,3303-Taxi Hire,554.85,05-03-2021
REDACTED PERSONAL DATA Knighton Cars,3303-Taxi Hire,1970.25,05-03-2021
H&B Specialist Supplies Ltd,4901-Other Expenditure,602.93,05-03-2021
Harborough District Council,5211-Other Local Authorities,26406.72,05-03-2021
REDACTED PERSONAL DATA,5503-Shared Lives residential,600,05-03-2021
Hays Specialist Recruitment Limited,4507-Consultants & Specialists,2275,05-03-2021
Hays Specialist Recruitment Limited,4507-Consultants & Specialists,2275,05-03-2021
Higham Lane School,5212-OLEA Recoupment,2209.68,05-03-2021
Higham Lane School,5212-OLEA Recoupment,3560.04,05-03-2021
Higham Lane School,5212-OLEA Recoupment,2332.44,05-03-2021
Higham Lane School,5212-OLEA Recoupment,3232.68,05-03-2021
Highfields Associates Ltd,3201-Pooled Transport Recharge Inhouse,560,05-03-2021
Highfields Associates Ltd,3303-Taxi Hire,620,05-03-2021
Hinckley & Bosworth Borough Council,2321-Rent & Room Hire,5128.25,05-03-2021
Hinckley & Bosworth Borough Council,2321-Rent & Room Hire,4215,05-03-2021
HM Revenue & Customs     1,9721-Creditors Control,536.7,05-03-2021
HM Revenue & Customs     1,9721-Creditors Control,797.1,05-03-2021
HM Revenue & Customs     1,9721-Creditors Control,596.7,05-03-2021
Hope House School,5411-Private Contractors - General,2845.98,05-03-2021
HR Training & Development Ltd,1703-Training Expenses,1500,05-03-2021
REDACTED PERSONAL DATA,4908-Grants,1109.25,05-03-2021
REDACTED PERSONAL DATA,5503-Shared Lives residential,600,05-03-2021
REDACTED PERSONAL DATA,4507-Consultants & Specialists,1400,05-03-2021
REDACTED PERSONAL DATA Grants Executive Travel,3303-Taxi Hire,1690.5,05-03-2021
REDACTED PERSONAL DATA Grants Executive Travel,3303-Taxi Hire,972,05-03-2021
REDACTED PERSONAL DATA,3303-Taxi Hire,1900,05-03-2021
JR Allen & Sons Ltd,2101-R&M Buildings,14926,05-03-2021
REDACTED PERSONAL DATA Kams Car,3303-Taxi Hire,822.5,05-03-2021
REDACTED PERSONAL DATA Kams Car,3303-Taxi Hire,757.5,05-03-2021
REDACTED PERSONAL DATA Kams Car,3303-Taxi Hire,1094.82,05-03-2021
REDACTED PERSONAL DATA Kams Car,3303-Taxi Hire,1708.1,05-03-2021
REDACTED PERSONAL DATA Kams Car,3303-Taxi Hire,1225,05-03-2021
REDACTED PERSONAL DATA,4507-Consultants & Specialists,1110,05-03-2021
REDACTED PERSONAL DATA,4507-Consultants & Specialists,965.4,05-03-2021
Key2 Futures Ltd,5451-LCT/LAC (Not Fostered),2914.2,05-03-2021
REDACTED PERSONAL DATA,5503-Shared Lives residential,600,05-03-2021
REDACTED PERSONAL DATA,5503-Shared Lives residential,1200,05-03-2021
La Fosse Associates,4507-Consultants & Specialists,8400,05-03-2021
La Fosse Associates,4507-Consultants & Specialists,12000,05-03-2021
Lady Jane Grey Academy,6101-Support Services,650,05-03-2021
REDACTED PERSONAL DATA,5503-Shared Lives residential,900,05-03-2021
Liberty HSC Ltd,5443-Agency & Contracted Services,7750,05-03-2021
Lincolnshire County Council,1703-Training Expenses,1275,05-03-2021
REDACTED PERSONAL DATA,5503-Shared Lives residential,600,05-03-2021
Loughborough University,4605-IT Equipment Rental,646.95,05-03-2021
REDACTED PERSONAL DATA A2Z,3303-Taxi Hire,2190,05-03-2021
REDACTED PERSONAL DATA A2Z,3303-Taxi Hire,2372.5,05-03-2021
REDACTED PERSONAL DATA A2Z,3303-Taxi Hire,1916.25,05-03-2021
REDACTED PERSONAL DATA A2Z,3112-Home to Sch Trans Contract Buses Prim,534.75,05-03-2021
REDACTED PERSONAL DATA A2Z,3303-Taxi Hire,2307.5,05-03-2021
REDACTED PERSONAL DATA A2Z,3303-Taxi Hire,2245,05-03-2021
REDACTED PERSONAL DATA,5503-Shared Lives residential,900,05-03-2021
Maintel Europe Ltd,4606-IT Telecommunications Line Rental,23550.13,05-03-2021
Matchtech Group Plc,5443-Agency & Contracted Services,39001.5,05-03-2021
Melton Borough Council,2321-Rent & Room Hire,2661.51,05-03-2021
Micks Minibus,3113-Home to Sch Trans Contract Buses Sec,6132.28,05-03-2021
Midland Quarry Products Ltd,4109-Materials,631.02,05-03-2021
Midland Quarry Products Ltd,4109-Materials,649.7,05-03-2021
Midland Quarry Products Ltd,4109-Materials,651.14,05-03-2021
Midland Quarry Products Ltd,4109-Materials,652.58,05-03-2021
Midland Quarry Products Ltd,4109-Materials,930.52,05-03-2021
Morgan Sindall Construction & Infrastructure Ltd,944A-Infr - Infrastructure Exp,17825.03,05-03-2021
Mountsorrel Taxis Ltd,3303-Taxi Hire,1861.5,05-03-2021
Mountsorrel Taxis Ltd,3303-Taxi Hire,692.89,05-03-2021
Mountsorrel Taxis Ltd,3303-Taxi Hire,833.05,05-03-2021
Mountsorrel Taxis Ltd,3303-Taxi Hire,1617.87,05-03-2021
Mountsorrel Taxis Ltd,3303-Taxi Hire,2013.85,05-03-2021
Mountsorrel Taxis Ltd,3201-Pooled Transport Recharge Inhouse,770.83,05-03-2021
Mountsorrel Taxis Ltd,3303-Taxi Hire,2635.66,05-03-2021
Mountsorrel Taxis Ltd,3303-Taxi Hire,987.83,05-03-2021
REDACTED PERSONAL DATA,3303-Taxi Hire,2121.12,05-03-2021
REDACTED PERSONAL DATA,3203-Pooled Transport Recharge Contractors,1293.75,05-03-2021
REDACTED PERSONAL DATA,5503-Shared Lives residential,600,05-03-2021
REDACTED PERSONAL DATA Mastercabs,3303-Taxi Hire,588,05-03-2021
REDACTED PERSONAL DATA Mastercabs,3303-Taxi Hire,795,05-03-2021
REDACTED PERSONAL DATA Mastercabs,3303-Taxi Hire,2442,05-03-2021
REDACTED PERSONAL DATA Mastercabs,3303-Taxi Hire,612.25,05-03-2021
REDACTED PERSONAL DATA Mastercabs,3303-Taxi Hire,1100.75,05-03-2021
REDACTED PERSONAL DATA Mastercabs,3303-Taxi Hire,1609.5,05-03-2021
REDACTED PERSONAL DATA Mastercabs,3303-Taxi Hire,1782,05-03-2021
REDACTED PERSONAL DATA,4908-Grants,550,05-03-2021
Nether Hall School,5212-OLEA Recoupment,18333.3,05-03-2021
Network Ventures Ltd T/A Pertemps Professional Recruitment Ltd,1201-Agency Costs,1513.71,05-03-2021
New College Leicester,4908-Grants,2000,05-03-2021
Nikita Autocraft,3102-Vehicle & Plant Repairs & Maintenance,1276.5,05-03-2021
NMI Taxi Ltd,3303-Taxi Hire,735.71,05-03-2021
NMI Taxi Ltd,3303-Taxi Hire,520,05-03-2021
NMI Taxi Ltd,3303-Taxi Hire,569.62,05-03-2021
NMI Taxi Ltd,3303-Taxi Hire,1176.87,05-03-2021
NMI Taxi Ltd,3303-Taxi Hire,1603.12,05-03-2021
NMI Taxi Ltd,3303-Taxi Hire,1295,05-03-2021
NMI Taxi Ltd,3303-Taxi Hire,550.68,05-03-2021
No 5 Chambers Ltd,4507-Consultants & Specialists,36000,05-03-2021
NonStop Consulting Ltd,1201-Agency Costs,1583.97,05-03-2021
North Charnwood GP Community Network Ltd,5447-General Practioners,31192,05-03-2021
North West Leicestershire District Council,5211-Other Local Authorities,8228,05-03-2021
North West Leicestershire District Council,5211-Other Local Authorities,23019,05-03-2021
Norton Taxi Services Ltd,3112-Home to Sch Trans Contract Buses Prim,750,05-03-2021
P&R Cars     1,3303-Taxi Hire,2127.5,05-03-2021
Pat Moores Consultancy Ltd,4532-Other Services,775,05-03-2021
Paul S Winson Coaches Ltd,5428-Minimum Cost Contracts,3858.78,05-03-2021
Paul S Winson Coaches Ltd,5428-Minimum Cost Contracts,7871.96,05-03-2021
REDACTED PERSONAL DATA  ,941D-L&B - Building Costs,22691.55,05-03-2021
REDACTED PERSONAL DATA  ,3303-Taxi Hire,635.5,05-03-2021
R & R Taxis Ltd,3303-Taxi Hire,2574.91,05-03-2021
R & R Taxis Ltd,3303-Taxi Hire,1647.09,05-03-2021
R & R Taxis Ltd,3303-Taxi Hire,1479.81,05-03-2021
R & R Taxis Ltd,3201-Pooled Transport Recharge Inhouse,2398.8,05-03-2021
REDACTED PERSONAL DATA ,5503-Shared Lives residential,600,05-03-2021
R&H Technical Services Ltd,2101-R&M Buildings,1146,05-03-2021
Reach Publishing Services Ltd,"4503-Advertising, Publicity & Marketing",671.76,05-03-2021
Reach Publishing Services Ltd,"4503-Advertising, Publicity & Marketing",1231.56,05-03-2021
Red Sector Recruitment Ltd,1201-Agency Costs,1572.5,05-03-2021
Red Sector Recruitment Ltd,1201-Agency Costs,1593.75,05-03-2021
Red Sector Recruitment Ltd,1201-Agency Costs,1577.9,05-03-2021
Rentokil Initial UK Ltd,2403-Refuse Removal & Hygiene Disposal,2824.56,05-03-2021
Rentokil Initial UK Ltd,2403-Refuse Removal & Hygiene Disposal,1412.28,05-03-2021
Ricoh UK Ltd,4102-General Equipment - Purchase & Repairs,1373.51,05-03-2021
REDACTED PERSONAL DATA  ,3201-Pooled Transport Recharge Inhouse,620,05-03-2021
REDACTED PERSONAL DATA  ,3303-Taxi Hire,1314,05-03-2021
REDACTED PERSONAL DATA  ,3303-Taxi Hire,1704,05-03-2021
REDACTED PERSONAL DATA  ,3201-Pooled Transport Recharge Inhouse,984,05-03-2021
REDACTED PERSONAL DATA  ,3201-Pooled Transport Recharge Inhouse,2014,05-03-2021
REDACTED PERSONAL DATA  ,3303-Taxi Hire,647.5,05-03-2021
REDACTED PERSONAL DATA  ,3303-Taxi Hire,1176,05-03-2021
Roberts Coaches Ltd,5428-Minimum Cost Contracts,20243.06,05-03-2021
Roberts Coaches Ltd,5428-Minimum Cost Contracts,1796.46,05-03-2021
Roberts Coaches Ltd,5428-Minimum Cost Contracts,10756.05,05-03-2021
Robinsons Coach Travel,3113-Home to Sch Trans Contract Buses Sec,8244.1,05-03-2021
REDACTED PERSONAL DATA  ,3113-Home to Sch Trans Contract Buses Sec,1080,05-03-2021
REDACTED PERSONAL DATA  ,5503-Shared Lives residential,600,05-03-2021
REDACTED PERSONAL DATA,3303-Taxi Hire,2026.88,05-03-2021
Sense Children & Adult Services,5325-External SEN Providers Top Up Fee,9056.67,05-03-2021
Sense Children & Adult Services,5325-External SEN Providers Top Up Fee,84784.37,05-03-2021
Sense Children & Adult Services,5325-External SEN Providers Top Up Fee,38030.68,05-03-2021
Sense Children & Adult Services,5325-External SEN Providers Top Up Fee,17723.01,05-03-2021
Sense Children & Adult Services,5325-External SEN Providers Top Up Fee,19015.34,05-03-2021
Sense Children & Adult Services,5325-External SEN Providers Top Up Fee,53953.69,05-03-2021
REDACTED PERSONAL DATA Adams Transport,3113-Home to Sch Trans Contract Buses Sec,603.65,05-03-2021
REDACTED PERSONAL DATA Adams Transport,3303-Taxi Hire,1697.41,05-03-2021
Sight & Sound Technology Ltd,4606-IT Telecommunications Line Rental,900,05-03-2021
Soft Touch Arts Ltd,5323-External SEN Providers Independent Sch,882,05-03-2021
Soil Association Ltd,5314-Voluntary Associations Other,37500,05-03-2021
Spaldings (Uk) Ltd,4109-Materials,1359.15,05-03-2021
Speakeasy Therapy Ltd,4901-Other Expenditure,862.5,05-03-2021
Speakeasy Therapy Ltd,4901-Other Expenditure,1045,05-03-2021
Streetwise,4507-Consultants & Specialists,920,05-03-2021
Suez Recycling & Recovery UK Ltd,5422-Specialist Disposal Costs Wood,599.55,05-03-2021
REDACTED PERSONAL DATA,3123-Home to Sch Trans Personal Trans Budgets,1000,05-03-2021
T.E.C.K (Teaching Educationally Creative Kids) Ltd,5323-External SEN Providers Independent Sch,15031.56,05-03-2021
REDACTED PERSONAL DATA Stoneygate Taxis,3303-Taxi Hire,2664,05-03-2021
Tarpaulin Repair Company Ltd,"4501-Exhibitions, Displays, Events & Performances",730,05-03-2021
Telefonica O2 Uk Ltd,943C-VPE - Equipment (Furniture/ IT) Exp,15330,05-03-2021
Tilhill Forestry Ltd T/A UPM Tilhill,2104-Other Premises expenses,1238,05-03-2021
TLC Youth Care Ltd,5411-Private Contractors - General,3250,05-03-2021
Total Computer Networks Ltd,4601-IT Equipment Hardware,3512,05-03-2021
Total Environmental & Mechanical Services Ltd T/A Teams Ltd,2101-R&M Buildings,798,05-03-2021
Trinity Roc Ltd,5429-Community/Domiciliary,3501.8,05-03-2021
Triple A Taxis,3303-Taxi Hire,596,05-03-2021
Trishgangolli Ltd,4508-Medical Fees & Treatment,555,05-03-2021
VE Psychological Solutions Ltd T/A The Purple House Clinic,5445-Adoption Support,1365,05-03-2021
REDACTED PERSONAL DATA  Marshall,3303-Taxi Hire,1004.5,05-03-2021
REDACTED PERSONAL DATA ,3303-Taxi Hire,2449.5,05-03-2021
REDACTED PERSONAL DATA ,3303-Taxi Hire,685.85,05-03-2021
REDACTED PERSONAL DATA ,3201-Pooled Transport Recharge Inhouse,2472.23,05-03-2021
Volvo Group UK Limited,3102-Vehicle & Plant Repairs & Maintenance,2938,05-03-2021
Volvo Group UK Limited,3102-Vehicle & Plant Repairs & Maintenance,657.4,05-03-2021
Wellbeing Education,5443-Agency & Contracted Services,17500,05-03-2021
Whitwick St John the Baptist CE Primary School,4901-Other Expenditure,691.9,05-03-2021
WHM Work Connections,5323-External SEN Providers Independent Sch,726.25,05-03-2021
XMA Ltd,4601-IT Equipment Hardware,2350,05-03-2021
XMA Ltd,943C-VPE - Equipment (Furniture/ IT) Exp,26358,05-03-2021
XMA Ltd,943C-VPE - Equipment (Furniture/ IT) Exp,26358,05-03-2021
ABBERDALE LIMITED&&SSAROE40419,5502-Residential,2420,08-03-2021
ABBEY HEALTHCARE (AARON COURT) LTD&&SSARO2996,5502-Residential,2285.71,08-03-2021
ABBEY HEALTHCARE (AARON COURT) LTD&&SSARO2996,5502-Residential,55914.32,08-03-2021
ABBEY HEALTHCARE (AARON COURT) LTD&&SSARO2996,5502-Residential,585,08-03-2021
ABBEYFIELDS EXTRA CARE&&SSAROE52835,5502-Residential,16554,08-03-2021
ABBEYFIELDS EXTRA CARE&&SSAROE52835,5502-Residential,3217.5,08-03-2021
ABBOTSFORD CARE LTD&&SSARO2339,5502-Residential,4541.72,08-03-2021
ABBOTSFORD CARE LTD&&SSARO2339,5502-Residential,605,08-03-2021
ABBOTSFORD CARE LTD&&SSARO2339,5502-Residential,1492.85,08-03-2021
ABBOTSFORD CARE LTD&&SSARO2339,5502-Residential,691.43,08-03-2021
ABBOTSFORD CARE LTD&&SSARO2339,5502-Residential,3857.14,08-03-2021
ABBOTSFORD CARE LTD&&SSARO2339,5502-Residential,34148.96,08-03-2021
ACACIA CARE (NOTTINGHAM) LTD T/A KINGSFIELD COURT&&SSARO8540,5502-Residential,1542.86,08-03-2021
ACACIA CARE (NOTTINGHAM) LTD T/A KINGSFIELD COURT&&SSARO8540,5502-Residential,2957.15,08-03-2021
ACACIA CARE (NOTTINGHAM) LTD T/A KINGSFIELD COURT&&SSARO8540,5502-Residential,1950,08-03-2021
ACACIA CARE (NOTTINGHAM) LTD T/A KINGSFIELD COURT&&SSARO8540,5502-Residential,29827.72,08-03-2021
ADEN HOUSE LTD&&SSARO2794,5502-Residential,2330.24,08-03-2021
ADJUVO CARE & SUPPORT&&SSARO2208,5502-Residential,30210.88,08-03-2021
AHAVAH HEALTHCARELTD&&SSARO1638,5502-Residential,2094.25,08-03-2021
AHAVAH HEALTHCARELTD&&SSARO1638,5502-Residential,11727.8,08-03-2021
Air IT,4602-IT Services,2180.8,08-03-2021
AKARI CARE LTD T/A SEALE PASTURES&&SSAROE47014,5502-Residential,7338.68,08-03-2021
ALA CARE LTD&&SSAROE1044,5502-Residential,1206,08-03-2021
ALA CARE LTD&&SSAROE1044,5502-Residential,2367.43,08-03-2021
ALA CARE LTD&&SSAROE1044,5502-Residential,29385.28,08-03-2021
ALA CARE LTD&&SSAROE1044,5502-Residential,516.86,08-03-2021
ALA CARE LTD&&SSAROE182,5502-Residential,2067.43,08-03-2021
ALA CARE LTD&&SSAROE182,5502-Residential,1722.86,08-03-2021
ALA CARE LTD&&SSAROE182,5502-Residential,45080,08-03-2021
ALA CARE LTD&&SSAROE40269,5502-Residential,700,08-03-2021
ALA CARE LTD&&SSAROE40269,5502-Residential,29626.68,08-03-2021
ALEXANDRA CARE (LEICESTER) LTD DANE VIEW CARE HOME&&SSARO5677,5502-Residential,16220,08-03-2021
ALICE HOUSE (FLOLLIE INVESTMENTS LIMITED)&&SSARO5641,5502-Residential,2425.2,08-03-2021
ALLAG CARE LIMITED  GWENDOLEN&&SSARO3351,5502-Residential,8455.02,08-03-2021
ALLAG CARE LTD T/A SYCAMORE COTTAGE&&SSAROE44469,5502-Residential,15172.32,08-03-2021
ALLCONTRAST LTD & GIVECARE LTD&&SSAROE2374,5502-Residential,3180,08-03-2021
ALLCONTRAST LTD & GIVECARE LTD&&SSAROE2374,5502-Residential,63734.36,08-03-2021
ALPHA CARE MANAGEMENT SERVICES NO 2 LTD&&SSARO1217,5501-Nursing,5758.04,08-03-2021
AMBERWOOD CARE HOME LTD&&SSAROE40398,5502-Residential,17380,08-03-2021
AMICURA LTD&&SSARO6112,5502-Residential,2316,08-03-2021
AMS CARE SERVICE LTD&&SSARO2055 T/A APRIL COTTAGE,5502-Residential,7344,08-03-2021
APPLE HOUSE LEICESTER LTD&&SSAROE185,5502-Residential,7732,08-03-2021
APPLE HOUSE LEICESTER LTD&&SSAROE185,5502-Residential,947.57,08-03-2021
ARK CARE LODGE&&SSAROE699,5502-Residential,8715.56,08-03-2021
Arval UK Ltd,3302-Vehicle Operational Lease,6584.45,08-03-2021
ASD SUPPORT LIMITED &&AASRO 6167,5502-Residential,20000,08-03-2021
ASH TREE&&SSAROE424,5502-Residential,20201.76,08-03-2021
ASHBY COURT NURSING HOME&&SSAROE40195,5502-Residential,4064.32,08-03-2021
ASHBY COURT NURSING HOME&&SSAROE40195,5502-Residential,33468.52,08-03-2021
ASHBY COURT NURSING HOME&&SSAROE40195,5502-Residential,4064.32,08-03-2021
ASHBY COURT NURSING HOME&&SSAROE40195,5502-Residential,2757.93,08-03-2021
ASHBY COURT NURSING HOME&&SSAROE40195,5502-Residential,2185.71,08-03-2021
ASHLEIGH NURSING HOME&&SSAROE40196,5502-Residential,950.71,08-03-2021
ASHLEIGH NURSING HOME&&SSAROE40196,5501-Nursing,7124,08-03-2021
ASPIRE HEALTH & CARE LTD CHILLWEL HOUSE&&SSARO3332,5502-Residential,2503.2,08-03-2021
AUTISM CARE (UK) LTD&&SSAROE1335,5502-Residential,9392,08-03-2021
Avantus People Solutions Ltd,4909-Subscriptions,4500,08-03-2021
AVERY HOMES GRANTHAM LTD&&SSARO1825,5502-Residential,2324,08-03-2021
AVERY HOMES HINCKLEY LTD&&SSARO2898,5502-Residential,4423.29,08-03-2021
AVERY HOMES HINCKLEY LTD&&SSARO2898,5502-Residential,67964,08-03-2021
AVVISIM CARE LTD T/A FERNLEIGH CARE HOME&&SSAROE40336,5502-Residential,1712,08-03-2021
AVVISIM CARE LTD T/A FERNLEIGH CARE HOME&&SSAROE40336,5502-Residential,1459.43,08-03-2021
AVVISIM CARE LTD T/A FERNLEIGH CARE HOME&&SSAROE40336,5502-Residential,34040,08-03-2021
AVVISIM CARE LTD T/A FERNLEIGH CARE HOME&&SSAROE40336,5502-Residential,2578.57,08-03-2021
AYLESHAM COURT NURSING HOME&&SSAROE59696,5502-Residential,1542.85,08-03-2021
AYLESHAM COURT NURSING HOME&&SSAROE59696,5502-Residential,8871.4,08-03-2021
AYLESHAM COURT NURSING HOME&&SSAROE59696,5502-Residential,61565.82,08-03-2021
BADBY PARK LTD&&SSARO3105,5502-Residential,5358.21,08-03-2021
BARCHESTER HEALTHCARE HOME LTD T/A MARPLE DALE WINDSOR&&SSAROE350,5502-Residential,2679.72,08-03-2021
BARCHESTER HEALTHCARE HOMES LTD LANCASTER GRANGE&&SARO3353,5502-Residential,2700,08-03-2021
BARCHESTER HEALTHCARE HOMES LTD OVERSLADE HOUSE RECEIPTS ACCOUNT&&SSARO3228,5501-Nursing,2419.2,08-03-2021
BARCHESTER HEALTHCARE HOMES LTD&&SAROE59408,5501-Nursing,6375.12,08-03-2021
BENTLEY HOUSE LTD&&SSAROE140,5501-Nursing,2108.12,08-03-2021
BERRYSTEAD NURSING & RESIDENTIAL  HOME LTD&&SSAROE2040,5502-Residential,39768,08-03-2021
BERRYSTEAD NURSING & RESIDENTIAL  HOME LTD&&SSAROE2040,5502-Residential,6514.3,08-03-2021
BESTCARE LTD&&SSAROE1281,5502-Residential,37340.8,08-03-2021
BESTCARE LTD&&SSAROE1281,5502-Residential,2420,08-03-2021
BESTCARE LTD&&SSAROE1281,5502-Residential,7278,08-03-2021
BESTCARE LTD&&SSAROE1281,5502-Residential,605,08-03-2021
BETHEL RESIDENTIAL HOME&&SSAROE40459,5502-Residential,24120,08-03-2021
BETHESDA CAREHOMES LTD TA PINGLENOOK&&SSAROE40346,5502-Residential,12060,08-03-2021
Biogen (UK) Ltd,5432-Specialist Disposal Costs Food Waste,537.12,08-03-2021
BIRCHESTER MEDICARE LTD&&SSARO2290,5502-Residential,4000,08-03-2021
BIRCHWOOD RETIREMENT HOME LTD&&SSARO3408,5502-Residential,2292,08-03-2021
BIRSTALL CARE SERVICES LTD&&SSARO3339,5502-Residential,1242,08-03-2021
BIRSTALL CARE SERVICES LTD&&SSARO3339,5502-Residential,30610.24,08-03-2021
Blaby District Council,9729-Suspense (Current Liability),1139.46,08-03-2021
BLUE OPAL LTD T/A THE MEADOWS&&SSARO5335,5502-Residential,4838.96,08-03-2021
BRIARS & ROSE LODGE&&SSAROE1126,5502-Residential,21721.24,08-03-2021
BRIARS&&SSAROE425,5502-Residential,19364,08-03-2021
BRIDGEFOOT DEVELOPMENTS LTD JASON HYLTON COURT&&SSARO3277,5501-Nursing,1700,08-03-2021
BROADLANDS RESIDENTIAL CARE HOME&&SARO8403,5502-Residential,2140,08-03-2021
BROADOAK GRANGE RESIDENTIAL HOME&&SSAROE40338,5502-Residential,21708,08-03-2021
BROADOAK LODGE&&SSAROE66479,5502-Residential,32376,08-03-2021
BROOK HOUSE&&SSAROE40313,5502-Residential,1996.43,08-03-2021
BROOK HOUSE&&SSAROE40313,5502-Residential,12780,08-03-2021
BROOKSIDE RESIDENTIAL CAR HOME (BRAYBROOKE) LTD&&SSARO6026,5502-Residential,3540,08-03-2021
BROOKVALE&&SSAROE56,5502-Residential,2523.16,08-03-2021
BS&CK SIDHU T/A OLDBURY GRANGE NURSING HOME&&SSAROE76868,5501-Nursing,10640,08-03-2021
BUPA CARE HOMES T/A THE SPRNGS CARE HOME&&SARO3407,5502-Residential,2216,08-03-2021
CARE 24 7 (BODNANT HOUSE)&&SSARO3231,5502-Residential,17965.6,08-03-2021
CARE 24 7 LEICESTER LTD&&SSARO3330,5502-Residential,5152,08-03-2021
CARE HOME CONSULTANCY SERVICE LTD T/A RUSHEY MEAD MANOR&&SARO1913,5502-Residential,951.55,08-03-2021
CARE HOME CONSULTANCY SERVICE LTD T/A RUSHEY MEAD MANOR&&SARO1913,5502-Residential,11198.72,08-03-2021
 REDACTED PERSONAL DATA,4901-Other Expenditure,1250,08-03-2021
 REDACTED PERSONAL DATA,5642-Foster Parents Fostering Allowances,670.29,08-03-2021
CEDAR HOUSE CARE HOME LTD&&SSAROE40413,5502-Residential,3300,08-03-2021
CEDAR HOUSE CARE HOME LTD&&SSAROE40413,5502-Residential,21288,08-03-2021
CEDAR HOUSE CARE HOME LTD&&SSAROE40413,5502-Residential,3300,08-03-2021
CEDAR HOUSE CARE HOME LTD&&SSAROE40413,5502-Residential,1650,08-03-2021
CHARNWOOD PARK&&SAROE40270,5502-Residential,15132,08-03-2021
CHARTWELL TRUST CARE PLC&&SSARO2345,5502-Residential,8326.76,08-03-2021
CHARTWELL TRUST CARE PLC&&SSARO2345,5502-Residential,17597.28,08-03-2021
CHATSWORTH LODGE (INDIGO CARE SERVICES)&&SSARO6013,5502-Residential,2254.56,08-03-2021
CHERRE RESIDENTIAL CARE LTD  REDACTED PERSONAL DATA&&SSAROE40391,5502-Residential,17690.24,08-03-2021
CHERRYTREE CARE LTD&&SSAROE40314,5502-Residential,24959.71,08-03-2021
CHESTNUTS ARNESBY LTD&&SSAROE40279,5502-Residential,40755.25,08-03-2021
CHESTNUTS ARNESBY LTD&&SSAROE40279,5502-Residential,884.21,08-03-2021
CHESTNUTS ARNESBY LTD&&SSAROE40279,5502-Residential,2891.52,08-03-2021
CHURCH FARM NURSING HOME LTD&&SSARO6033,5502-Residential,3240,08-03-2021
CHURCH FARM NURSING HOME LTD&&SSAROE61089,5502-Residential,3200,08-03-2021
REDACTED PERSONAL DATA,4905-Legal Expenses,3820,08-03-2021
CLAREGRANGE LTD&&SSAROE47217,5502-Residential,4912,08-03-2021
CLAREGRANGE TRADING LTD REDACTED PERSONAL DATA &&SARO5107,5502-Residential,2367.86,08-03-2021
CLAREGRANGE TRADING LTD REDACTED PERSONAL DATA &&SARO5107,5502-Residential,1700,08-03-2021
CLAREGRANGE TRADING LTD REDACTED PERSONAL DATA &&SARO5107,5502-Residential,603,08-03-2021
CLAREGRANGE TRADING LTD REDACTED PERSONAL DATA &&SARO5107,5502-Residential,3157.14,08-03-2021
CLAREGRANGE TRADING LTD REDACTED PERSONAL DATA &&SARO5107,5502-Residential,53616.9,08-03-2021
CLAREGRANGE TRADING LTD REDACTED PERSONAL DATA &&SARO5107,5502-Residential,971.43,08-03-2021
CLAREGRANGE TRADING LTD REDACTED PERSONAL DATA &&SARO5107,5502-Residential,1206,08-03-2021
CLAREGRANGE TRADING LTD REDACTED PERSONAL DATA &&SARO5107,5502-Residential,850,08-03-2021
CLAREGRANGE TRADING LTD REDACTED PERSONAL DATA &&SARO5107,5502-Residential,1700,08-03-2021
CLAREGRANGE TRADING LTD REDACTED PERSONAL DATA &&SARO5107,5502-Residential,2153.57,08-03-2021
CLARENDON MEWS CARE LTD&&SSARO3356,5502-Residential,1178.57,08-03-2021
CLARENDON MEWS CARE LTD&&SSARO3356,5502-Residential,3480,08-03-2021
CLARENDON MEWS CARE LTD&&SSARO3356,5502-Residential,31027.89,08-03-2021
CLEARVISION (GB) T/A CHATAWAY RESIDENTIAL HOME LTD&&SSAROE40294,5502-Residential,14556,08-03-2021
COMMUNITY LIVING PROJECT&&SSAROE56011,5502-Residential,2004.58,08-03-2021
COMMUNITY LIVING PROJECT&&SSAROE56011,5502-Residential,2815.43,08-03-2021
COMMUNITY LIVING PROJECT&&SSAROE56011,5502-Residential,27280.6,08-03-2021
CONDOVER COLLEGE LTD&&SSAROE1331,5502-Residential,20814.12,08-03-2021
CONIFER LODGE&&SSAROE40296,5502-Residential,13220,08-03-2021
COUNTRY VIEW NURSING HOME&&SSARO2452,5502-Residential,1087.5,08-03-2021
COUNTRY VIEW NURSING HOME&&SSARO2452,5502-Residential,932.14,08-03-2021
Cove Care Residential Ltd,5411-Private Contractors - General,21700,08-03-2021
CRAEGMOOR FACILITIES CO LTD RE CHARNWOOD LODGE&&SSAROE346,5502-Residential,16042.92,08-03-2021
CRAEGMOOR FACILITIES CO LTD RE HALIFAX DRIVE&&SSAROE29669A,5502-Residential,19057,08-03-2021
CRAEGMOOR FACILITIES CO LTD RE MAR LODGE&&SSAROE66405,5502-Residential,17980.68,08-03-2021
CRAEGMOOR FACILITIES CO LTD RE MEADOWS&&SSAROE40227,5502-Residential,42638.04,08-03-2021
CRAEGMOOR FACILITIES CO LTD RE MEADOWS&&SSAROE40227,5502-Residential,6038,08-03-2021
CRAEGMOOR FACILITIES COMPANY LTD&&SSAROE8,5502-Residential,12503.6,08-03-2021
CSS LTD T/A GRETTON HOMES&&SARO3372,5502-Residential,7183.48,08-03-2021
CYGNET (DH) LTD T/A TOLLER ROAD&&SARO5736,5502-Residential,17800.8,08-03-2021
CYGNET HEALTH T/A 15 THE SYCAMORES&&SARO8633,5502-Residential,15306.48,08-03-2021
DAVID LEWIS CENTRE&&SSAROE72,5502-Residential,2282.44,08-03-2021
REDACTED PERSONAL DATA  Small Steps,5445-Adoption Support,870,08-03-2021
REDACTED PERSONAL DATA  Small Steps,5445-Adoption Support,640,08-03-2021
DELIOS Training and Consultancy Ltd,1703-Training Expenses,1200,08-03-2021
Department of Work and Pensions CMS Employers,9729-Suspense (Current Liability),2085.96,08-03-2021
REDACTED PERSONAL DATA ,5502-Residential,3950.24,08-03-2021
DIGINEW LTD&&SSARO3320,5502-Residential,2238.76,08-03-2021
DIGNUS HEALTHCARE LTD T/A 39 SCHOOL LANE&&SARO6181,5502-Residential,7040,08-03-2021
DIWALI LTD&&SSAROE40425,5502-Residential,4960,08-03-2021
REDACTED PERSONAL DATA  MOAT HOUSE RETIREMENT LTD&&SSAROE276,5502-Residential,6150.23,08-03-2021
REDACTED PERSONAL DATA  MOAT HOUSE RETIREMENT LTD&&SSAROE276,5502-Residential,42889.48,08-03-2021
REDACTED PERSONAL DATA  MOAT HOUSE RETIREMENT LTD&&SSAROE276,5502-Residential,1819.76,08-03-2021
DUNELM (NORTH EAST AUTISM SOCIETY)&&SSAROE66277,5502-Residential,7885.32,08-03-2021
DUNSFORD (LINKAGE COMMUNITY TRUST)&&SSARO5724,5502-Residential,3019.68,08-03-2021
DWP Debt Management,9729-Suspense (Current Liability),2327.19,08-03-2021
EGERTON LODGE&&SSAROE40415,5502-Residential,30386.72,08-03-2021
ELIZABETH FITZROY HOMES (HUWS)&&SSARO3075,5502-Residential,3269.4,08-03-2021
ELLIOTT RESIDENTIAL CARE HOME&&SSAROE40471,5502-Residential,1092,08-03-2021
ELLIOTT RESIDENTIAL CARE HOME&&SSAROE40471,5502-Residential,2420,08-03-2021
ELLIOTT RESIDENTIAL CARE HOME&&SSAROE40471,5502-Residential,1092,08-03-2021
Embrace Multi Academy Trust T/A Manorfield Church of England Primary School (MAN),9641-Debtors Control,10449.79,08-03-2021
Environment Agency,2104-Other Premises expenses,1835.2,08-03-2021
Eon Energy Solutions Ltd Highway Lighting,5411-Private Contractors - General,1520,08-03-2021
Eon Energy Solutions Ltd Highway Lighting,5411-Private Contractors - General,760,08-03-2021
Eon Energy Solutions Ltd Highway Lighting,5411-Private Contractors - General,760,08-03-2021
Eon Energy Solutions Ltd Highway Lighting,5411-Private Contractors - General,760,08-03-2021
Eon Energy Solutions Ltd Highway Lighting,5411-Private Contractors - General,1520,08-03-2021
Eon Energy Solutions Ltd Highway Lighting,5411-Private Contractors - General,939,08-03-2021
ESPA LTD&&SSAROE247,5502-Residential,16523.92,08-03-2021
Eurovia Infrastructure Ltd,941G-L&B - Design Fees - External,1814.11,08-03-2021
EVINGTON GRANGE LTD&&SARO3365,5502-Residential,3131.88,08-03-2021
EVINGTON GRANGE LTD&&SARO3365,5502-Residential,5503.24,08-03-2021
REDACTED PERSONAL DATA MARSTON COURT LTD&&SSAROE1054,5502-Residential,3364.28,08-03-2021
REDACTED PERSONAL DATA MARSTON COURT LTD&&SSAROE1054,5502-Residential,25819.16,08-03-2021
FIELD HOUSE NURSING HOME LTD&&SSARO2972,5502-Residential,3567.36,08-03-2021
FIRSTMILE LTD&&SSAROE642,5502-Residential,516.86,08-03-2021
FIRSTMILE LTD&&SSAROE642,5502-Residential,44480,08-03-2021
FIRSTSMILE LTD&&SSAROE6,5502-Residential,25296,08-03-2021
FIRSTSMILE LTD&&SSAROE6,5502-Residential,2412,08-03-2021
FIRSTSMILE LTD&&SSAROE6,5502-Residential,1033.71,08-03-2021
FIRSTSMILE LTD&&SSAROE6,5502-Residential,1059,08-03-2021
FIRSTSMILE LTD&&SSAROE6,5502-Residential,1378.29,08-03-2021
FIRSTSMILE LTD&&SSAROE6,5502-Residential,1206,08-03-2021
FOUNDATION CARE LTD T/A MANTON HALL&&SSAROE40333,5502-Residential,1880,08-03-2021
FOUR SEASONS (EVEDALE LTD) RE THE WILLOWS&&SSAROE40243,5502-Residential,3457.14,08-03-2021
FOUR SEASONS (EVEDALE LTD) RE THE WILLOWS&&SSAROE40243,5502-Residential,971.43,08-03-2021
FOUR SEASONS (EVEDALE LTD) RE THE WILLOWS&&SSAROE40243,5502-Residential,15196.43,08-03-2021
FOUR SEASONS (EVEDALE LTD) RE THE WILLOWS&&SSAROE40243,5502-Residential,48700.49,08-03-2021
FOUR SEASONS LTD T/A THE OAKS AND LITTLE OAKS&&SSARO5384,5502-Residential,1164,08-03-2021
FOUR SEASONS LTD T/A THE OAKS AND LITTLE OAKS&&SSARO5384,5502-Residential,2328,08-03-2021
FREEDOM CARE LTD T/A PRIVATE ROAD   HUGGLESCOTE&&SARO3385,5502-Residential,24760,08-03-2021
FSD Academy,5691-Payments to Trainees,950,08-03-2021
FSHC NEWCO LTD T/A THE LAWNS CARE HOME&&SSAROE76864,5502-Residential,18808,08-03-2021
FUTURE DIRECTIONS CIC&&SSARO3273,5502-Residential,3227.52,08-03-2021
GARENDON RESIDENTIAL HOME&&SSAROE46112,5502-Residential,25428,08-03-2021
GB CARE LTD&&SSAROE928,5502-Residential,1766,08-03-2021
GB CARE LTD&&SSAROE928,5502-Residential,514.29,08-03-2021
GB CARE LTD&&SSAROE928,5502-Residential,2914.29,08-03-2021
GB CARE LTD&&SSAROE928,5502-Residential,1285.71,08-03-2021
GB CARE LTD&&SSAROE928,5502-Residential,1814.29,08-03-2021
GB CARE LTD&&SSAROE928,5502-Residential,16610,08-03-2021
GB CARE LTD&&SSAROE928,5502-Residential,571.43,08-03-2021
GENESIS HOMES (ESSEX) LTD&&SSARO1089,5502-Residential,775.29,08-03-2021
GENESIS HOMES (ESSEX) LTD&&SSARO1089,5502-Residential,2314.29,08-03-2021
GENESIS HOMES (ESSEX) LTD&&SSARO1089,5502-Residential,6556.29,08-03-2021
GENESIS HOMES (ESSEX) LTD&&SSARO1089,5502-Residential,41308.51,08-03-2021
GENESIS HOMES (ESSEX) LTD&&SSARO1089,5502-Residential,1809,08-03-2021
GERAINT HOUSE LTD T/A GERAINT HOUSE&&SSARO8965,5502-Residential,3877.04,08-03-2021
GRANGEWOOD LODGE&&SSAROE44233,5502-Residential,4953.44,08-03-2021
REDACTED PERSONAL DATA,5502-Residential,18492.24,08-03-2021
GREEN LEAF HEALTHCARE LTD T/A LIVESEY LODGE CARE HOME&&SSAROE40457,5502-Residential,14516,08-03-2021
REDACTED PERSONAL DATA LYNCROFT CARE HOME&&SSAROE909,5502-Residential,2324.56,08-03-2021
HABILIS OPERATIONS LTD T/A WYNGATE&&SARO9294,5502-Residential,2084,08-03-2021
HALCYON LIVING 11 LTD T/A WAINFLEET&&SSARO9505,5502-Residential,2084,08-03-2021
Harborough District Council,4507-Consultants & Specialists,32505.5,08-03-2021
HARLEY HOUSE CARE HOME LIMITED&&SSAROE40260,5502-Residential,1092.85,08-03-2021
HARLEY HOUSE CARE HOME LIMITED&&SSAROE40260,5502-Residential,850,08-03-2021
HARLEY HOUSE CARE HOME LIMITED&&SSAROE40260,5502-Residential,1457.14,08-03-2021
HARLEY HOUSE CARE HOME LIMITED&&SSAROE40260,5502-Residential,850,08-03-2021
HARLEY HOUSE CARE HOME LIMITED&&SSAROE40260,5502-Residential,3157.15,08-03-2021
HARLEY HOUSE CARE HOME LIMITED&&SSAROE40260,5502-Residential,3400,08-03-2021
HAVEN NURSING HOME&&SARO2319,5501-Nursing,2267.84,08-03-2021
HAWTHORNE CARE LTD&&SSAROE1360,5502-Residential,1439.29,08-03-2021
HAWTHORNE CARE LTD&&SSAROE1360,5502-Residential,20052,08-03-2021
HAYES COURT&&SARO9268,5502-Residential,3137.76,08-03-2021
HC ONE C/O ACACIA CARE HOME&&SSARO3299,5502-Residential,2266.48,08-03-2021
HC ONE LTD RE BEAUVALE CARE HOME&&SSAROE48787,5502-Residential,2380,08-03-2021
HC ONE LTD RE CEDAR COURT&&SSAROE43896,5502-Residential,775.29,08-03-2021
HC ONE LTD RE CEDAR COURT&&SSAROE43896,5502-Residential,760,08-03-2021
HC ONE LTD RE CEDAR COURT&&SSAROE43896,5502-Residential,59512.37,08-03-2021
HC ONE LTD RE HARLEY GRANGE&&SSAROE40253,5501-Nursing,13263.72,08-03-2021
HC ONE LTD RE HINCKLEY PARK&&SSAROE24,5502-Residential,4237.58,08-03-2021
HC ONE LTD RE HINCKLEY PARK&&SSAROE24,5502-Residential,34761.08,08-03-2021
HC ONE LTD RE MAGNA&&SSAROE68590,5502-Residential,6843.72,08-03-2021
HC ONE LTD RE MAGNA&&SSAROE68590,5502-Residential,36794.84,08-03-2021
HC ONE LTD RE MAGNA&&SSAROE68590,5502-Residential,757.11,08-03-2021
HC ONE LTD RE THE WILLOWS&&SSAROE40262,5502-Residential,36077.6,08-03-2021
HC ONE OVAL LTD T/AS GREY FERRER&&SSAROE61119,5502-Residential,1310,08-03-2021
HC ONE OVAL LTD T/AS GREY FERRER&&SSAROE61119,5502-Residential,42972,08-03-2021
HC ONE RE THE ROWANS&&SSAROE53508,5502-Residential,1722.86,08-03-2021
HC ONE RE THE ROWANS&&SSAROE53508,5502-Residential,8097.43,08-03-2021
HC ONE RE THE ROWANS&&SSAROE53508,5502-Residential,75412.04,08-03-2021
HC ONE RE THE ROWANS&&SSAROE53508,5502-Residential,516.86,08-03-2021
HC ONE RE THE ROWANS&&SSAROE53508,5502-Residential,1206,08-03-2021
HC1 LTD RE BANKWOOD&&SARO9230,5502-Residential,2310.28,08-03-2021
HEATHCOTES CARE LTD&&SSAROE1336,5502-Residential,48468.04,08-03-2021
HEATHCOTES CARE LTD&&SSAROE1336,5502-Residential,39268,08-03-2021
HEATHCOTES CARE LTD&&SSAROE1336,5502-Residential,9688.32,08-03-2021
HEATHCOTES M LTD T/A HEATHCOTES DERBY&&SSARO3402,5502-Residential,4887.32,08-03-2021
HEATHCOTES M LTD T/A HEATHCOTES ENRIGHT LODGE &&SARO 9436,5502-Residential,8987.88,08-03-2021
HEATHCOTES M LTD&&SSARO2756,5502-Residential,28626.08,08-03-2021
HEATHCOTES M LTD&&SSARO2756,5502-Residential,30981.6,08-03-2021
HEATHCOTES M LTD&&SSARO3394,5502-Residential,1141.67,08-03-2021
HEATHCOTES M LTD&&SSARO3394,5502-Residential,5972.96,08-03-2021
HEATHCOTES MOULTON&&SSARO3290,5502-Residential,3892.42,08-03-2021
HEATHCOTES&&SSARO2014,5502-Residential,42510.74,08-03-2021
HELPING HANDS CARE HOME LTD T/A GOODWOOD ORCHARDS&&SSAROE40251,5502-Residential,2144,08-03-2021
Her Majestys Courts & Tribunals Service,9729-Suspense (Current Liability),529,08-03-2021
HERITAGE CARE&&SSAROE929,5501-Nursing,9843.48,08-03-2021
HEROIC CARE LTD T/A JUBILEE VILLA&&SSAROE749,5502-Residential,43500.8,08-03-2021
HFT (CROMWELL CRESCENT)&&SSARO3174,5502-Residential,6868,08-03-2021
HICARE LTD&&SSAROE438,5502-Residential,2420,08-03-2021
HICARE LTD&&SSAROE438,5502-Residential,6984,08-03-2021
REDACTED PERSONAL DATA CHERRE RESIDENTIAL HOME&&SSAROE40427,5502-Residential,5790.49,08-03-2021
HOLLYBANK TRUST&&SSAROE756,5502-Residential,5519.65,08-03-2021
HOME FROM HOME RESIDENTIAL CARE LTD&&SSAROE421,5502-Residential,2412,08-03-2021
HOMEFIELD COLLEGE LTD&&SSAROE40389,5502-Residential,3032,08-03-2021
HOMEFIELD COLLEGE LTD&&SSAROE40389,5502-Residential,4017.52,08-03-2021
HOMEFIELD&&SSARO3168,5501-Nursing,1991.95,08-03-2021
HOPSCOTCH SOLUTIONS LTD&&SSARO2119,5502-Residential,11805.72,08-03-2021
Hopwells Ltd,4504-Provisions Purchases,12029.38,08-03-2021
HR CARE HOMES LTD&&SSARO1363,5502-Residential,5202.28,08-03-2021
HUNTERS LODGE RETIREMENT HOME LTD&&SSAROE40396,5502-Residential,3314.3,08-03-2021
HUNTERS LODGE RETIREMENT HOME LTD&&SSAROE40396,5502-Residential,51337.24,08-03-2021
HUNTERS LODGE RETIREMENT HOME LTD&&SSAROE40396,5502-Residential,800,08-03-2021
HUSKARDS NEW CARE LTD&&SSARO1910,5501-Nursing,2584,08-03-2021
IDEAL CARE HOMES (NUMBER ONE) LTD&&SSARO2786,5502-Residential,5084,08-03-2021
IDEAL CARE HOMES LTD MAIN ACCOUNT T/A WOODTHORPE LODGE&&SARO9362,5502-Residential,1728.57,08-03-2021
IDEAL CARE HOMES LTD MAIN ACCOUNT T/A WOODTHORPE LODGE&&SARO9362,5502-Residential,4400,08-03-2021
IDEAL CARE HOMES LTD MAIN ACCOUNT T/A WOODTHORPE LODGE&&SARO9362,5502-Residential,2200,08-03-2021
IDEAL CARE HOMES LTD T/AS MOUNTVIEW CARE HOME&&SSARO3374,5502-Residential,12096,08-03-2021
IDEAL CAREHOMES NUMBER 1 LTD T/A COPPICE LODGE&&SSARO3303,5502-Residential,2738,08-03-2021
REDACTED PERSONAL DATA,5509-Shared Lives Day Services,2026,08-03-2021
REDACTED PERSONAL DATA,4532-Other Services,1152,08-03-2021
JADE BLOSSOM LTD T/A THE GRANGE NURSING & RESIDENTIAL HOME&&SSARO3403,5502-Residential,2239.71,08-03-2021
JADE BLOSSOM LTD T/A THE GRANGE NURSING & RESIDENTIAL HOME&&SSARO3403,5502-Residential,6251.43,08-03-2021
JADE BLOSSOM LTD T/A THE GRANGE NURSING & RESIDENTIAL HOME&&SSARO3403,5502-Residential,69962.28,08-03-2021
JADE BLOSSOM LTD T/A THE GRANGE NURSING & RESIDENTIAL HOME&&SSARO3403,5502-Residential,1378.29,08-03-2021
James Baxter Haulage Ltd,5411-Private Contractors - General,4417.88,08-03-2021
JAMES TERRY COURT ROYAL MASONIC BENEVOLENT INSTITUTION OOC&&SARO3331,5502-Residential,2669.12,08-03-2021
Jane Ralphs Consulting,4507-Consultants & Specialists,1000,08-03-2021
REDACTED PERSONAL DATA WILLOWS PRIVATENURSING HOME BUSINESS CURRENT A/C&&SSAROE40242,5502-Residential,1728.57,08-03-2021
REDACTED PERSONAL DATA WILLOWS PRIVATENURSING HOME BUSINESS CURRENT A/C&&SSAROE40242,5502-Residential,602,08-03-2021
REDACTED PERSONAL DATA WILLOWS PRIVATENURSING HOME BUSINESS CURRENT A/C&&SSAROE40242,5502-Residential,42189.16,08-03-2021
Jodders Inc Ltd T/A The Castle Inn,4908-Grants,2500,08-03-2021
KAPIL CARE HOMES LTD T/A CARISBROOKE MANOR&&SSARO9314,5502-Residential,646.28,08-03-2021
KAPIL CARE HOMES LTD T/A CARISBROOKE MANOR&&SSARO9314,5502-Residential,2010.64,08-03-2021
KEENGLEN CARE HOMES LTD&&SSARO3220,5502-Residential,20775.4,08-03-2021
Key2 Futures Ltd,5451-LCT/LAC (Not Fostered),1860,08-03-2021
KIBWORTH KNOLL LTD&&SSAROE76184,5502-Residential,848,08-03-2021
KIBWORTH KNOLL LTD&&SSAROE76184,5502-Residential,12560,08-03-2021
KINGLEY PARTNERSHIP LTD T/A KINGLEY HOUSE&&SSARO1232,5502-Residential,17123.72,08-03-2021
KINGLY CARE PARTNERSHIP&&SSARO3198,5502-Residential,5020.08,08-03-2021
KINGLY CARE PARTNERSHIP&&SSARO3232,5502-Residential,3516.16,08-03-2021
KINGS RESIDENTIAL CARE HOMES LTD&&SSARO1726,5502-Residential,34548.88,08-03-2021
KINGSWOOD LODGE&&SSAROE40284,5502-Residential,26864,08-03-2021
KIRBY GRANGE LTD (KIRBY GRANGE RESIDENTIAL HOME)&&SSAROE40286,5502-Residential,2078.57,08-03-2021
KIRBY GRANGE LTD (KIRBY GRANGE RESIDENTIAL HOME)&&SSAROE40286,5502-Residential,40168,08-03-2021
KISIMUL GROUP LTD&&SSARO5691,5502-Residential,6084.56,08-03-2021
KISIMUL GROUP LTD&&SSARO5691,5502-Residential,12920.32,08-03-2021
KISIMUL GROUP LTD&&SSARO5691,5502-Residential,11074.56,08-03-2021
KNIGHTON MANOR LTD&&SSAROE68249,5502-Residential,2184,08-03-2021
KROSS INVESTEMENT LTD T/A BELTON HOUSE&&SSAROE74367,5502-Residential,2044,08-03-2021
Labwaste Ltd T/A Tradebe,5411-Private Contractors - General,836.7,08-03-2021
LANDERMEADS INVESTMENTS LTD&&SSAROE51305,5502-Residential,2231.12,08-03-2021
LANGDALE HOUSE LTD (EVERDALE GRANGE LTD)&&SSARO3390,5501-Nursing,2314.29,08-03-2021
LANGDALE HOUSE LTD (EVERDALE GRANGE LTD)&&SSARO3390,5502-Residential,857.86,08-03-2021
LANGDALE HOUSE LTD (EVERDALE GRANGE LTD)&&SSARO3390,5502-Residential,13985.72,08-03-2021
LANGDALE HOUSE LTD (EVERDALE GRANGE LTD)&&SSARO3390,5502-Residential,57027.03,08-03-2021
LANGDALE HOUSE LTD (EVERDALE GRANGE LTD)&&SSARO3390,8406-Residential - NHS Income,1292.14,08-03-2021
LANGDALE HOUSE LTD (EVERDALE GRANGE LTD)&&SSARO3390,5502-Residential,1414.28,08-03-2021
LANGDALE HOUSE LTD&&SSAROE40271,5502-Residential,861.43,08-03-2021
LANGDALE HOUSE LTD&&SSAROE40271,5502-Residential,1800,08-03-2021
LANGDALE HOUSE LTD&&SSAROE40271,5502-Residential,8630.85,08-03-2021
LANGDALE HOUSE LTD&&SSAROE40271,5502-Residential,63088.64,08-03-2021
LANGDALE HOUSE LTD&&SSAROE40271,5502-Residential,2239.71,08-03-2021
LANGDALE HOUSE LTD&&SSAROE40271,5502-Residential,900,08-03-2021
LANGDALE VIEW LTD&&SSARO1356,5502-Residential,771.43,08-03-2021
LANGDALE VIEW LTD&&SSARO1356,5502-Residential,1800,08-03-2021
LANGDALE VIEW LTD&&SSARO1356,5502-Residential,1827.35,08-03-2021
LANGDALE VIEW LTD&&SSARO1356,5502-Residential,29472.04,08-03-2021
REDACTED PERSONAL DATA,5502-Residential,5391.36,08-03-2021
LCHAA (LEEDS AUTISM SERVICES)&&SSAROE81,5502-Residential,7625.52,08-03-2021
Lead Academy Trust T/A Forest Lodge Academy,5212-OLEA Recoupment,3103,08-03-2021
Leicester City Council,9729-Suspense (Current Liability),665.19,08-03-2021
LEICESTERSHIRE COUNTY CARE LIMITED&&SSARO3258,5502-Residential,4073.6,08-03-2021
LEICESTERSHIRE COUNTY CARE LTD&&SSARO2541,5502-Residential,2144,08-03-2021
LEICESTERSHIRE COUNTY CARE LTD&&SSARO2541,5502-Residential,1942.86,08-03-2021
LEICESTERSHIRE COUNTY CARE LTD&&SSARO2541,5502-Residential,7554.99,08-03-2021
LEICESTERSHIRE COUNTY CARE LTD&&SSARO2541,5502-Residential,48153.86,08-03-2021
LEICESTERSHIRE COUNTY CARE LTD&&SSARO2541,5502-Residential,1292.14,08-03-2021
LEICESTERSHIRE COUNTY CARE LTD&&SSARO2541,5502-Residential,1628.58,08-03-2021
LEICESTERSHIRE COUNTY CARE LTD&&SSARO2541,5502-Residential,3392.86,08-03-2021
LEICESTERSHIRE COUNTY CARE LTD&&SSARO2541,5502-Residential,1033.71,08-03-2021
LEICESTERSHIRE COUNTY CARE LTD&&SSARO2541,5502-Residential,1045.13,08-03-2021
LEICESTERSHIRE COUNTY CARE LTD&&SSARO2541,5502-Residential,40600,08-03-2021
LEICESTERSHIRE COUNTY CARE LTD&&SSARO2541,5502-Residential,1027.14,08-03-2021
LEICESTERSHIRE COUNTY CARE LTD&&SSARO2541,5502-Residential,861.43,08-03-2021
LEICESTERSHIRE COUNTY CARE LTD&&SSARO2541,5502-Residential,689.14,08-03-2021
LEICESTERSHIRE COUNTY CARE LTD&&SSARO2541,5502-Residential,31356,08-03-2021
LEICESTERSHIRE COUNTY CARE LTD&&SSARO2541,5502-Residential,2691.43,08-03-2021
LEICESTERSHIRE COUNTY CARE LTD&&SSARO2541,5502-Residential,28048,08-03-2021
LEICESTERSHIRE COUNTY CARE LTD&&SSARO2541,5502-Residential,4824,08-03-2021
LEICESTERSHIRE COUNTY CARE LTD&&SSARO2541,5502-Residential,36181.6,08-03-2021
LEICESTERSHIRE COUNTY CARE LTD&&SSARO2541,5502-Residential,4824,08-03-2021
LEICESTERSHIRE COUNTY CARE LTD&&SSARO2541,5502-Residential,4824,08-03-2021
LEICESTERSHIRE COUNTY CARE LTD&&SSARO2541,5502-Residential,6116.14,08-03-2021
LEICESTERSHIRE COUNTY CARE LTD&&SSARO2541,5502-Residential,4320,08-03-2021
LEICESTERSHIRE COUNTY CARE LTD&&SSARO2541,5502-Residential,31356,08-03-2021
LEICESTERSHIRE COUNTY CARE LTD&&SSARO2541,5502-Residential,1636.71,08-03-2021
LEICESTERSHIRE COUNTY CARE LTD&&SSARO2541,5502-Residential,39623.12,08-03-2021
LEICESTERSHIRE COUNTY CARE LTD&&SSARO2541,5502-Residential,649.71,08-03-2021
LEICESTERSHIRE COUNTY CARE LTD&&SSARO2541,5502-Residential,603,08-03-2021
LEICESTERSHIRE COUNTY CARE LTD&&SSARO2541,5502-Residential,1292.14,08-03-2021
LEICESTERSHIRE COUNTY CARE LTD&&SSARO2541,5502-Residential,1801.71,08-03-2021
LEICESTERSHIRE COUNTY CARE LTD&&SSARO2541,5502-Residential,65117.71,08-03-2021
LEICESTERSHIRE COUNTY CARE LTD&&SSARO2541,5502-Residential,516.86,08-03-2021
LEICESTERSHIRE COUNTY CARE LTD&&SSARO2541,5502-Residential,950,08-03-2021
LEICESTERSHIRE COUNTY CARE LTD&&SSARO3206,5502-Residential,2420,08-03-2021
LEONARD CHESHIRE FOUNDATION&&SSAROE905,5502-Residential,53003.79,08-03-2021
LEONARD CHESHIRE FOUNDATION&&SSAROE905,5502-Residential,24944.51,08-03-2021
LEONARD CHESHIRE FOUNDATION&&SSAROE905,5502-Residential,2551.92,08-03-2021
LEONARD CHESHIRE FOUNDATION&&SSAROE905,5502-Residential,29732.8,08-03-2021
LESTER HALL APARTMENTS LTD&&SSAROE434,5502-Residential,13733.35,08-03-2021
LIFEWAYS COMMUNITY CARE LTD T/A WYCARE LEYS (BULWELL)&&SSAROE948,5502-Residential,15384.44,08-03-2021
LINGDALE LODGE RESIDENTIAL HOME&&SSAROE461,5502-Residential,1722.86,08-03-2021
LINGDALE LODGE RESIDENTIAL HOME&&SSAROE461,5502-Residential,43860,08-03-2021
LINKAGE COMMUNITY TRUST CARE SERVICES A/C&&SSAROE1329,5502-Residential,3971.28,08-03-2021
LINKAGE COMMUNITY TRUST CARE SERVICES A/C&&SSAROE1329,5502-Residential,4529.2,08-03-2021
LINKAGE COMMUNITY TRUST CARE SERVICES A/C&&SSAROE1329,5502-Residential,9224.64,08-03-2021
LIVING LIFE UK LTD TA THE BANYON TREE&&SSARO3368,5502-Residential,5334,08-03-2021
LODGE RESIDENTIAL HOME&&SSAROE40440,5502-Residential,1206,08-03-2021
LODGE RESIDENTIAL HOME&&SSAROE40440,5502-Residential,1981.29,08-03-2021
LODGE RESIDENTIAL HOME&&SSAROE40440,5502-Residential,9593.99,08-03-2021
LODGE RESIDENTIAL HOME&&SSAROE40440,5502-Residential,28404,08-03-2021
LODGE TRUST&&SSAROE40324,5502-Residential,20585.48,08-03-2021
LOXLEY LODGE CARE HOME LTD&&SSARO3405,5502-Residential,2328,08-03-2021
LYNDHURST LODGE LTD&&SSAROE40340,5502-Residential,1800,08-03-2021
LYNDHURST LODGE LTD&&SSAROE40340,5502-Residential,39196,08-03-2021
MACINTYRE CARE&&SSAROE40268,5502-Residential,45086.32,08-03-2021
MAGNOLIA CARE HOME&&SSARO1118,5501-Nursing,3052.57,08-03-2021
MAGNOLIA CARE HOME&&SSARO1118,5502-Residential,1007.15,08-03-2021
MAGNOLIA CARE HOME&&SSARO1118,5501-Nursing,1907.86,08-03-2021
MAGNOLIA CARE HOME&&SSARO1118,5501-Nursing,4102.28,08-03-2021
MAGNOLIA CARE HOME&&SSARO1118,5502-Residential,8210.71,08-03-2021
MARS CARE SERVICES LTD&&SSARO1430,5502-Residential,4237.57,08-03-2021
MARS CARE SERVICES LTD&&SSARO1430,5502-Residential,13436,08-03-2021
MAURICARE LTD&&SSAROE40436,5502-Residential,5152,08-03-2021
MAVEN HEALTHCARE LEICESTER LTD T/A HUNTERS LODGE&&SSAROE40448,5502-Residential,17220.48,08-03-2021
MELTON CARE LTD THE AMWELL&&SARO3345,5502-Residential,3400,08-03-2021
MELTON CARE LTD THE AMWELL&&SARO3345,5502-Residential,3400,08-03-2021
MELTON CARE LTD THE AMWELL&&SARO3345,5502-Residential,3400,08-03-2021
MELTON CARE LTD THE AMWELL&&SARO3345,5502-Residential,3400,08-03-2021
MELTON CARE LTD THE AMWELL&&SARO3345,5502-Residential,1457.14,08-03-2021
MELTON CARE LTD THE AMWELL&&SARO3345,5502-Residential,5714.28,08-03-2021
MELTON CARE LTD THE AMWELL&&SARO3345,5502-Residential,39017.2,08-03-2021
MELTON CARE LTD THE AMWELL&&SARO3345,5502-Residential,3400,08-03-2021
MELTON CARE LTD THE AMWELL&&SARO3345,5502-Residential,3400,08-03-2021
MELTON CARE LTD THE AMWELL&&SARO3345,5502-Residential,3400,08-03-2021
MERCY CARE CENTRE&&SSARO8527,5502-Residential,3136,08-03-2021
METHODIST HOMES CARE HOME INCOME&&SSARO6085,5502-Residential,2129.92,08-03-2021
METHODIST HOMES FOR THE AGED RESIDENTS CHARGE A/C&&SSAROE40300,5502-Residential,17458.92,08-03-2021
Midland Foods Ltd,4504-Provisions Purchases,3236.72,08-03-2021
Midland Quarry Products Ltd,4109-Materials,646.83,08-03-2021
MINEHOME LTD T/A CHURCH TERRACE NURSING HOME&&SSAROE793,5502-Residential,2316,08-03-2021
MINSTER CARE GROUP T/A SAFFRON HOUSE&&SSARO8966,5502-Residential,36180,08-03-2021
MYMIL LTD&&SSARO1930,5502-Residential,1449,08-03-2021
MYMIL LTD&&SSARO1930,5502-Residential,18000.92,08-03-2021
MYMIL LTD&&SSARO1930,5502-Residential,24272,08-03-2021
MYMIL LTD&&SSARO1930,5502-Residential,534.86,08-03-2021
MYMIL LTD&&SSARO1930,5502-Residential,1505.72,08-03-2021
Myriad Heat & Power Products Ltd T/A Myriad Plantroom Services,4507-Consultants & Specialists,796.46,08-03-2021
NATIONAL AUTISTIC SOCIETY&&SSAROE385,5502-Residential,9959.16,08-03-2021
NATIONAL AUTISTIC SOCIETY&&SSAROE385,5502-Residential,23432.56,08-03-2021
REDACTED PERSONAL DATA ROSE COTTAGE REST HOME&&SSAROE809,5502-Residential,11580,08-03-2021
NIGHTINGALE NURSING HOME LTD&&SSAROE40228,5502-Residential,3054.85,08-03-2021
NIGHTINGALE NURSING HOME LTD&&SSAROE40228,5502-Residential,34967.68,08-03-2021
NOBLE CARE&&SSARO3210,5502-Residential,4201.68,08-03-2021
North West Leicestershire District Council,9729-Suspense (Current Liability),924.38,08-03-2021
NORTHFIELD HOUSE RESIDENTIAL HOME (AMAFHH CARE HOMES LTD)&&SSAROE40359,5502-Residential,23626,08-03-2021
NORTHFIELD HOUSE RESIDENTIAL HOME (AMAFHH CARE HOMES LTD)&&SSAROE40359,5502-Residential,1809,08-03-2021
NOTTINGHAM REGIONAL SOCIETY FOR AUTISTIC CHILDREN & ADULTS&&SSAROE160,5502-Residential,5010.12,08-03-2021
NOTTINGHAM REGIONAL SOCIETY FOR AUTISTIC CHILDREN & ADULTS&&SSAROE160,5502-Residential,4675.4,08-03-2021
NOTTINGHAM REGIONAL SOCIETY FOR AUTISTIC CHILDREN & ADULTS&&SSAROE160,5502-Residential,4744.36,08-03-2021
OAKFIELD (EASTERN MAUDIT) LTD&&SSAROE67,5502-Residential,4021.8,08-03-2021
OAKLEIGH RESIDENTIAL HOME LTD&&SSAROE40349,5502-Residential,861.43,08-03-2021
OAKLEIGH RESIDENTIAL HOME LTD&&SSAROE40349,5502-Residential,2150.57,08-03-2021
OAKLEIGH RESIDENTIAL HOME LTD&&SSAROE40349,5502-Residential,38588,08-03-2021
OLD VICARAGE&&SSARO3086,5502-Residential,20105.28,08-03-2021
Options Autism 4 Ltd Adults&&SSARO2160,5502-Residential,10146.32,08-03-2021
ORCHARD COURT LEICESTER LTD T/A ORCHARD COURT CARE HOME&&SSARO3338,5502-Residential,46843.84,08-03-2021
ORCHARD HOUSE&&SSARO167,5502-Residential,1674,08-03-2021
ORCHARD HOUSE&&SSARO167,5502-Residential,3348,08-03-2021
ORCHARD HOUSE&&SSAROE297,5502-Residential,37342.84,08-03-2021
ORCHARD MANOR VIEW LTD&&SSARO3289,5502-Residential,5868,08-03-2021
ORCHARD MANOR VIEW LTD&&SSARO3289,5502-Residential,2588.58,08-03-2021
ORCHARD MANOR VIEW LTD&&SSARO3289,5502-Residential,3020,08-03-2021
ORDERS OF ST JOHNS CARE TRUST GREGORY HOUSE RESIDENTIAL CARE HOME&&SSAROE599,5502-Residential,2404,08-03-2021
OXENDON HOUSE CARE HOME LTD&&SSAROE56952,5502-Residential,7219.52,08-03-2021
Oxford Diocesan Council For Social Work Inc T/A PACT,4509-Client Personal Needs,2400,08-03-2021
PAKS TRUST&&SSAROE1010,5502-Residential,3824.8,08-03-2021
PARCS HEALTHCARE LTD&&SSARO2272,5502-Residential,8740,08-03-2021
PARCS HEALTHCARE LTD&&SSARO2272,5502-Residential,5953.84,08-03-2021
PARRIS LAWN CARE LTD&&SSARO6294,5501-Nursing,12536.41,08-03-2021
PATHFINDERS CARE (OLLERTON) LTD&&SSARO1505,5502-Residential,4589.2,08-03-2021
PATHWAY CARE SOLUTIONS II LTD&&SSARO3182,5502-Residential,10300,08-03-2021
PATHWAYS CARE GROUP LTD T/A FAMILLE HOUSE&&SSAROE40283,5502-Residential,30751.28,08-03-2021
PATHWAYS CARE GROUP T/A HONEYSUCKLE FARM&&SSAROE40466,5502-Residential,33750.44,08-03-2021
PEAR TREE GROVE LTD&&SARO5532,5502-Residential,16868,08-03-2021
PEARLCARE (GLENFIELD) LTD&&SSAROE58990,5502-Residential,10038.08,08-03-2021
PENDENE HOUSE RESIDENTIAL HOME LTD&&SSAROE40366,5502-Residential,7128,08-03-2021
PETER BUXTON&&SSAPO5989,5503-Shared Lives residential,1548,08-03-2021
PILGRIMS FRIEND SOCIETY T/A PILGRIM HOMES&&SSARO3362,5502-Residential,2144,08-03-2021
PINE VIEW CARE HOMES LTD&&SSAROE40397,5502-Residential,7527.6,08-03-2021
PINE VIEW CARE HOMES LTDT/A SILVER BIRCHES&&SSAROE40412,5502-Residential,6708,08-03-2021
PINEVIEW CARE HOMES LTD&&SSAROE40458,5502-Residential,2420,08-03-2021
PINNACLE CARE LTD&&SSAROE944,5502-Residential,3546.2,08-03-2021
PJ CARE LTD&&SSARO3314,5501-Nursing,1400,08-03-2021
PLANS4REHAB LTD&&SSARO3363,5502-Residential,9474,08-03-2021
POPLARS RESIDENTIAL HOME LTD&&SSAROE45825,5502-Residential,27738,08-03-2021
PORTLAND COLLEGE&&SSAROE66275,5502-Residential,9660,08-03-2021
Praxis Care,5411-Private Contractors - General,23648.04,08-03-2021
PRECIOUS CARE HOMES LTD T/A MARWOOD RESIDENTIAL HOME&&SSAROE532,5502-Residential,31280,08-03-2021
PRETTY 333 LTD&&SSAROE539,5501-Nursing,4214.56,08-03-2021
PRIME LIFE LTD BARONS PARK&&SSAROE40201,5502-Residential,2310.18,08-03-2021
PRIME LIFE LTD BARONS PARK&&SSAROE40201,5502-Residential,1242,08-03-2021
PRIME LIFE LTD BARONS PARK&&SSAROE40201,5502-Residential,74724.47,08-03-2021
PRIME LIFE LTD BARONS PARK&&SSAROE40201,5502-Residential,1120,08-03-2021
PRIME LIFE LTD T/A PHOENIX CARE VILLAGE&&SSARO5387,5501-Nursing,2679.93,08-03-2021
PRIME LIFE LTD T/A WOODVILLE CARE HOME&&SSAROE49047,5502-Residential,2243.36,08-03-2021
PRIME LIFE LTD T/AS THE FIELDINGS&&SSARO3381,5502-Residential,2680,08-03-2021
PRIME LIFE LTD&&SSARO3236,5502-Residential,1147.79,08-03-2021
PRIME LIFE LTD&&SSARO3236,5502-Residential,1657.91,08-03-2021
PRIME LIFE LTD&&SSARO3236,5502-Residential,3081.93,08-03-2021
PRIME LIFE LTD&&SSARO3236,5502-Residential,3114.24,08-03-2021
PRIME LIFE LTD&&SSARO3236,5502-Residential,34622.93,08-03-2021
PRIME LIFE LTD&&SSARO3236,5502-Residential,3114.24,08-03-2021
PRIME LIFE LTD&&SSARO3236,5502-Residential,974.58,08-03-2021
PRIME LIFE LTD&&SSARO3236,5502-Residential,26345.12,08-03-2021
PRIME LIFE LTD&&SSARO3236,5502-Residential,10208,08-03-2021
PRIME LIFE LTD&&SSARO3236,5502-Residential,11966.72,08-03-2021
PRIME LIFE LTD&&SSARO3236,5502-Residential,19296,08-03-2021
PRIME LIFE LTD&&SSARO3236,5502-Residential,861.43,08-03-2021
PRIME LIFE LTD&&SSARO3236,5502-Residential,2354.74,08-03-2021
PRIME LIFE LTD&&SSARO3236,5502-Residential,9128,08-03-2021
PRIME LIFE LTD&&SSARO3236,5502-Residential,26120.4,08-03-2021
PRIME LIFE LTD&&SSARO3236,5502-Residential,166683.27,08-03-2021
PRIME LIFE LTD&&SSARO3236,5502-Residential,10809.13,08-03-2021
PRIME LIFE LTD&&SSARO3236,5502-Residential,2420,08-03-2021
PRIME LIFE LTD&&SSARO3236,5502-Residential,19888,08-03-2021
PRIME LIFE LTD&&SSARO3236,5502-Residential,1606.86,08-03-2021
PRIME LIFE LTD&&SSARO3236,5502-Residential,9991.14,08-03-2021
PRIME LIFE LTD&&SSARO3236,5502-Residential,834.18,08-03-2021
PRIME LIFE LTD&&SSARO3333,5502-Residential,5625,08-03-2021
PRIME LIFE LTD&&SSAROE1144,5502-Residential,1033.71,08-03-2021
PRIME LIFE LTD&&SSAROE1144,5502-Residential,1292.14,08-03-2021
PRIME LIFE LTD&&SSAROE1144,5502-Residential,2628.58,08-03-2021
PRIME LIFE LTD&&SSAROE1144,5502-Residential,1206,08-03-2021
PRIME LIFE LTD&&SSAROE1144,5502-Residential,1330,08-03-2021
PRIME LIFE LTD&&SSAROE1144,5502-Residential,12060.01,08-03-2021
PRIME LIFE LTD&&SSAROE1144,5502-Residential,98111.74,08-03-2021
PRIME LIFE LTD&&SSAROE1144,5502-Residential,1464.43,08-03-2021
PRIME LIFE LTD&&SSAROE1144,5502-Residential,2280,08-03-2021
PRIME LIFE LTD&&SSAROE1144,5502-Residential,1206,08-03-2021
PRIME LIFE LTD&&SSAROE1144,5502-Residential,1378.28,08-03-2021
PRIME LIFE LTD&&SSAROE1144,5502-Residential,2857.14,08-03-2021
PRIME LIFE LTD&&SSAROE56173,5502-Residential,37730.52,08-03-2021
PRIME LIFE LTD&&SSAROE56173,5502-Residential,1700,08-03-2021
PRIME LIFE LTD&&SSAROE56173,5502-Residential,1457.14,08-03-2021
PRIME LIFE LTD&&SSAROE56173,5502-Residential,1072.99,08-03-2021
PRIME LIFE LTD&&SSAROE56173,5502-Residential,5875.12,08-03-2021
PRIME LIFE LTD&&SSAROE56173,5502-Residential,78147.49,08-03-2021
PRIME LIFE LTD&&SSAROE56173,5502-Residential,1214.29,08-03-2021
PRIME LIFE LTD&&SSAROE56173,5502-Residential,5828.57,08-03-2021
PRIME LIFE LTD&&SSAROE56173,5502-Residential,2307.14,08-03-2021
PRIME LIFE LTD&&SSAROE56173,5502-Residential,12121.85,08-03-2021
PRIMELIFE (B MYCARE LTD) T/A LUTTERWORTH COUNTRY HOUSE CARE&&SSARO230,5502-Residential,7083.43,08-03-2021
PRIMELIFE (B MYCARE LTD) T/A LUTTERWORTH COUNTRY HOUSE CARE&&SSARO230,5502-Residential,61581.71,08-03-2021
PRIMELIFE (B MYCARE LTD) T/A LUTTERWORTH COUNTRY HOUSE CARE&&SSARO230,5502-Residential,861.42,08-03-2021
PRIMELIFE (B MYCARE LTD) T/A LUTTERWORTH COUNTRY HOUSE CARE&&SSARO230,5502-Residential,1206,08-03-2021
PRIMELIFE (B MYCARE LTD) T/A LUTTERWORTH COUNTRY HOUSE CARE&&SSARO230,5502-Residential,1206,08-03-2021
PRIMELIFE (B MYCARE LTD) T/A LUTTERWORTH COUNTRY HOUSE CARE&&SSARO230,5502-Residential,1206,08-03-2021
PRIMELIFE (B MYCARE LTD) T/A LUTTERWORTH COUNTRY HOUSE CARE&&SSARO230,5502-Residential,689.14,08-03-2021
PRIMELIFE (B MYCARE LTD) T/A LUTTERWORTH COUNTRY HOUSE CARE&&SSARO230,5502-Residential,603,08-03-2021
PRIMELIFE (B MYCARE LTD) T/A LUTTERWORTH COUNTRY HOUSE CARE&&SSARO230,5502-Residential,1809,08-03-2021
PRIMELIFE (B MYCARE LTD) T/A LUTTERWORTH COUNTRY HOUSE CARE&&SSARO230,5502-Residential,603,08-03-2021
PRIMELIFE (B MYCARE LTD) T/A LUTTERWORTH COUNTRY HOUSE CARE&&SSARO230,5502-Residential,892.86,08-03-2021
PRIMELIFE (B MYCARE LTD) T/A LUTTERWORTH COUNTRY HOUSE CARE&&SSARO230,5502-Residential,1615,08-03-2021
PRIMROSE LODGE&&SSAROE559,5502-Residential,14772,08-03-2021
Quadient Finance UK Ltd,4607-Postal Services ,539.36,08-03-2021
Quadient Finance UK Ltd,4607-Postal Services ,1714.99,08-03-2021
QUALITY CARE (EM) LTD&&SSARO1134,5502-Residential,11423.4,08-03-2021
QUALITY CARE (EM) LTD&&SSARO1134,5502-Residential,5402.74,08-03-2021
QUORN ORCHARDS RESIDENTIAL CARE HOME&&SSARO1370,5502-Residential,55664,08-03-2021
QUORN ORCHARDS RESIDENTIAL CARE HOME&&SSARO1370,5502-Residential,603,08-03-2021
REDACTED PERSONAL DATA  HEARTWELL&&SSAROE653,5502-Residential,3424.69,08-03-2021
REDACTED PERSONAL DATA  STONESBY LODGE&&SSAROE40392,5502-Residential,8129.64,08-03-2021
REDACTED PERSONAL DATA ,4908-Grants,5000,08-03-2021
RADCLIFFE MANOR HOUSE&&SSARO2976,5502-Residential,2452,08-03-2021
RAVENDALE HALL&&SARO5957,5502-Residential,2069.48,08-03-2021
REARSBY HOME 5 LTD&&SARO5545,5502-Residential,1206,08-03-2021
REARSBY HOME 5 LTD&&SARO5545,5502-Residential,28349.26,08-03-2021
REARSBY HOME 5 LTD&&SARO5545,5502-Residential,1237.57,08-03-2021
REARSBY HOME 5 LTD&&SARO5545,5502-Residential,1464.43,08-03-2021
REASON CARE LTD T/AS THE TROC&&SSARO3016,5502-Residential,2380,08-03-2021
RED HOMES H/C GRANTHAM T/A RED COURT&&SAROE49039,5502-Residential,2292,08-03-2021
Reed Specialist Recruitment Ltd,9728-Control Accounts (Current Liability),245777.87,08-03-2021
REGARD PARTNERSHIP LTD FLEETWOOD HOUSE&&SSARO3305,5502-Residential,7926.8,08-03-2021
RIVERSIDE T/A DOVECOTET&&SARO9361,5502-Residential,2880.14,08-03-2021
RMBI CO NO4 ACCOUNT&&SAROE40444,5502-Residential,33291.12,08-03-2021
RMBI CO NO4 ACCOUNT&&SAROE40444,5502-Residential,1242.03,08-03-2021
REDACTED PERSONAL DATA   MEREVALE HOUSE RESIDENTIAL&&SAROE128,5502-Residential,6999.6,08-03-2021
REDACTED PERSONAL DATA ,5502-Residential,31460.76,08-03-2021
ROSEDALE CARE HOME LTD&&SSARO1053,5502-Residential,12933.72,08-03-2021
REDACTED PERSONAL DATA  SALUTEM LD BIDCO IV LTD&&SSAROE390,5502-Residential,4541.16,08-03-2021
ROYAL MENCAP SOCIETY&&SSARO2165,5502-Residential,4690.38,08-03-2021
ROYAL SOCIETY FOR THE BLIND (RESIDENTIAL A/C)&&SSAROE13283,5502-Residential,26212.42,08-03-2021
ROYAL SOCIETY FOR THE BLIND (RESIDENTIAL A/C)&&SSAROE13283,5502-Residential,2562,08-03-2021
ROYAL SOCIETY FOR THE BLIND (RESIDENTIAL A/C)&&SSAROE13283,5502-Residential,3297.43,08-03-2021
ROYAL SOCIETY FOR THE BLIND (RESIDENTIAL A/C)&&SSAROE13283,5502-Residential,20463.16,08-03-2021
ROYAL SOCIETY FOR THE BLIND (RESIDENTIAL A/C)&&SSAROE13283,5502-Residential,1467.42,08-03-2021
ROYAL SOCIETY FOR THE BLIND (RESIDENTIAL A/C)&&SSAROE13283,5502-Residential,14036.72,08-03-2021
ROYAL SOCIETY FOR THE BLIND (RESIDENTIAL A/C)&&SSAROE13283,5502-Residential,31105.52,08-03-2021
RPS Consulting Services Ltd,941D-L&B - Building Costs,2250,08-03-2021
RUNWOOD HOMES LTD&&SSARO2844,5502-Residential,8911.76,08-03-2021
RUNWOOD HOMES LTD&&SSARO3337,5502-Residential,4507.84,08-03-2021
RUSHCLIFFE CARE LTD T/A BEAUMANOR&&SSAROE353,5502-Residential,1700,08-03-2021
RUSHCLIFFE CARE LTD T/A BEAUMANOR&&SSAROE353,5502-Residential,1214.29,08-03-2021
RUSHCLIFFE CARE LTD T/A BEAUMANOR&&SSAROE353,5502-Residential,61213.96,08-03-2021
RUSHCLIFFE CARE LTD T/A BEAUMANOR&&SSAROE353,5502-Residential,4857.14,08-03-2021
RUSHCLIFFE CARE LTD T/A CASTLE DONINGTON NURSING HOME&&SSAROE40221,5502-Residential,38800,08-03-2021
RUSHCLIFFE CARE LTD T/A CASTLE DONINGTON NURSING HOME&&SSAROE40221,5502-Residential,2442.86,08-03-2021
RUSHCLIFFE CARE LTD T/A COALVILLE NURSING & RESIDENTIAL HOME&&SSAROE66717,5502-Residential,38690.4,08-03-2021
RUSHCLIFFE CARE LTD T/A COALVILLE NURSING & RESIDENTIAL HOME&&SSAROE66717,5502-Residential,6557.14,08-03-2021
RUSHCLIFFE CARE LTD T/A EPINAL WAY CARE CENTRE&&SSAROE4,5502-Residential,10907.24,08-03-2021
RUSHCLIFFE CARE LTD T/A EPINAL WAY CARE CENTRE&&SSAROE4,8406-Residential - NHS Income,4431.43,08-03-2021
RUSHCLIFFE CARE LTD T/A EPINAL WAY CARE CENTRE&&SSAROE4,8406-Residential - NHS Income,2772.68,08-03-2021
RUSHCLIFFE CARE LTD T/A EPINAL WAY CARE CENTRE&&SSAROE4,8406-Residential - NHS Income,1026,08-03-2021
RUSHCLIFFE CARE LTD T/A EPINAL WAY CARE CENTRE&&SSAROE4,8406-Residential - NHS Income,2434,08-03-2021
RUSHCLIFFE CARE LTD T/A EPINAL WAY CARE CENTRE&&SSAROE4,8406-Residential - NHS Income,1049.26,08-03-2021
RUSHCLIFFE CARE LTD T/A EPINAL WAY CARE CENTRE&&SSAROE4,5502-Residential,1183.54,08-03-2021
RUSHCLIFFE CARE LTD T/A EPINAL WAY CARE CENTRE&&SSAROE4,5502-Residential,23356.96,08-03-2021
RUSHCLIFFE CARE LTD T/A EPINAL WAY CARE CENTRE&&SSAROE4,8406-Residential - NHS Income,1038.34,08-03-2021
RUSHCLIFFE CARE LTD T/A JASMINE COURT&&SSARO1136,5502-Residential,2185.71,08-03-2021
RUSHCLIFFE CARE LTD T/A JASMINE COURT&&SSARO1136,5502-Residential,900,08-03-2021
RUSHCLIFFE CARE LTD T/A JASMINE COURT&&SSARO1136,5502-Residential,79690.78,08-03-2021
RUSHCLIFFE CARE LTD T/A JASMINE COURT&&SSARO1136,5502-Residential,2985.71,08-03-2021
RUSHCLIFFE CARE LTD T/A OLD SCHOOL HOUSE/HAYES CLOSE&&SSARO1393,5502-Residential,43860.28,08-03-2021
RUSHCLIFFE CARE LTD T/A OLD SCHOOL HOUSE/HAYES CLOSE&&SSARO1393,5502-Residential,20820.16,08-03-2021
RUSHCLIFFE CARE LTD T/A PARKMANOR RESIDENTIAL HOME&&SSAROE422,5502-Residential,34768.6,08-03-2021
RUSHCLIFFE CARE LTD T/A THE HALL&&SSARO3376,5502-Residential,31943.77,08-03-2021
RUSHCLIFFE CARE LTD T/A THORNHAM GROVE&&SSAROE1139,5502-Residential,12644.68,08-03-2021
RUSHCLIFFE CARE LTD T/A THORPE HOUSE NURSING & RESIDENTIAL HOME&&SSAROE71744,5502-Residential,1285.71,08-03-2021
RUSHCLIFFE CARE LTD T/A THORPE HOUSE NURSING & RESIDENTIAL HOME&&SSAROE71744,5502-Residential,44278,08-03-2021
RUSHCLIFFE CARE LTD T/A THORPE HOUSE NURSING & RESIDENTIAL HOME&&SSAROE71744,5502-Residential,6428.58,08-03-2021
RUSHCLIFFE CARE LTD T/A THORPE HOUSE NURSING & RESIDENTIAL HOME&&SSAROE71744,5502-Residential,2957.14,08-03-2021
RUTLAND HOUSE COMMUNITY TRUST&&SSAROE68167,5502-Residential,12068,08-03-2021
REDACTED PERSONAL DATA  HAMILTON COMMUNITY HOMES&&SSAROE40208,5502-Residential,2420,08-03-2021
REDACTED PERSONAL DATA  HAMILTON COMMUNITY HOMES&&SSAROE40208,5502-Residential,1123.57,08-03-2021
REDACTED PERSONAL DATA  HAMILTON COMMUNITY HOMES&&SSAROE40208,5502-Residential,4955.12,08-03-2021
REDACTED PERSONAL DATA  SEABOURNE HOUSE CARE HOME&&SSARO2067,5502-Residential,3520,08-03-2021
S4 CARE LTD T/A ALSTON HOUSE&&SSAROE533,5502-Residential,2420,08-03-2021
S4 CARE LTD T/A ALSTON HOUSE&&SSAROE533,5502-Residential,605,08-03-2021
S4 CARE LTD T/A ALSTON HOUSE&&SSAROE533,5502-Residential,605,08-03-2021
S4 CARE LTD T/A ALSTON HOUSE&&SSAROE533,5502-Residential,2144,08-03-2021
S5 CARE LTD (T/A GEORGE HYTHE HOUSE)&&SSARO6120,5502-Residential,22954.84,08-03-2021
S5 CARE LTD (T/A GEORGE HYTHE HOUSE)&&SSARO6120,5502-Residential,1684.57,08-03-2021
SAMALODGE LTD T/A ANITA JANE LODGE&&SSARO3326,5502-Residential,1084,08-03-2021
SANCTUARY CARE (NORTH) LTD&&SARO3239,5501-Nursing,2537.76,08-03-2021
SANCTUARY HOME CARE LTD&&SSARO2283,5502-Residential,12240,08-03-2021
SANCTUARY HOME CARE LTD&&SSARO2283,8406-Residential - NHS Income,1085.71,08-03-2021
SANCTUARY HOME CARE LTD&&SSARO2283,8406-Residential - NHS Income,1257.14,08-03-2021
SANCTUARY HOMECARE LTD T/A SKELTON COURT&&SARO5723,5502-Residential,12533.44,08-03-2021
SEAGRAVE CARE (CORBY) LTD&&SSARO2068,5502-Residential,4793.64,08-03-2021
REDACTED PERSONAL DATA WAVERLEY&&SSARO1489,5502-Residential,2548,08-03-2021
SHANKAR LEICESTER LTD T/A LONGCLIFFE NURSING HOME&&SSAROE40225,5502-Residential,17848,08-03-2021
REDACTED PERSONAL DATA,5502-Residential,2349.76,08-03-2021
SIGNATURE OF LEICESTER COPERATION LTD T/A SOUTH LODGE&&SSARO1838,5501-Nursing,2600,08-03-2021
SIGNATURE OF LEICESTER COPERATION LTD T/A SOUTH LODGE&&SSARO1838,5502-Residential,1296.43,08-03-2021
Spaldings (Uk) Ltd,4109-Materials,1589.16,08-03-2021
Springfield Supplies & Projects Ltd,4901-Other Expenditure,3745.67,08-03-2021
SR CARE LTD T/A THE CHESTNUTS&&SSAROE43299,5502-Residential,35186.52,08-03-2021
REDACTED PERSONAL DATA,4508-Medical Fees & Treatment,1295,08-03-2021
ST BENNETTS CARE HOME&&SSAROE40234,5502-Residential,2589.19,08-03-2021
ST BERNARDS HALLATON MANOR LTD&&SSAROE14425,5502-Residential,23566.73,08-03-2021
ST CLOUD CARE PLC&&SSAROE1003,5501-Nursing,3200,08-03-2021
ST MARTINS RES HOME LTD&&SSARO2034,5502-Residential,857.14,08-03-2021
ST MARTINS RES HOME LTD&&SSARO2034,5502-Residential,23033.6,08-03-2021
ST MARTINS RES HOME LTD&&SSARO2034,5502-Residential,600,08-03-2021
ST MATTHEWS (DUNSMORE) LTD&&SSARO6023,5501-Nursing,1620,08-03-2021
STONESBY HOUSE&&SSAROE997,5502-Residential,12414.98,08-03-2021
SUTTON IN THE ELMS&&SARO8868,5502-Residential,1671.43,08-03-2021
SUTTON IN THE ELMS&&SARO8868,5502-Residential,79936.6,08-03-2021
SUTTON IN THE ELMS&&SARO8868,5502-Residential,2127.56,08-03-2021
Syston Rolling Shutters Ltd,2101-R&M Buildings,755,08-03-2021
REDACTED PERSONAL DATA,5502-Residential,29056.8,08-03-2021
REDACTED PERSONAL DATA,5502-Residential,3314.28,08-03-2021
TANGLEWOOD CARE SERVICES LTD&&SSARO9270,5501-Nursing,3581.33,08-03-2021
Tanwood Construction Ltd,2106-Reactive Maint Buildings,593,08-03-2021
Tanwood Construction Ltd,2106-Reactive Maint Buildings,965,08-03-2021
Tanwood Construction Ltd,2106-Reactive Maint Buildings,656,08-03-2021
Telefonica O2 Uk Ltd,4606-IT Telecommunications Line Rental,2446.07,08-03-2021
Telefonica O2 Uk Ltd,4601-IT Equipment Hardware,10380,08-03-2021
Telefonica O2 Uk Ltd,943C-VPE - Equipment (Furniture/ IT) Exp,15570,08-03-2021
Telefonica O2 Uk Ltd,4601-IT Equipment Hardware,5190,08-03-2021
THE ABBEYFIELD SOCIETY (SPEEDWELL COURT )&&SSARO5811,5502-Residential,2670.2,08-03-2021
THE ASHTON CARE HOME&&SARO3106,5502-Residential,616.08,08-03-2021
THE ASHTON CARE HOME&&SARO3106,5502-Residential,52141.22,08-03-2021
THE CHANTRY&&SARO3073,5502-Residential,52079.28,08-03-2021
Thomas Bow Ltd,4901-Other Expenditure,88928.18,08-03-2021
Thornton Hope Consultancy Ltd,4507-Consultants & Specialists,1549.62,08-03-2021
Thornton Hope Consultancy Ltd,4507-Consultants & Specialists,1064.92,08-03-2021
TODAYWISE LTD&&SSAROE40280,5502-Residential,6760,08-03-2021
TODAYWISE LTD&&SSAROE40280,5502-Residential,3124.86,08-03-2021
TODAYWISE LTD&&SSAROE40280,5502-Residential,1742,08-03-2021
TODAYWISE LTD&&SSAROE40280,5502-Residential,6760,08-03-2021
TODAYWISE LTD&&SSAROE40280,5502-Residential,12876,08-03-2021
TOPCLASS CARE LTD&&SSAROE1111,5502-Residential,5812,08-03-2021
Total Produce,4504-Provisions Purchases,5611.9,08-03-2021
TRACS LTD&&SSARO3235,5502-Residential,6024,08-03-2021
TRUSTEES OF MELBOURNE HALL HOME TRUST 2&&SSAROE40249,5502-Residential,4564,08-03-2021
UNDERLEY SCHOOLS LTD&&SSARO1867,5502-Residential,8416,08-03-2021
UNITED RESPONSE&&SSAROE79,5502-Residential,5776.72,08-03-2021
V&L CORPORATION LTD&&SSAROE40238,5502-Residential,1191.44,08-03-2021
V&L CORPORATION LTD&&SSAROE40238,5502-Residential,59571.8,08-03-2021
V&L CORPORATION LTD&&SSAROE40238,5502-Residential,900,08-03-2021
V&L CORPORATION LTD&&SSAROE40238,5502-Residential,3214.28,08-03-2021
V&S KELLY & J CULVERWELL DAMASCUS HOUSE&&SSAROE40374,5502-Residential,1191.14,08-03-2021
V&S KELLY & J CULVERWELL DAMASCUS HOUSE&&SSAROE40374,5502-Residential,38522.72,08-03-2021
V&S KELLY & J CULVERWELL DAMASCUS HOUSE&&SSAROE40374,5502-Residential,3969.92,08-03-2021
VAGHJIANI LTD&&SSARO3199,5502-Residential,2520,08-03-2021
VALORUM CARE GROUP LTD&&SSARO6108,5502-Residential,7488.92,08-03-2021
VE Psychological Solutions Ltd T/A The Purple House Clinic,4509-Client Personal Needs,1012.5,08-03-2021
VENETIA HOUSE&&SSAROE40411,5502-Residential,4452,08-03-2021
Voluntary Action Leicester,5316-Voluntary Sector Contract Support,26203.2,08-03-2021
Volvo Group UK Limited,3102-Vehicle & Plant Repairs & Maintenance,849.85,08-03-2021
VOYAGE 1 LTD&&SSAROE2344,5502-Residential,6943.44,08-03-2021
VOYAGE 1 LTD&&SSAROE2344,5502-Residential,5274.27,08-03-2021
VOYAGE 1 LTD&&SSAROE2344,5502-Residential,6739.56,08-03-2021
VOYAGE CARE 20 TOWNGATE&&SSARO3296,5502-Residential,7924,08-03-2021
VOYAGE LTD&&SSAROE1094,5502-Residential,34243.12,08-03-2021
Waterman Aspen Ltd,5443-Agency & Contracted Services,1545,08-03-2021
Waterman Aspen Ltd,5443-Agency & Contracted Services,8240,08-03-2021
WESTERN PARK (LEICESTER) LTD&&SSAROE73278,5501-Nursing,20998,08-03-2021
WESTMINSTER HEALTH CARE LTD NEWTON HOUSE RECEIPTS A/C&&SSAROE47130,5502-Residential,6711.88,08-03-2021
WESTROYD HOUSE COUNTY HEALTH CARE&&SSAROE40326,5502-Residential,700,08-03-2021
WESTROYD HOUSE COUNTY HEALTH CARE&&SSAROE40326,5502-Residential,64064,08-03-2021
WESTROYD HOUSE COUNTY HEALTH CARE&&SSAROE40326,5502-Residential,861.43,08-03-2021
WHINCUP CARE LTD&&SARO9042,5502-Residential,7261.24,08-03-2021
WISTERIA HOUSE&&SSAROE62060,5502-Residential,3940,08-03-2021
WJ South Ltd,5411-Private Contractors - General,10883.05,08-03-2021
WJ South Ltd,4901-Other Expenditure,788.2,08-03-2021
WJ South Ltd,4901-Other Expenditure,3196.57,08-03-2021
WJ South Ltd,4901-Other Expenditure,1316.69,08-03-2021
WJ YAPP TRUST HOMES&&SSAROE1150,5502-Residential,3580,08-03-2021
Woodlands Ltd,5411-Private Contractors - General,19707.01,08-03-2021
WOODROWE HEALTHCARE LTD&&SSARO5719,5502-Residential,2184,08-03-2021
WOODWAY CARERS LTD T/A WOODWAY HOUSE&&SSAROE40468,5502-Residential,16216,08-03-2021
WOODWAY CARERS LTD T/A WOODWAY HOUSE&&SSAROE40468,5502-Residential,861.43,08-03-2021
Worklink Project Hinckley,5211-Other Local Authorities,818.51,08-03-2021
WYCAR LEYS LEICESTER LTD&&SSARO2168,5502-Residential,21202.76,08-03-2021
YOUR HEALTH LTD T/A WESTWOOD HOUSE&&SSAROE953,5502-Residential,15344,08-03-2021
YOUR HEALTH LTD&&SSAROE266,5501-Nursing,4805.92,08-03-2021
YOUR HEALTH LTD&&SSAROE40355,5502-Residential,2544,08-03-2021
1st Select Ltd,3113-Home to Sch Trans Contract Buses Sec,837.34,09-03-2021
36 Group Ltd,4905-Legal Expenses,700,09-03-2021
A1 Leicester Cars,3303-Taxi Hire,1038.7,09-03-2021
A1 Leicester Cars,3303-Taxi Hire,1360,09-03-2021
Adullam Homes Housing Association Ltd     1,5451-LCT/LAC (Not Fostered),1415.92,09-03-2021
Adullam Homes Housing Association Ltd     1,5451-LCT/LAC (Not Fostered),2320.85,09-03-2021
All Purpose Cleaning Supplies Ltd,2403-Refuse Removal & Hygiene Disposal,700,09-03-2021
REDACTED PERSONAL DATA Alpha Cars,3303-Taxi Hire,1249.38,09-03-2021
ASD Support Ltd,5451-LCT/LAC (Not Fostered),16713.9,09-03-2021
Ashwell Maintenance Ltd,2105-Reactive Maintenance M&E,686.4,09-03-2021
Ashwell Maintenance Ltd,2105-Reactive Maintenance M&E,754.8,09-03-2021
REDACTED PERSONAL DATA,5642-Foster Parents Fostering Allowances,2500,09-03-2021
Baca Charity,5411-Private Contractors - General,2440,09-03-2021
Baca Charity,5622-Transfer Payments Pocket Money,4824.49,09-03-2021
Baca Charity,5411-Private Contractors - General,2440,09-03-2021
Baca Charity,5411-Private Contractors - General,1814.29,09-03-2021
Baca Charity,5411-Private Contractors - General,2440,09-03-2021
Bright Culture Consultancy LLP,4507-Consultants & Specialists,1430,09-03-2021
British Telecom Plc,4606-IT Telecommunications Line Rental,7553.4,09-03-2021
Canal & River Trust,2501-Grounds Maintenance,18016.95,09-03-2021
Casaegis Ltd,5411-Private Contractors - General,3480,09-03-2021
Casaegis Ltd,5411-Private Contractors - General,3480,09-03-2021
Casaegis Ltd,5411-Private Contractors - General,3680,09-03-2021
Casaegis Ltd,5411-Private Contractors - General,3680,09-03-2021
Centrebus Ltd,5428-Minimum Cost Contracts,1293.95,09-03-2021
Centrebus Ltd,5428-Minimum Cost Contracts,7590.78,09-03-2021
Centrebus Ltd,5428-Minimum Cost Contracts,8892.57,09-03-2021
Centrebus Ltd,5428-Minimum Cost Contracts,10464.75,09-03-2021
Charnwood CAB,5316-Voluntary Sector Contract Support,12055,09-03-2021
Childrens Therapy Solutions Ltd,5445-Adoption Support,804.31,09-03-2021
Childrens Therapy Solutions Ltd,5445-Adoption Support,919.63,09-03-2021
Childrens Therapy Solutions Ltd,5445-Adoption Support,804.31,09-03-2021
Childrens Therapy Solutions Ltd,5445-Adoption Support,948,09-03-2021
City Cycles Ltd,4901-Other Expenditure,720,09-03-2021
City Cycles Ltd,4901-Other Expenditure,1050,09-03-2021
Coalville Cabs Ltd,3303-Taxi Hire,1788.5,09-03-2021
Coalville Cabs Ltd,3303-Taxi Hire,1500.8,09-03-2021
Coalville Cabs Ltd,3201-Pooled Transport Recharge Inhouse,561.63,09-03-2021
Coalville Cabs Ltd,3201-Pooled Transport Recharge Inhouse,1276.2,09-03-2021
Coalville Cabs Ltd,3303-Taxi Hire,2240,09-03-2021
Coalville Cabs Ltd,3303-Taxi Hire,2632,09-03-2021
Coalville Cabs Ltd,3303-Taxi Hire,2693.7,09-03-2021
Coalville Cabs Ltd,3303-Taxi Hire,1620.6,09-03-2021
Coalville Cabs Ltd,3303-Taxi Hire,1213.9,09-03-2021
Coalville Cabs Ltd,3303-Taxi Hire,655.65,09-03-2021
Coalville Cabs Ltd,3303-Taxi Hire,1996.8,09-03-2021
Coalville Cabs Ltd,3303-Taxi Hire,1508.85,09-03-2021
Coalville Cabs Ltd,3303-Taxi Hire,588.8,09-03-2021
Coalville Cabs Ltd,3303-Taxi Hire,1020.6,09-03-2021
Coalville Cabs Ltd,3303-Taxi Hire,1927.2,09-03-2021
Coalville Cabs Ltd,3303-Taxi Hire,1432.62,09-03-2021
Coalville Cabs Ltd,3303-Taxi Hire,1540.3,09-03-2021
Coalville Cabs Ltd,3303-Taxi Hire,2252.05,09-03-2021
Coalville Cabs Ltd,9722-Reserved Creditors - Non Public Sector,708,09-03-2021
Coalville Cabs Ltd,3303-Taxi Hire,923.8,09-03-2021
Coalville Cabs Ltd,3303-Taxi Hire,1619,09-03-2021
Coalville Cabs Ltd,3303-Taxi Hire,1721.55,09-03-2021
Coalville Cabs Ltd,3303-Taxi Hire,596.75,09-03-2021
Coalville Cabs Ltd,3303-Taxi Hire,1866.63,09-03-2021
Coalville Cabs Ltd,3113-Home to Sch Trans Contract Buses Sec,636.5,09-03-2021
Coalville Cabs Ltd,3303-Taxi Hire,756.4,09-03-2021
Coalville Cabs Ltd,3303-Taxi Hire,2803.2,09-03-2021
Coalville Cabs Ltd,3303-Taxi Hire,2485.65,09-03-2021
Coalville Cabs Ltd,3303-Taxi Hire,715.4,09-03-2021
Coalville Cabs Ltd,3303-Taxi Hire,1622.6,09-03-2021
Coalville Cabs Ltd,3113-Home to Sch Trans Contract Buses Sec,618.45,09-03-2021
Coalville Cabs Ltd,3113-Home to Sch Trans Contract Buses Sec,656.25,09-03-2021
Coalville Cabs Ltd,3303-Taxi Hire,1104,09-03-2021
Coalville Cabs Ltd,3303-Taxi Hire,1293.5,09-03-2021
Coalville Cabs Ltd,3303-Taxi Hire,2411.55,09-03-2021
Coalville Cabs Ltd,3303-Taxi Hire,590.55,09-03-2021
Coalville Cabs Ltd,3303-Taxi Hire,1799.45,09-03-2021
Coalville Cabs Ltd,3112-Home to Sch Trans Contract Buses Prim,1583.3,09-03-2021
Coalville Cabs Ltd,3303-Taxi Hire,1631.45,09-03-2021
Coalville Cabs Ltd,3303-Taxi Hire,645.75,09-03-2021
Coalville Cabs Ltd,3303-Taxi Hire,600.25,09-03-2021
Coalville Cabs Ltd,3303-Taxi Hire,1470.95,09-03-2021
Coalville Cabs Ltd,3201-Pooled Transport Recharge Inhouse,992.25,09-03-2021
Coalville Cabs Ltd,3201-Pooled Transport Recharge Inhouse,775,09-03-2021
Coalville Cabs Ltd,3201-Pooled Transport Recharge Inhouse,1536,09-03-2021
Coalville Cabs Ltd,3303-Taxi Hire,1781.2,09-03-2021
Coalville Cabs Ltd,3303-Taxi Hire,2164.45,09-03-2021
Colas Ltd,5411-Private Contractors - General,28372.2,09-03-2021
Colas Ltd,5411-Private Contractors - General,19603.8,09-03-2021
REDACTED PERSONAL DATA ,3303-Taxi Hire,534.75,09-03-2021
Diversity Social Care Ltd,4509-Client Personal Needs,3718,09-03-2021
Driven By Riide Ltd T/A  ADT Taxis,3201-Pooled Transport Recharge Inhouse,850,09-03-2021
Driven By Riide Ltd T/A  ADT Taxis,3201-Pooled Transport Recharge Inhouse,979.44,09-03-2021
Driven By Riide Ltd T/A  ADT Taxis,3201-Pooled Transport Recharge Inhouse,1520,09-03-2021
Driven By Riide Ltd T/A  ADT Taxis,3303-Taxi Hire,959.76,09-03-2021
Driven By Riide Ltd T/A  ADT Taxis,3303-Taxi Hire,1125,09-03-2021
Driven By Riide Ltd T/A  ADT Taxis,3303-Taxi Hire,1147.4,09-03-2021
Enva England Ltd,5411-Private Contractors - General,22716.46,09-03-2021
ESPO,9641-Debtors Control,31364.93,09-03-2021
First4airport,3303-Taxi Hire,1224.5,09-03-2021
First4airport,3112-Home to Sch Trans Contract Buses Prim,1188,09-03-2021
First4airport,3201-Pooled Transport Recharge Inhouse,1182,09-03-2021
First4airport,3303-Taxi Hire,1836,09-03-2021
Framework Housing Association,5443-Agency & Contracted Services,16344,09-03-2021
G&R Refrigeration Ltd,941D-L&B - Building Costs,1916,09-03-2021
GB Lift Trucks Ltd,3301-Vehicle & Plant Hire,535.5,09-03-2021
George Walker (Tree Care) Ltd,4901-Other Expenditure,1551.07,09-03-2021
REDACTED PERSONAL DATA,3201-Pooled Transport Recharge Inhouse,630,09-03-2021
REDACTED PERSONAL DATA,3303-Taxi Hire,1157,09-03-2021
REDACTED PERSONAL DATA,4905-Legal Expenses,1265,09-03-2021
Hays Specialist Recruitment Limited,4507-Consultants & Specialists,2275,09-03-2021
REDACTED PERSONAL DATA,9179-Interest Paid - Other,531.04,09-03-2021
REDACTED PERSONAL DATA,3303-Taxi Hire,1843.25,09-03-2021
REDACTED PERSONAL DATA Johal Taxis,3303-Taxi Hire,1992.87,09-03-2021
JB Tool Hire Ltd,3301-Vehicle & Plant Hire,651,09-03-2021
JB Tool Hire Ltd,3301-Vehicle & Plant Hire,651,09-03-2021
Jordan Xavier Ltd,5451-LCT/LAC (Not Fostered),5712.86,09-03-2021
Key2 Futures Ltd,5451-LCT/LAC (Not Fostered),574.74,09-03-2021
Key2 Futures Ltd,5451-LCT/LAC (Not Fostered),576.45,09-03-2021
LCC Leicestershire South Area Imprest,4901-Other Expenditure,4318.18,09-03-2021
LCC Loughborough Ashmount School A/C,6101-Support Services,9858,09-03-2021
LCC North Charnwood Area Office Imprest A/C,4901-Other Expenditure,2950.27,09-03-2021
LCC Social Services Hinckley & Bosworth Area Imprest A/C,4901-Other Expenditure,2898.51,09-03-2021
LJW Consultants Ltd,4504-Provisions Purchases,1650.4,09-03-2021
LJW Consultants Ltd,4504-Provisions Purchases,786.87,09-03-2021
LJW Consultants Ltd,4504-Provisions Purchases,1539.48,09-03-2021
LJW Consultants Ltd,4504-Provisions Purchases,794.44,09-03-2021
LJW Consultants Ltd,4504-Provisions Purchases,1261.19,09-03-2021
REDACTED PERSONAL DATA A2Z,3303-Taxi Hire,2017.5,09-03-2021
REDACTED PERSONAL DATA A2Z,3303-Taxi Hire,1796.3,09-03-2021
Mander Cruickshank Solicitors LLP,4507-Consultants & Specialists,1436,09-03-2021
REDACTED PERSONAL DATA,8315-Fees & Charges,511,09-03-2021
REDACTED PERSONAL DATA Cheap Leicester Taxi,3303-Taxi Hire,1521.63,09-03-2021
Mott Macdonald Ltd,5445-Adoption Support,7108.96,09-03-2021
REDACTED PERSONAL DATA,3303-Taxi Hire,1788.5,09-03-2021
ND Brown Ltd,3301-Vehicle & Plant Hire,1500,09-03-2021
NMI Taxi Ltd,3303-Taxi Hire,774.15,09-03-2021
NMI Taxi Ltd,3303-Taxi Hire,625.25,09-03-2021
NMI Taxi Ltd,3303-Taxi Hire,1128.86,09-03-2021
NMI Taxi Ltd,3303-Taxi Hire,2666,09-03-2021
Oadby & Wigston Borough Council,4507-Consultants & Specialists,29912.5,09-03-2021
Oliveti Construction Ltd,941D-L&B - Building Costs,5884.62,09-03-2021
P&R Cars     1,3303-Taxi Hire,1298.75,09-03-2021
P&R Cars     1,3303-Taxi Hire,2652,09-03-2021
Proudcastle Ltd,2105-Reactive Maintenance M&E,830,09-03-2021
Proudcastle Ltd,941D-L&B - Building Costs,6115,09-03-2021
Quadient Finance UK Ltd,4607-Postal Services ,1714.99,09-03-2021
Quadient Finance UK Ltd,4607-Postal Services ,512.66,09-03-2021
REDACTED PERSONAL DATA ,3303-Taxi Hire,1632,09-03-2021
REDACTED PERSONAL DATA ,3303-Taxi Hire,1820,09-03-2021
Reach Publishing Services Ltd,"4503-Advertising, Publicity & Marketing",1343.52,09-03-2021
Reach Publishing Services Ltd,"4503-Advertising, Publicity & Marketing",559.8,09-03-2021
Reach Publishing Services Ltd,"4503-Advertising, Publicity & Marketing",559.8,09-03-2021
Reach Publishing Services Ltd,"4503-Advertising, Publicity & Marketing",559.8,09-03-2021
Reach Publishing Services Ltd,"4503-Advertising, Publicity & Marketing",615.78,09-03-2021
Reach Publishing Services Ltd,"4503-Advertising, Publicity & Marketing",503.82,09-03-2021
Reach Publishing Services Ltd,"4503-Advertising, Publicity & Marketing",671.76,09-03-2021
Richards Al Chalabi Ltd,4507-Consultants & Specialists,4439.5,09-03-2021
Safe Cars,3303-Taxi Hire,595,09-03-2021
Safe Cars,3201-Pooled Transport Recharge Inhouse,680,09-03-2021
Safe Cars,3303-Taxi Hire,2312.5,09-03-2021
Safe Haven Accommodation Ltd,5451-LCT/LAC (Not Fostered),6020,09-03-2021
REDACTED PERSONAL DATA,4509-Client Personal Needs,738,09-03-2021
REDACTED PERSONAL DATA,4507-Consultants & Specialists,658,09-03-2021
Speedline Mini Buses & Taxis,3303-Taxi Hire,798,09-03-2021
Tarmac Trading Ltd,944A-Infr - Infrastructure Exp,1567.74,09-03-2021
Thames Laboratories,2109-Asbestos,1075,09-03-2021
University of Birmingham,1703-Training Expenses,2625,09-03-2021
University of Birmingham,1703-Training Expenses,1540,09-03-2021
WJ South Ltd,4901-Other Expenditure,1687.46,09-03-2021
WJ South Ltd,4901-Other Expenditure,2236.78,09-03-2021
WJ South Ltd,5411-Private Contractors - General,1137.95,09-03-2021
WJ South Ltd,4901-Other Expenditure,1998.49,09-03-2021
WJ South Ltd,4901-Other Expenditure,4250.88,09-03-2021
WJ South Ltd,4901-Other Expenditure,746.9,09-03-2021
WJ South Ltd,4901-Other Expenditure,3373.76,09-03-2021
WSP UK Ltd,4507-Consultants & Specialists,7560,09-03-2021
WSP UK Ltd,4507-Consultants & Specialists,10080,09-03-2021
3D Recruit Ltd,5443-Agency & Contracted Services,5800,10-03-2021
3D Recruit Ltd,5443-Agency & Contracted Services,7980,10-03-2021
3D Recruit Ltd,5443-Agency & Contracted Services,3040,10-03-2021
A1 63 Mercia Taxi,3303-Taxi Hire,1885,10-03-2021
A1 Leicester Cars,3303-Taxi Hire,1767.6,10-03-2021
ABBEYFIELDS EXTRA CARE&&SSAROE52835,9642-Reserved Debtors - Non Public Sector,2550,10-03-2021
ABSOLUTE CARE AGENCY&&ISHC2620,9642-Reserved Debtors - Non Public Sector,5580,10-03-2021
ACACIA CARE (NOTTINGHAM) LTD T/A KINGSFIELD COURT&&SSARO8540,9642-Reserved Debtors - Non Public Sector,2500,10-03-2021
Access Hire Nationwide Ltd,3301-Vehicle & Plant Hire,1337.43,10-03-2021
ACCREDO SUPPORT & DEVELOPMENT LTD&&SUPL525,9642-Reserved Debtors - Non Public Sector,20610,10-03-2021
Action Deafness Ltd,9642-Reserved Debtors - Non Public Sector,6120,10-03-2021
ADA HOMECARE LTD(&&ISHC5852),9642-Reserved Debtors - Non Public Sector,1620,10-03-2021
ADJUVO CARE & SUPPORT&&SSARO2208,9642-Reserved Debtors - Non Public Sector,800,10-03-2021
ALA CARE LTD&&SSAROE1044,9642-Reserved Debtors - Non Public Sector,1600,10-03-2021
ALA CARE LTD&&SSAROE182,9642-Reserved Debtors - Non Public Sector,1750,10-03-2021
ALA CARE LTD&&SSAROE40269,9642-Reserved Debtors - Non Public Sector,1650,10-03-2021
ALLAG CARE LTD T/A SYCAMORE COTTAGE&&SSAROE44469,9642-Reserved Debtors - Non Public Sector,1150,10-03-2021
ALLCONTRAST LTD & GIVECARE LTD&&SSAROE2374,9642-Reserved Debtors - Non Public Sector,2800,10-03-2021
AMBERWOOD CARE HOME LTD&&SSAROE40398,9642-Reserved Debtors - Non Public Sector,2750,10-03-2021
AMICARE DOMICILIRY CARE SERVICES LTD&&ISHC2524,9642-Reserved Debtors - Non Public Sector,6390,10-03-2021
AMS CARE SERVICE LTD&&SSARO2055 T/A APRIL COTTAGE,9642-Reserved Debtors - Non Public Sector,700,10-03-2021
REDACTED PERSONAL DATA,4509-Client Personal Needs,840,10-03-2021
Anstey Surgery,5447-General Practioners,500,10-03-2021
APPLE HOUSE LEICESTER LTD&&SSAROE185,9642-Reserved Debtors - Non Public Sector,500,10-03-2021
ASH TREE&&SSAROE424,9642-Reserved Debtors - Non Public Sector,550,10-03-2021
ASHBY COURT NURSING HOME&&SSAROE40195,9642-Reserved Debtors - Non Public Sector,3650,10-03-2021
Askews & Holts Library Services Ltd,4111-Books & Audio Visual,3340.57,10-03-2021
ASPIRATIONS CARE LTD&&SUPL4189,9642-Reserved Debtors - Non Public Sector,6480,10-03-2021
Atalian Servest Ltd,2402-Contract Cleaning,65207.9,10-03-2021
AVERY HOMES HINCKLEY LTD&&SSARO2898,9642-Reserved Debtors - Non Public Sector,3200,10-03-2021
AVVISIM CARE LTD T/A FERNLEIGH CARE HOME&&SSAROE40336,9642-Reserved Debtors - Non Public Sector,1250,10-03-2021
AYLESHAM COURT NURSING HOME&&SSAROE59696,9642-Reserved Debtors - Non Public Sector,3250,10-03-2021
Baca Charity,5411-Private Contractors - General,2086.43,10-03-2021
Baca Charity,5411-Private Contractors - General,2200,10-03-2021
Baca Charity,5411-Private Contractors - General,2200,10-03-2021
Baca Charity,5411-Private Contractors - General,2200,10-03-2021
Baca Charity,5411-Private Contractors - General,2440,10-03-2021
Baca Charity,5411-Private Contractors - General,2440,10-03-2021
Baca Charity,5411-Private Contractors - General,2440,10-03-2021
Baca Charity,5411-Private Contractors - General,2200,10-03-2021
Baca Charity,5411-Private Contractors - General,1960,10-03-2021
BARCHESTER HEALTHCARE HOMES LTD&&SAROE59408,9642-Reserved Debtors - Non Public Sector,2050,10-03-2021
BERRYSTEAD NURSING & RESIDENTIAL  HOME LTD&&SSAROE2040,9642-Reserved Debtors - Non Public Sector,2250,10-03-2021
BESTCARE LTD&&SSAROE1281,9642-Reserved Debtors - Non Public Sector,850,10-03-2021
BETHEL RESIDENTIAL HOME&&SSAROE40459,9642-Reserved Debtors - Non Public Sector,1750,10-03-2021
BETHESDA CAREHOMES LTD TA PINGLENOOK&&SSAROE40346,9642-Reserved Debtors - Non Public Sector,1150,10-03-2021
BIRSTALL CARE SERVICES LTD&&SSARO3339,9642-Reserved Debtors - Non Public Sector,5650,10-03-2021
Bishop Sports & Leisure Ltd,4102-General Equipment - Purchase & Repairs,2352,10-03-2021
Blue Mountain Homes Ltd,5411-Private Contractors - General,687.73,10-03-2021
Blue Mountain Homes Ltd,5411-Private Contractors - General,31628.86,10-03-2021
Blue Mountain Homes Ltd,5411-Private Contractors - General,32749.28,10-03-2021
Blue Mountain Homes Ltd,5411-Private Contractors - General,37076,10-03-2021
Blue Mountain Homes Ltd,5411-Private Contractors - General,28558.26,10-03-2021
BLUE RIBBON CARE AGENCY&&DPDP999445,9642-Reserved Debtors - Non Public Sector,1620,10-03-2021
BLUEWOOD RECRUITMENT LTD&&ISHC3933,9642-Reserved Debtors - Non Public Sector,1800,10-03-2021
Bolinda UK Ltd,4111-Books & Audio Visual,719.15,10-03-2021
Bolinda UK Ltd,4111-Books & Audio Visual,734.29,10-03-2021
Bolinda UK Ltd,4111-Books & Audio Visual,570.67,10-03-2021
Bolinda UK Ltd,4111-Books & Audio Visual,1862.06,10-03-2021
Bolinda UK Ltd,4111-Books & Audio Visual,2110.75,10-03-2021
Bolinda UK Ltd,4111-Books & Audio Visual,2035.24,10-03-2021
Bolinda UK Ltd,4111-Books & Audio Visual,1387.58,10-03-2021
Bolinda UK Ltd,4111-Books & Audio Visual,609.84,10-03-2021
Bolinda UK Ltd,4111-Books & Audio Visual,3819.36,10-03-2021
Bolinda UK Ltd,4111-Books & Audio Visual,1167,10-03-2021
BRIARS & ROSE LODGE&&SSAROE1126,9642-Reserved Debtors - Non Public Sector,600,10-03-2021
Bridgeall Libraries Ltd,4111-Books & Audio Visual,16950,10-03-2021
BROADOAK GRANGE RESIDENTIAL HOME&&SSAROE40338,9642-Reserved Debtors - Non Public Sector,1600,10-03-2021
BROADOAK LODGE&&SSAROE66479,9642-Reserved Debtors - Non Public Sector,1900,10-03-2021
BROOK HOUSE&&SSAROE40313,9642-Reserved Debtors - Non Public Sector,2500,10-03-2021
BURBAGE HOMECARE LTD&&ISHCHC455,9642-Reserved Debtors - Non Public Sector,2880,10-03-2021
BWOC,3104-Petrol / Oil / Types / Spares,19120,10-03-2021
CARE AT HOME (MIDLANDS) LTD&&ISHC2753,9642-Reserved Debtors - Non Public Sector,6750,10-03-2021
CARELINK HEALTHCARE PROFESSIONALS LTD&&ISHC3871,9642-Reserved Debtors - Non Public Sector,3960,10-03-2021
CARING HANDS DOMICILIARY CARE LTD&&ISHC3229,9642-Reserved Debtors - Non Public Sector,5400,10-03-2021
Castle Catering Engineers Ltd,2102-R&M Buildings Service Contracts,1026.22,10-03-2021
CEDAR HOUSE CARE HOME LTD&&SSAROE40413,9642-Reserved Debtors - Non Public Sector,2400,10-03-2021
Central Bedfordshire Council,4507-Consultants & Specialists,818.09,10-03-2021
Central Construction Services Ltd,4109-Materials,565.2,10-03-2021
Centrebus Ltd,3113-Home to Sch Trans Contract Buses Sec,4200,10-03-2021
Centrebus Ltd,3113-Home to Sch Trans Contract Buses Sec,4330.86,10-03-2021
Centrebus Ltd,3113-Home to Sch Trans Contract Buses Sec,4980,10-03-2021
Certas Energy UK Ltd T/A Pace Fuelcare Ltd,"9634-Inventories - LHD Fuel White, Diesel",7552.94,10-03-2021
Certas Energy UK Ltd T/A Pace Fuelcare Ltd,"9634-Inventories - LHD Fuel White, Diesel",4711.5,10-03-2021
CHARNWOOD PARK&&SAROE40270,9642-Reserved Debtors - Non Public Sector,650,10-03-2021
CHARTWELL TRUST CARE PLC&&SSARO2345,9642-Reserved Debtors - Non Public Sector,700,10-03-2021
CHERRE RESIDENTIAL CARE LTD  REDACTED PERSONAL DATA&&SSAROE40392,9642-Reserved Debtors - Non Public Sector,1200,10-03-2021
CHERRYTREE CARE LTD&&SSAROE40314,9642-Reserved Debtors - Non Public Sector,1400,10-03-2021
CHOICES FOR LIFE (UK)LTD&&CLCD3323,9642-Reserved Debtors - Non Public Sector,540,10-03-2021
CLAREGRANGE TRADING LTD REDACTED PERSONAL DATA &&SARO5107,9642-Reserved Debtors - Non Public Sector,5350,10-03-2021
CLEARVISION (GB) T/A CHATAWAY RESIDENTIAL HOME LTD&&SSAROE40294,9642-Reserved Debtors - Non Public Sector,800,10-03-2021
Coalville Cabs Ltd,3303-Taxi Hire,586.02,10-03-2021
Coalville Cabs Ltd,3303-Taxi Hire,2177.5,10-03-2021
Coalville Cabs Ltd,3303-Taxi Hire,1029.5,10-03-2021
COMMUNITY CARELINE NORTHWEST LEICESTERSHIRE LTD&&ISHCHC1514,9642-Reserved Debtors - Non Public Sector,2880,10-03-2021
COMMUNITY LIVING PROJECT&&SSAROE56011,9642-Reserved Debtors - Non Public Sector,850,10-03-2021
CONIFER LODGE&&SSAROE40296,9642-Reserved Debtors - Non Public Sector,1250,10-03-2021
CRAEGMOOR FACILITIES CO LTD RE CHARNWOOD LODGE&&SSAROE346,9642-Reserved Debtors - Non Public Sector,3400,10-03-2021
CRAEGMOOR FACILITIES CO LTD RE MEADOWS&&SSAROE40227,9642-Reserved Debtors - Non Public Sector,1350,10-03-2021
CREATIVE CARE (LEICESTER) LTD&&SUPL6195,9642-Reserved Debtors - Non Public Sector,6570,10-03-2021
CSN Care Group Ltd,9642-Reserved Debtors - Non Public Sector,4860,10-03-2021
D&H COMMUNITY SUPPORT LTD&&CLCD3309,9642-Reserved Debtors - Non Public Sector,3780,10-03-2021
REDACTED PERSONAL DATA  MOAT HOUSE RETIREMENT LTD&&SSAROE276,9642-Reserved Debtors - Non Public Sector,6100,10-03-2021
Dodds Solicitors LLP,"4503-Advertising, Publicity & Marketing",813.86,10-03-2021
Driven By Riide Ltd T/A  ADT Taxis,3201-Pooled Transport Recharge Inhouse,1050.5,10-03-2021
EGERTON LODGE&&SSAROE40415,9642-Reserved Debtors - Non Public Sector,2900,10-03-2021
ENRYCH (LEICESTERSHIRE & DERBYSHIRE)&&DPDP999419,4908-Grants,9000,10-03-2021
Enstruct Training Ltd,4908-Grants,5000,10-03-2021
Eurohire Vehicle Rentals (Birmingham) Ltd,3301-Vehicle & Plant Hire,2800,10-03-2021
Eurohire Vehicle Rentals (Birmingham) Ltd,3301-Vehicle & Plant Hire,2520,10-03-2021
Eye FM Ltd,4908-Grants,4000,10-03-2021
Feed The Hungry UK,4908-Grants,11600,10-03-2021
FIRSTMILE LTD&&SSAROE642,9642-Reserved Debtors - Non Public Sector,1150,10-03-2021
FIRSTSMILE LTD&&SSAROE6,9642-Reserved Debtors - Non Public Sector,900,10-03-2021
Ford & Slater of Leicester,3102-Vehicle & Plant Repairs & Maintenance,673.81,10-03-2021
Fostering Attachments Ltd T/A Inspire Training Group,5443-Agency & Contracted Services,500,10-03-2021
FOUNDATION CARE LTD T/A MANTON HALL&&SSAROE40333,9642-Reserved Debtors - Non Public Sector,2100,10-03-2021
FOUR SEASONS (EVEDALE LTD) RE THE WILLOWS&&SSAROE40243,9642-Reserved Debtors - Non Public Sector,2500,10-03-2021
FREEDOM CARE LTD T/A PRIVATE ROAD   HUGGLESCOTE&&SARO3385,9642-Reserved Debtors - Non Public Sector,800,10-03-2021
FREEDOM SUPPORT SOLUTIONS LTD&&SUPL4598,9642-Reserved Debtors - Non Public Sector,2160,10-03-2021
Frontline Staffing Ltd,1201-Agency Costs,1620.23,10-03-2021
Frontline Staffing Ltd,1201-Agency Costs,1731.23,10-03-2021
Frontline Staffing Ltd,1201-Agency Costs,1546.23,10-03-2021
Frontline Staffing Ltd,1201-Agency Costs,1647.73,10-03-2021
FSHC NEWCO LTD T/A THE LAWNS CARE HOME&&SSAROE76864,9642-Reserved Debtors - Non Public Sector,2200,10-03-2021
Futureminds Ltd,4509-Client Personal Needs,1440,10-03-2021
G Taylor Electrical Ltd,2103-Fixtures & Fittings,621.24,10-03-2021
Galliford Try Infrastructure Ltd T/A Highways,944A-Infr - Infrastructure Exp,29740.65,10-03-2021
Geldards LLP,2101-R&M Buildings,1348,10-03-2021
GENESIS HOMES (ESSEX) LTD&&SSARO1089,9642-Reserved Debtors - Non Public Sector,550,10-03-2021
GOLD CROWN CARE SERVICES&&ISHC8315,9642-Reserved Debtors - Non Public Sector,900,10-03-2021
GP HOMECARE LTD T/A RADIS COMMUNITY CARE&&ISHC5054,9642-Reserved Debtors - Non Public Sector,10260,10-03-2021
Grant Thornton UK LLP,6602-Audit Fee,14813,10-03-2021
Great Bowden Parish Council,5411-Private Contractors - General,1848,10-03-2021
GREEN LEAF HEALTHCARE LTD T/A LIVESEY LODGE CARE HOME&&SSAROE40457,9642-Reserved Debtors - Non Public Sector,550,10-03-2021
Green Towers Hinckley Club For Young People Ltd,4908-Grants,3000,10-03-2021
H&B Specialist Supplies Ltd,9631-Inventories - General,581.32,10-03-2021
H&B Specialist Supplies Ltd,4109-Materials,1509.54,10-03-2021
HALES GROUP LTD&&ISHC3228,9642-Reserved Debtors - Non Public Sector,2970,10-03-2021
Harborough District Children & Young Peoples Charity (HCYC),4908-Grants,10000,10-03-2021
Harborough District Council (NDR),2311-Rates,1919.2,10-03-2021
Harmless CIC,4908-Grants,10000,10-03-2021
HAWTHORNE CARE LTD&&SSAROE1360,9642-Reserved Debtors - Non Public Sector,1150,10-03-2021
Hays Specialist Recruitment Limited,1701-Recruitment,7920,10-03-2021
HC ONE LTD RE CEDAR COURT&&SSAROE43896,9642-Reserved Debtors - Non Public Sector,2600,10-03-2021
HC ONE LTD RE HINCKLEY PARK&&SSAROE24,9642-Reserved Debtors - Non Public Sector,2550,10-03-2021
HC ONE LTD RE MAGNA&&SSAROE68590,9642-Reserved Debtors - Non Public Sector,1800,10-03-2021
HC ONE LTD RE THE WILLOWS&&SSAROE40262,9642-Reserved Debtors - Non Public Sector,2050,10-03-2021
HC ONE RE THE ROWANS&&SSAROE53508,9642-Reserved Debtors - Non Public Sector,3350,10-03-2021
Healthy Buildings International Ltd,2108-Legionella,668.06,10-03-2021
HEATHCOTES CARE LTD&&SSAROE1336,9642-Reserved Debtors - Non Public Sector,1300,10-03-2021
HEATHCOTES CARE LTD&&SSAROE1336,9642-Reserved Debtors - Non Public Sector,1400,10-03-2021
HEATHCOTES M LTD&&SSARO2756,9642-Reserved Debtors - Non Public Sector,1300,10-03-2021
HEATHCOTES M LTD&&SSARO2756,9642-Reserved Debtors - Non Public Sector,1250,10-03-2021
HEATHCOTES&&SSARO2014,9642-Reserved Debtors - Non Public Sector,1500,10-03-2021
REDACTED PERSONAL DATA,4507-Consultants & Specialists,660,10-03-2021
REDACTED PERSONAL DATA,4507-Consultants & Specialists,660,10-03-2021
HELP AT HOME LTD&&ISHC3234,9642-Reserved Debtors - Non Public Sector,28890,10-03-2021
Helpful Home Care Ltd,9642-Reserved Debtors - Non Public Sector,1080,10-03-2021
HEROIC CARE LTD T/A JUBILEE VILLA&&SSAROE749,9642-Reserved Debtors - Non Public Sector,900,10-03-2021
HEROIC CARE LTD&&SUPL4341,9642-Reserved Debtors - Non Public Sector,11340,10-03-2021
HERONS LODGE&&SSAROE433,9642-Reserved Debtors - Non Public Sector,550,10-03-2021
HF TRUST LTD&&SUPL2212,9642-Reserved Debtors - Non Public Sector,5850,10-03-2021
HFM Radio Ltd,4908-Grants,6000,10-03-2021
Highfields Associates Ltd,3303-Taxi Hire,870,10-03-2021
Highfields Associates Ltd,3303-Taxi Hire,2068,10-03-2021
Hilldale Housing Association,5506-Supported Living,1358.56,10-03-2021
Hinckley Town Tennis Club,4908-Grants,2500,10-03-2021
Home Care Harborough Ltd t/a Home Instead Senior Care,9642-Reserved Debtors - Non Public Sector,8460,10-03-2021
HOME FROM HOME RESIDENTIAL CARE LTD&&SSAROE421,9642-Reserved Debtors - Non Public Sector,500,10-03-2021
Home Start South Leicestershire,4908-Grants,10000,10-03-2021
HOMEFIELD COLLEGE LTD&&SSAROE40389,9642-Reserved Debtors - Non Public Sector,500,10-03-2021
HOMEFIELD COLLEGE LTD&&SSAROE40389,9642-Reserved Debtors - Non Public Sector,500,10-03-2021
HOMEFIELD COLLEGE LTD&&SSAROE40389,9642-Reserved Debtors - Non Public Sector,550,10-03-2021
HOMEFIELD COLLEGE LTD&&SSAROE40389,9642-Reserved Debtors - Non Public Sector,550,10-03-2021
HUNTERS LODGE RETIREMENT HOME LTD&&SSAROE40396,9642-Reserved Debtors - Non Public Sector,1750,10-03-2021
IDEAL CARE HOMES LTD MAIN ACCOUNT T/A WOODTHORPE LODGE&&SARO9362,9642-Reserved Debtors - Non Public Sector,2050,10-03-2021
IDEAL CARE HOMES LTD T/AS MOUNTVIEW CARE HOME&&SSARO3374,9642-Reserved Debtors - Non Public Sector,2850,10-03-2021
REDACTED PERSONAL DATA,5628-Transfer Payments Leaving Care Grants,1349,10-03-2021
JADE BLOSSOM LTD T/A THE GRANGE NURSING & RESIDENTIAL HOME&&SSARO3403,9642-Reserved Debtors - Non Public Sector,1950,10-03-2021
Jamma Umoja (Residential Services) Ltd,5411-Private Contractors - General,3916,10-03-2021
REDACTED PERSONAL DATA WILLOWS PRIVATENURSING HOME BUSINESS CURRENT A/C&&SSAROE40242,9642-Reserved Debtors - Non Public Sector,2500,10-03-2021
JOHNSON JAMES CARE LTD T/A HOME INSTEAD SENIOR CARE CHARNWOOD LOUGHBOROUGH & COALVILLE&&ISHC6295,9642-Reserved Debtors - Non Public Sector,4590,10-03-2021
JUNE HOMECARE LIMITED&&ISHC6029,9642-Reserved Debtors - Non Public Sector,3060,10-03-2021
K PRASAD & GIVECARE LTD T/A BOSWORTH HOMECARE SERVICES&&ISHCHC446,9642-Reserved Debtors - Non Public Sector,11160,10-03-2021
KEENGLEN CARE HOMES LTD&&SSARO3220,9642-Reserved Debtors - Non Public Sector,1350,10-03-2021
REDACTED PERSONAL DATA Leicester Black Cabs Ltd,3303-Taxi Hire,1533.53,10-03-2021
KIBWORTH KNOLL LTD&&SSAROE76184,9642-Reserved Debtors - Non Public Sector,1950,10-03-2021
Kinchbus Ltd,5428-Minimum Cost Contracts,134041.28,10-03-2021
Kingfisher Care (Midlands) Ltd,9642-Reserved Debtors - Non Public Sector,2250,10-03-2021
KINGLEY PARTNERSHIP LTD T/A KINGLEY HOUSE&&SSARO1232,9642-Reserved Debtors - Non Public Sector,1800,10-03-2021
KINGS RESIDENTIAL CARE HOMES LTD&&SSARO1726,9642-Reserved Debtors - Non Public Sector,950,10-03-2021
KINGSWOOD LODGE&&SSAROE40284,9642-Reserved Debtors - Non Public Sector,1100,10-03-2021
Kirby Care Ltd Account,9642-Reserved Debtors - Non Public Sector,1440,10-03-2021
KIRBY GRANGE LTD (KIRBY GRANGE RESIDENTIAL HOME)&&SSAROE40286,9642-Reserved Debtors - Non Public Sector,1550,10-03-2021
Knighton Janitorial,2102-R&M Buildings Service Contracts,1080,10-03-2021
KROSS INVESTEMENT LTD T/A BELTON HOUSE&&SSAROE74367,9642-Reserved Debtors - Non Public Sector,800,10-03-2021
LANGDALE HOUSE LTD&&SSAROE40271,9642-Reserved Debtors - Non Public Sector,1550,10-03-2021
LCC Anstey Latimer CP School A/C,6101-Support Services,11048,10-03-2021
LCC Anstey Latimer CP School A/C,9723-Reserved Creditors - Public Sector,1500,10-03-2021
LCC Ashby De La Zouch CE Primary School A/C,6101-Support Services,10879,10-03-2021
LCC Ashby De La Zouch Woodcote Primary School A/C,6101-Support Services,10325,10-03-2021
LCC Barwell CI School A/C,6101-Support Services,10010,10-03-2021
LCC Barwell Newlands CP School A/C,6101-Support Services,10704,10-03-2021
LCC Belton CE Primary School A/C,6101-Support Services,9835,10-03-2021
LCC Billesdon Parochial Primary School A/C,6101-Support Services,9818,10-03-2021
LCC Blaby Thistly Meadow Primary School A/C,6101-Support Services,10372,10-03-2021
LCC Braunstone Ravenhurst CP School A/C,6101-Support Services,11964,10-03-2021
LCC Breedon On The Hill St Hardulphs School A/C,6101-Support Services,9602,10-03-2021
LCC Breedon On The Hill St Hardulphs School A/C,9723-Reserved Creditors - Public Sector,1050,10-03-2021
LCC Broughton Astley Orchard CE School A/C,6101-Support Services,10249,10-03-2021
LCC Buckminster CP School A/C,6101-Support Services,9806,10-03-2021
LCC Burbage CE Infants School A/C,6101-Support Services,10360,10-03-2021
LCC Burbage County Junior School A/C,6101-Support Services,11556,10-03-2021
LCC Burbage Sketchley Hill CP School A/C,6101-Support Services,11702,10-03-2021
LCC Burton On The Wolds CP School A/C,6101-Support Services,10238,10-03-2021
LCC Castle Donington Orchard CP School A/C,6101-Support Services,10768,10-03-2021
LCC Coalville All Saints CE School A/C,6101-Support Services,10477,10-03-2021
LCC Coalville Belvoir Dale County School A/C,6101-Support Services,10821,10-03-2021
LCC Congerstone County School A/C,6101-Support Services,10208,10-03-2021
LCC Cossington CE School A/C,6101-Support Services,9847,10-03-2021
LCC Countesthorpe Greenfields Primary School A/C,6101-Support Services,12571,10-03-2021
LCC Desford CP School A/C,6101-Support Services,11229,10-03-2021
LCC Diseworth C E Primary School A/C,6101-Support Services,9672,10-03-2021
LCC Donisthorpe CP School A/C,6101-Support Services,10366,10-03-2021
LCC Ellistown CP School A/C,6101-Support Services,10395,10-03-2021
LCC Fleckney CE School A/C,6101-Support Services,11288,10-03-2021
LCC Foxton County School A/C,9723-Reserved Creditors - Public Sector,1500,10-03-2021
LCC Foxton County School A/C,6101-Support Services,9777,10-03-2021
LCC Foxton County School A/C,9723-Reserved Creditors - Public Sector,27442,10-03-2021
LCC Glenfield The Hall Primary School A/C,6101-Support Services,11433,10-03-2021
LCC Great Glen St Cuthberts CE Primary School A/C,6101-Support Services,10751,10-03-2021
LCC Griffydam CP School A/C,6101-Support Services,9888,10-03-2021
LCC Groby Elizabeth Woodville County School A/C,6101-Support Services,10407,10-03-2021
LCC Groby Martinshaw County School A/C,6101-Support Services,10383,10-03-2021
LCC Hallaton CE School A/C,6101-Support Services,9876,10-03-2021
LCC Hallaton CE School A/C,9723-Reserved Creditors - Public Sector,1500,10-03-2021
LCC Harby CE School A/C,6101-Support Services,9771,10-03-2021
LCC Hathern CE Primary School A/C,6101-Support Services,10138,10-03-2021
LCC Heather County School A/C,6101-Support Services,9870,10-03-2021
LCC Hemington County Primary School A/C,6101-Support Services,9596,10-03-2021
LCC Hinckley Westfield CI School A/C,6101-Support Services,10471,10-03-2021
LCC Hinckley Westfield CJ School A/C,6101-Support Services,11608,10-03-2021
LCC Hose CE School A/C,6101-Support Services,9613,10-03-2021
LCC Hugglescote CP School A/C,6101-Support Services,11480,10-03-2021
LCC Ibstock CJ School A/C,6101-Support Services,11025,10-03-2021
LCC Ibstock St Denys CE Infants School A/C,6101-Support Services,10319,10-03-2021
LCC Kegworth CP School A/C,6101-Support Services,10319,10-03-2021
LCC Kilby CE School A/C,6101-Support Services,9724,10-03-2021
LCC Little Bowden CP School A/C,9723-Reserved Creditors - Public Sector,1500,10-03-2021
LCC Little Bowden CP School A/C,6101-Support Services,11340,10-03-2021
LCC Long Clawson CE School A/C,6101-Support Services,9753,10-03-2021
LCC Long Whatton Primary School A/C,6101-Support Services,9794,10-03-2021
LCC Loughborough Booth Wood CP School A/C,6101-Support Services,10494,10-03-2021
LCC Loughborough Thorpe Acre County Junior School A/C,6101-Support Services,10372,10-03-2021
LCC Loughborough Thorpe Acre Infant School A/C,6101-Support Services,9800,10-03-2021
LCC Melton Mowbray Birch Wood School A/C,6101-Support Services,9619,10-03-2021
LCC Moira Primary School,6101-Support Services,10308,10-03-2021
LCC Nailstone Dove Bank Primary School A/C,6101-Support Services,9987,10-03-2021
LCC New Swannington Primary School A/C,6101-Support Services,10308,10-03-2021
LCC Newbold Coleorton CE School A/C,9723-Reserved Creditors - Public Sector,1500,10-03-2021
LCC Newbold Coleorton CE School A/C,6101-Support Services,9596,10-03-2021
LCC Newbold Verdon CP School A/C,6101-Support Services,10611,10-03-2021
LCC Newton Burgoland CP School A/C,6101-Support Services,9777,10-03-2021
LCC Quorn St Bartholomews CE Primary School A/C,6101-Support Services,11923,10-03-2021
LCC Scalford CE School A/C,6101-Support Services,9713,10-03-2021
LCC Sheepy Magna CE School A/C,6101-Support Services,9905,10-03-2021
LCC Shepshed Oxley CP School A/C,6101-Support Services,10605,10-03-2021
LCC Shepshed St Botolphs CE Primary School A/C,6101-Support Services,10833,10-03-2021
LCC Sileby Highgate CP School A/C,6101-Support Services,10383,10-03-2021
LCC Snarestone CP School A/C,6101-Support Services,9765,10-03-2021
LCC Stathern CP School A/C,6101-Support Services,9818,10-03-2021
LCC Swithland St Leonards CE School A/C,6101-Support Services,9788,10-03-2021
LCC Thurlaston CE Primary School A/C,6101-Support Services,9853,10-03-2021
LCC Thurmaston Bishop Ellis RC Primary School A/C,6101-Support Services,10943,10-03-2021
LCC Whetstone Badgerbrook Primary School A/C,6101-Support Services,11404,10-03-2021
LCC Whitwick CE Primary School A/C,6101-Support Services,11083,10-03-2021
LCC Wigston Fields Water Leys CP School A/C,6101-Support Services,11422,10-03-2021
LCC Wigston Thythorn Field CP School A/C,6101-Support Services,10348,10-03-2021
LCC Woodhouse Eaves St Pauls CE Primary School A/C,6101-Support Services,10413,10-03-2021
LCC Woodstone County School A/C,6101-Support Services,10407,10-03-2021
LCC Worthington Primary School A/C,6101-Support Services,9701,10-03-2021
LCC Wymeswold CE School A/C,6101-Support Services,9847,10-03-2021
Leicester City Council,9729-Suspense (Current Liability),34612.38,10-03-2021
Leicester City Council,4901-Other Expenditure,283408,10-03-2021
Leicester City Council,5221-Public Bodies Health,87315,10-03-2021
Leicester YMCA,4908-Grants,500,10-03-2021
LEICESTERSHIRE COUNTY CARE LTD&&SSARO2541,9642-Reserved Debtors - Non Public Sector,2800,10-03-2021
LEICESTERSHIRE COUNTY CARE LTD&&SSARO2541,9642-Reserved Debtors - Non Public Sector,2800,10-03-2021
LEICESTERSHIRE COUNTY CARE LTD&&SSARO2541,9642-Reserved Debtors - Non Public Sector,1950,10-03-2021
LEICESTERSHIRE COUNTY CARE LTD&&SSARO2541,9642-Reserved Debtors - Non Public Sector,2250,10-03-2021
LEICESTERSHIRE COUNTY CARE LTD&&SSARO2541,9642-Reserved Debtors - Non Public Sector,2950,10-03-2021
LEICESTERSHIRE COUNTY CARE LTD&&SSARO2541,9642-Reserved Debtors - Non Public Sector,2800,10-03-2021
LEICESTERSHIRE COUNTY CARE LTD&&SSARO2541,9642-Reserved Debtors - Non Public Sector,2150,10-03-2021
LEICESTERSHIRE COUNTY CARE LTD&&SSARO2541,9642-Reserved Debtors - Non Public Sector,2550,10-03-2021
LEONARD CHESHIRE FOUNDATION&&SSAROE905,9642-Reserved Debtors - Non Public Sector,750,10-03-2021
LEONARD CHESHIRE FOUNDATION&&SSAROE905,9642-Reserved Debtors - Non Public Sector,2100,10-03-2021
Liberty HSC Ltd,5411-Private Contractors - General,3493,10-03-2021
LIFEWAYS&&SUPL4191,9642-Reserved Debtors - Non Public Sector,33750,10-03-2021
LINGDALE LODGE RESIDENTIAL HOME&&SSAROE461,9642-Reserved Debtors - Non Public Sector,2600,10-03-2021
LODGE RESIDENTIAL HOME&&SSAROE40440,9642-Reserved Debtors - Non Public Sector,1950,10-03-2021
LODGE TRUST&&SSAROE40324,9642-Reserved Debtors - Non Public Sector,3150,10-03-2021
LYNDHURST LODGE LTD&&SSAROE40340,9642-Reserved Debtors - Non Public Sector,1200,10-03-2021
REDACTED PERSONAL DATA A2Z,3201-Pooled Transport Recharge Inhouse,600,10-03-2021
REDACTED PERSONAL DATA A2Z,3303-Taxi Hire,2006.65,10-03-2021
MACINTYRE CARE&&SSAROE40268,9642-Reserved Debtors - Non Public Sector,3350,10-03-2021
MARCHA SOLUTIONS LTD T/A BLUEBIRD CARE LOUGHBOROUGH&&ISHC6008,9642-Reserved Debtors - Non Public Sector,1440,10-03-2021
Marlene Reid Centre Community Action     1,4908-Grants,14158,10-03-2021
REDACTED PERSONAL DATA,3303-Taxi Hire,978.75,10-03-2021
MARS CARE SERVICES LTD&&SSARO1430,9642-Reserved Debtors - Non Public Sector,700,10-03-2021
MAVEN HEALTHCARE LEICESTER LTD T/A HUNTERS LODGE&&SSAROE40448,9642-Reserved Debtors - Non Public Sector,1980,10-03-2021
MAVEN HEALTHCARE LEICESTER LTD T/A HUNTERS LODGE&&SSAROE40448,9642-Reserved Debtors - Non Public Sector,1100,10-03-2021
MEDACS HEALTHCARE&&ISHC3235,9642-Reserved Debtors - Non Public Sector,10620,10-03-2021
MELM CARE SOLUTIONS&&SUPL6179,9642-Reserved Debtors - Non Public Sector,1530,10-03-2021
MELTON CARE LTD THE AMWELL&&SARO3345,9642-Reserved Debtors - Non Public Sector,3000,10-03-2021
MELTON CARE SERVICES LTD&&ISHC3134,9642-Reserved Debtors - Non Public Sector,6840,10-03-2021
Melton Learning Hub,4908-Grants,10400,10-03-2021
METHODIST HOMES FOR THE AGED RESIDENTS CHARGE A/C&&SSAROE40300,9642-Reserved Debtors - Non Public Sector,3650,10-03-2021
MHA Care Home Inc,9642-Reserved Debtors - Non Public Sector,1350,10-03-2021
Midland Red (South) Ltd T/A Stagecoach Midlands,5428-Minimum Cost Contracts,27306.93,10-03-2021
Midlands Partnership NHS Foundation Trust,5221-Public Bodies Health,194781.02,10-03-2021
Midlands Partnership NHS Foundation Trust,5221-Public Bodies Health,194781.02,10-03-2021
Midlands Partnership NHS Foundation Trust,5221-Public Bodies Health,194781.02,10-03-2021
Midlands Partnership NHS Foundation Trust,5221-Public Bodies Health,194781.02,10-03-2021
Midlands Partnership NHS Foundation Trust,5221-Public Bodies Health,194781.02,10-03-2021
MILIFE CARE SERVICE LTD&&ISHC3782,9642-Reserved Debtors - Non Public Sector,6570,10-03-2021
MINSTER CARE GROUP T/A SAFFRON HOUSE&&SSARO8966,9642-Reserved Debtors - Non Public Sector,2050,10-03-2021
REDACTED PERSONAL DATA,3303-Taxi Hire,652.17,10-03-2021
REDACTED PERSONAL DATA,5627-Transfer Payments Education Costs,889,10-03-2021
MOSAIC SHAPING DISABILITY SERVICES&&CLCD3331,9642-Reserved Debtors - Non Public Sector,1530,10-03-2021
Moving Up Care Ltd,5451-LCT/LAC (Not Fostered),3000,10-03-2021
Moving Up Care Ltd,5451-LCT/LAC (Not Fostered),12000,10-03-2021
Murphys Taxis Ltd,3201-Pooled Transport Recharge Inhouse,504,10-03-2021
MYMIL LTD&&SSARO1930,9642-Reserved Debtors - Non Public Sector,1400,10-03-2021
NATIONAL AUTISTIC SOCIETY&&SSAROE385,9642-Reserved Debtors - Non Public Sector,1300,10-03-2021
NEW HOPE SPECIALIST CARE LTD&&ISHC3161,9642-Reserved Debtors - Non Public Sector,720,10-03-2021
NEW HORIZONS CARE LTD&&ISHC3755,9642-Reserved Debtors - Non Public Sector,9990,10-03-2021
New Life Community Church,4908-Grants,15000,10-03-2021
REDACTED PERSONAL DATA ROSE COTTAGE REST HOME&&SSAROE810,9642-Reserved Debtors - Non Public Sector,1050,10-03-2021
NIGHTINGALE NURSING HOME LTD&&SSAROE40228,9642-Reserved Debtors - Non Public Sector,2050,10-03-2021
NORTHFIELD HOUSE RESIDENTIAL HOME (AMAFHH CARE HOMES LTD)&&SSAROE40359,9642-Reserved Debtors - Non Public Sector,900,10-03-2021
Norton Taxi Services Ltd,3303-Taxi Hire,2588.5,10-03-2021
Oadby & Wigston Borough Council,5211-Other Local Authorities,17355.19,10-03-2021
OAKLEIGH RESIDENTIAL HOME LTD&&SSAROE40349,9642-Reserved Debtors - Non Public Sector,1250,10-03-2021
ORCHARD COURT LEICESTER LTD T/A ORCHARD COURT CARE HOME&&SSARO3338,9642-Reserved Debtors - Non Public Sector,1750,10-03-2021
ORCHARD HOUSE&&SSAROE297,9642-Reserved Debtors - Non Public Sector,850,10-03-2021
PA Hulse Excavations,3301-Vehicle & Plant Hire,1015,10-03-2021
PA Hulse Excavations,3301-Vehicle & Plant Hire,985,10-03-2021
PA Hulse Excavations,3301-Vehicle & Plant Hire,925,10-03-2021
PA Hulse Excavations,3301-Vehicle & Plant Hire,985,10-03-2021
Packington CE Primary School,6101-Support Services,9888,10-03-2021
PANASHE HOME CARE SERVICES LTD&&ISHC3952,9642-Reserved Debtors - Non Public Sector,2430,10-03-2021
PATHWAYS CARE GROUP LTD T/A FAMILLE HOUSE&&SSAROE40283,9642-Reserved Debtors - Non Public Sector,1100,10-03-2021
PATHWAYS CARE GROUP T/A HONEYSUCKLE FARM&&SSAROE40466,9642-Reserved Debtors - Non Public Sector,1100,10-03-2021
PEAR TREE GROVE LTD&&SARO5532,9642-Reserved Debtors - Non Public Sector,550,10-03-2021
REDACTED PERSONAL DATA  ,4507-Consultants & Specialists,14700,10-03-2021
POPLARS RESIDENTIAL HOME LTD&&SSAROE45825,9642-Reserved Debtors - Non Public Sector,1250,10-03-2021
Portland College,5325-External SEN Providers Top Up Fee,42311,10-03-2021
PRECIOUS CARE HOMES LTD T/A MARWOOD RESIDENTIAL HOME&&SSAROE532,9642-Reserved Debtors - Non Public Sector,1050,10-03-2021
Prestige Care 247 Ltd,9642-Reserved Debtors - Non Public Sector,1350,10-03-2021
PRESTIGE NURSING LTD&&ISHC5475,9642-Reserved Debtors - Non Public Sector,6120,10-03-2021
PRIME LIFE LTD BARONS PARK&&SSAROE40201,9642-Reserved Debtors - Non Public Sector,4450,10-03-2021
PRIME LIFE LTD&&SSARO3236,9642-Reserved Debtors - Non Public Sector,950,10-03-2021
PRIME LIFE LTD&&SSARO3236,9642-Reserved Debtors - Non Public Sector,800,10-03-2021
PRIME LIFE LTD&&SSARO3236,9642-Reserved Debtors - Non Public Sector,650,10-03-2021
PRIME LIFE LTD&&SSARO3236,9642-Reserved Debtors - Non Public Sector,1050,10-03-2021
PRIME LIFE LTD&&SSARO3236,9642-Reserved Debtors - Non Public Sector,4200,10-03-2021
PRIME LIFE LTD&&SSARO3333,9642-Reserved Debtors - Non Public Sector,3450,10-03-2021
PRIME LIFE LTD&&SSAROE1144,9642-Reserved Debtors - Non Public Sector,2050,10-03-2021
PRIME LIFE LTD&&SSAROE56173,9642-Reserved Debtors - Non Public Sector,7200,10-03-2021
PRIMELIFE (B MYCARE LTD) T/A LUTTERWORTH COUNTRY HOUSE CARE&&SSARO230,9642-Reserved Debtors - Non Public Sector,1700,10-03-2021
PRIMROSE LODGE&&SSAROE559,9642-Reserved Debtors - Non Public Sector,600,10-03-2021
Prudential Assurance Company Ltd,9729-Suspense (Current Liability),500,10-03-2021
Prudential Assurance Company Ltd,9729-Suspense (Current Liability),4288.61,10-03-2021
Prudential Assurance Company Ltd,9729-Suspense (Current Liability),1200,10-03-2021
Prudential Assurance Company Ltd,9729-Suspense (Current Liability),1463.29,10-03-2021
Prudential Assurance Company Ltd,9729-Suspense (Current Liability),7148.38,10-03-2021
PURPLE CARE TCM LTD&&ISHC3765,9642-Reserved Debtors - Non Public Sector,2880,10-03-2021
Purple Heart Healthcare Agency,5429-Community/Domiciliary,1440,10-03-2021
Purple Heart Healthcare Agency,5429-Community/Domiciliary,1806,10-03-2021
QUORN ORCHARDS RESIDENTIAL CARE HOME&&SSARO1370,9642-Reserved Debtors - Non Public Sector,1150,10-03-2021
Raichas Travel,3303-Taxi Hire,3193.75,10-03-2021
Raichas Travel,3112-Home to Sch Trans Contract Buses Prim,4180,10-03-2021
Reach Publishing Services Ltd,"4503-Advertising, Publicity & Marketing",1007.64,10-03-2021
Reach Publishing Services Ltd,"4503-Advertising, Publicity & Marketing",615.78,10-03-2021
Reach Publishing Services Ltd,"4503-Advertising, Publicity & Marketing",671.76,10-03-2021
Reach Publishing Services Ltd,"4503-Advertising, Publicity & Marketing",503.82,10-03-2021
Reach Publishing Services Ltd,"4503-Advertising, Publicity & Marketing",615.78,10-03-2021
Reach Publishing Services Ltd,"4503-Advertising, Publicity & Marketing",503.82,10-03-2021
Reach Publishing Services Ltd,"4503-Advertising, Publicity & Marketing",839.7,10-03-2021
REARSBY HOME 5 LTD&&SARO5545,9642-Reserved Debtors - Non Public Sector,1100,10-03-2021
RELIANCE COMMUNITY CARE LTD&&ISHC3815,9642-Reserved Debtors - Non Public Sector,2340,10-03-2021
Rentokil Initial UK Ltd,2403-Refuse Removal & Hygiene Disposal,1058.98,10-03-2021
Rise Multi Academy Trust,9861-LT Capital Grants Received in Advance,6144.83,10-03-2021
RKS DOMICILIARY CARE LTD T/A CAREMARK (CHARNWOOD)&&ISHC2618,9642-Reserved Debtors - Non Public Sector,3600,10-03-2021
RMBI CO NO4 ACCOUNT&&SAROE40444,9642-Reserved Debtors - Non Public Sector,4750,10-03-2021
Roberts Coaches Ltd,3113-Home to Sch Trans Contract Buses Sec,21022.5,10-03-2021
REDACTED PERSONAL DATA ,9642-Reserved Debtors - Non Public Sector,900,10-03-2021
ROSEDALE CARE HOME LTD&&SSARO1053,9642-Reserved Debtors - Non Public Sector,600,10-03-2021
ROYAL MENCAP&&SUPL4192,9642-Reserved Debtors - Non Public Sector,9180,10-03-2021
ROYAL SOCIETY FOR THE BLIND (RESIDENTIAL A/C)&&SSAROE13283,9642-Reserved Debtors - Non Public Sector,1250,10-03-2021
ROYAL SOCIETY FOR THE BLIND (RESIDENTIAL A/C)&&SSAROE13283,9642-Reserved Debtors - Non Public Sector,3500,10-03-2021
RUSHCLIFFE CARE LTD T/A BEAUMANOR&&SSAROE353,9642-Reserved Debtors - Non Public Sector,2300,10-03-2021
RUSHCLIFFE CARE LTD T/A CASTLE DONINGTON NURSING HOME&&SSAROE40221,9642-Reserved Debtors - Non Public Sector,3400,10-03-2021
RUSHCLIFFE CARE LTD T/A COALVILLE NURSING & RESIDENTIAL HOME&&SSAROE66717,9642-Reserved Debtors - Non Public Sector,2350,10-03-2021
RUSHCLIFFE CARE LTD T/A EPINAL WAY CARE CENTRE&&SSAROE4,9642-Reserved Debtors - Non Public Sector,1950,10-03-2021
RUSHCLIFFE CARE LTD T/A EPINAL WAY CARE CENTRE&&SSAROE4,9642-Reserved Debtors - Non Public Sector,2750,10-03-2021
RUSHCLIFFE CARE LTD T/A JASMINE COURT&&SSARO1136,9642-Reserved Debtors - Non Public Sector,4800,10-03-2021
RUSHCLIFFE CARE LTD T/A OLD SCHOOL HOUSE/HAYES CLOSE&&SSARO1393,9642-Reserved Debtors - Non Public Sector,1800,10-03-2021
RUSHCLIFFE CARE LTD T/A PARKMANOR RESIDENTIAL HOME&&SSAROE422,9642-Reserved Debtors - Non Public Sector,2250,10-03-2021
RUSHCLIFFE CARE LTD T/A THE HALL&&SSARO3376,9642-Reserved Debtors - Non Public Sector,1500,10-03-2021
RUSHCLIFFE CARE LTD T/A THORNHAM GROVE&&SSAROE1139,9642-Reserved Debtors - Non Public Sector,1900,10-03-2021
RUSHCLIFFE CARE LTD T/A THORPE HOUSE NURSING & RESIDENTIAL HOME&&SSAROE71744,9642-Reserved Debtors - Non Public Sector,3100,10-03-2021
Rutland County Council DC,9729-Suspense (Current Liability),9510.92,10-03-2021
RUTLAND HOUSE COMMUNITY TRUST&&SSAROE68167,9642-Reserved Debtors - Non Public Sector,750,10-03-2021
Samworth Centre at St Marys,4908-Grants,5000,10-03-2021
Scheidt & Bachmann (UK) Ltd,941G-L&B - Design Fees - External,4465.19,10-03-2021
Serenity Inmind Ltd,9642-Reserved Debtors - Non Public Sector,500,10-03-2021
SEVACARE (UK) LTD&&ISHCHC449,9642-Reserved Debtors - Non Public Sector,8100,10-03-2021
REDACTED PERSONAL DATA,5627-Transfer Payments Education Costs,889,10-03-2021
SHANKAR LEICESTER LTD T/A LONGCLIFFE NURSING HOME&&SSAROE40225,9642-Reserved Debtors - Non Public Sector,1100,10-03-2021
SHEPSHED CARERS LTD&&ISHCHC405,9642-Reserved Debtors - Non Public Sector,4590,10-03-2021
Shuttlewood Clarke Foundation,4507-Consultants & Specialists,3409,10-03-2021
SMALL WORLD NURSERY SCHOOL&&EYRS1367,4908-Grants,5000,10-03-2021
SR CARE LTD T/A THE CHESTNUTS&&SSAROE43299,9642-Reserved Debtors - Non Public Sector,700,10-03-2021
ST BERNARDS HALLATON MANOR LTD&&SSAROE14425,9642-Reserved Debtors - Non Public Sector,1100,10-03-2021
St Edwards C of E Primary School,6101-Support Services,10354,10-03-2021
ST MARTINS RES HOME LTD&&SSARO2034,9642-Reserved Debtors - Non Public Sector,1050,10-03-2021
Stantec UK Limited,4507-Consultants & Specialists,3850,10-03-2021
Steps Conductive Education Centre,4908-Grants,7500,10-03-2021
SUPPORT & CONNECTIONS LTD&&CLCD3316,9642-Reserved Debtors - Non Public Sector,1170,10-03-2021
Supporting Confidence Through Exercise,4908-Grants,12000,10-03-2021
SUTTON IN THE ELMS&&SARO8868,9642-Reserved Debtors - Non Public Sector,2350,10-03-2021
REDACTED PERSONAL DATA,9642-Reserved Debtors - Non Public Sector,1150,10-03-2021
Team Teach Ltd,1703-Training Expenses,2050,10-03-2021
THE ASHTON CARE HOME&&SARO3106,9642-Reserved Debtors - Non Public Sector,3600,10-03-2021
THE CHANTRY&&SARO3073,9642-Reserved Debtors - Non Public Sector,1050,10-03-2021
Think Homecare Ltd T/A Home Instead Senior Care Hinckley Burbage & Nuneaton,9642-Reserved Debtors - Non Public Sector,3060,10-03-2021
TODAYWISE LTD&&SSAROE40280,9642-Reserved Debtors - Non Public Sector,1700,10-03-2021
TOPCLASS CARE LTD&&SSAROE1111,9642-Reserved Debtors - Non Public Sector,900,10-03-2021
Total Community Care Ltd,9642-Reserved Debtors - Non Public Sector,43200,10-03-2021
TRACS LTD&&SSARO3235,9642-Reserved Debtors - Non Public Sector,800,10-03-2021
Trident Midland Newspapers,"4503-Advertising, Publicity & Marketing",704,10-03-2021
Trident Midland Newspapers,"4503-Advertising, Publicity & Marketing",512,10-03-2021
TRINITY TOWERS LTD T/A KARE PLUS&&ISHC5642,9642-Reserved Debtors - Non Public Sector,2520,10-03-2021
UK Electric Ltd T/A BEI Lighting,9631-Inventories - General,2992,10-03-2021
UK Electric Ltd T/A BEI Lighting,9631-Inventories - General,756.4,10-03-2021
UK Electric Ltd T/A BEI Lighting,9631-Inventories - General,2724,10-03-2021
UK Electric Ltd T/A BEI Lighting,9631-Inventories - General,4121.5,10-03-2021
UK Electric Ltd T/A BEI Lighting,9631-Inventories - General,2250.96,10-03-2021
UK Electric Ltd T/A BEI Lighting,4901-Other Expenditure,7053.88,10-03-2021
United Care Ltd T/A Bluebird Care,9642-Reserved Debtors - Non Public Sector,540,10-03-2021
Universal Care Services (UK) Ltd,9642-Reserved Debtors - Non Public Sector,9720,10-03-2021
University Hospitals of Leicester NHS Trust,5428-Minimum Cost Contracts,4618.33,10-03-2021
